{"text_format":"1","workbook":"xlsx","n_sheets":9,"sheets":["Copyright","Cover","Instruction","Fresh Data QA","Sheet1","Fresh Quality","Marine Data QA","Marine Quality","All Result"],"not_rendered":{"charts":0,"images":0,"macros":1,"external_links":0,"defined_names":3,"comments":4,"pivot_tables":0},"unopened":[],"bounds":{"document_bytes":16777216,"sheet_cells":100000,"rows_first":2000,"rows_last":500,"rows_between":2000,"halvings":0,"cell_chars":16384,"cell_head_chars":4096},"cells_cut":0,"cells_raw":0,"read":"whole","date_system":"1900"}

{"sheet":"Copyright","index":0,"n_rows":0,"n_cols":0,"rows_kept":0,"cut":false,"hidden":false,"merged":[]}

{"sheet":"Cover","index":1,"n_rows":20,"n_cols":7,"rows_kept":20,"cut":false,"hidden":false,"merged":[[18,6,18,8],[14,6,14,8],[13,6,13,8],[4,4,4,10],[9,6,9,8],[12,6,12,8],[5,5,6,9]]}
[]
[]
[]
[]
[null,null,null,null,"Ecotoxicity Data Quality Assessment Method "]
[null,null,null,null,null,"To be used to assess the quality of data used for the Australian and New Zealand Guidelines for Fresh and Marine Water Quality (including sediment) and the Australian National Environment Protection (Assessment of Site Contamination) Measure"]
[]
[]
[]
[null,null,null,null,null,null,"Developed by "]
[]
[]
[null,null,null,null,null,null,"Zoe Zhang"]
[null,null,null,null,null,null,"   Dr. Michael Warne"]
[null,null,null,null,null,null,"Alison Vieritz "]
[]
[]
[]
[null,null,null,null,null,null,"Catchment Water Science Group"]
[null,null,null,null,null,"                 Department of Environment and Resource Management"]

{"sheet":"Instruction","index":2,"n_rows":17,"n_cols":11,"rows_kept":17,"cut":false,"hidden":false,"merged":[[16,6,16,8],[22,4,22,8]]}
[]
[]
[]
[]
[]
[]
[null,"Tabs contain questionaries -->           ",null,null,"Fresh Data QA ",null,"Marine Data QA",null,"Terrestrial Data QA",null,"Sediment Data QA"]
[]
[]
[]
[null,"Tabs contain score of paper and short answers to questions -->",null,null,"Fresh Quality",null,"Marine Quality",null,"Terrestrial Quality",null,"Sediment Quality"]
[]
[]
[]
[]
[]
[null,"Tab Contains all scores of paper --> ",null,null,null,null,"All Result "]

{"sheet":"Fresh Data QA","index":3,"n_rows":98,"n_cols":25,"rows_kept":98,"cut":false,"hidden":false,"merged":[[83,7,86,7],[34,2,36,2],[37,2,39,2],[28,2,30,2],[60,2,63,2],[40,2,42,2],[43,2,45,2],[83,2,86,2],[46,2,48,2],[31,2,33,2],[80,2,82,2],[49,2,51,2],[52,2,54,2],[56,2,59,2],[68,2,71,2],[72,2,75,2],[76,2,79,2],[11,7,13,7],[37,7,39,7],[28,7,30,7],[31,7,33,7],[25,7,27,7],[11,2,13,2],[14,2,16,2],[17,2,19,2],[25,2,27,2],[64,2,67,2],[80,7,82,7],[64,7,67,7],[68,7,71,7],[72,7,75,7],[76,7,79,7],[3,4,7,4],[56,7,59,7],[60,7,63,7],[40,7,42,7],[43,7,45,7],[46,7,48,7],[49,7,51,7],[34,7,36,7],[52,7,54,7],[14,7,16,7],[9,2,9,4],[20,2,21,2],[22,2,24,2],[17,7,19,7],[20,7,21,7],[22,7,24,7]]}
[null,1,"FILL IN BLANKS BELOW,PICK OPTIONS FROM DROPDOWN LIST",null,null,null,null,null,null,null,"* All the text in Blue are used for drop down list ,make changes with caution."]
[null,null,"Category",null,"Freshwater",{"$f":"IF(M3=\"\",0,1)","v":1},"Citation No.",{"$f":"IF(E3=\"\",\"\",LEFT(E3,FIND(\"-\",E3) -1))","v":{"$error":"#VALUE!"}},null,null,"Species",null,null,"Lifestage",null,null,"Exposure duration",null,null,"Measure of toxicity",null,null,"Toxicity endpoint"]
[null,null,"Paper and data unique identifier(eg. 1-1,10-150)",null,"???",{"$f":"IF(E3=\"\",0,1)","v":1},"Species (Scientific name)",null,null,null,"Acorus gramenius",15,{"$f":"IF(L3=0,\"\",INDEX(K3:K50,L3))","v":"Cyprinus carpio"},"<1 day old",3,{"$f":"IF(O3=0,\"\",INDEX(N3:N50,O3))","v":"1 year old"},"1 hour ",24,{"$f":"IF(R3=0,\"\",INDEX(Q3:Q50,R3))","v":"60 days"},"Growth - area",22,{"$f":"IF(U3=0,\"\",INDEX(T3:T50,U3))","v":"Mortality"},0.01,20,{"$f":"IF(X3=0,\"\",INDEX(W3:W50,X3))","v":"NOEC"}]
[null,null,"Citation",null,"Stara et al 2012",{"$f":"IF(E4=\"\",0,1)","v":1},"Lifestage",null,null,null,"Aedes albopictus",null,null,"1 month",null,null,"11 hour",null,null,"Growth Rate: Gain (Dry Weight)",null,null,0.02]
[null,null,null,null,null,{"$f":"IF(S3=\"\",0,1)","v":1},"Exposure duration",null,null,null,"Australian Bass",null,null,"1 year old",null,null,"13 days",null,null,"Growth Rate: Gain (Fresh Weight)",null,null,0.03]
[null,null,null,null,null,{"$f":"IF(V3=\"\",0,1)","v":1},"Measure of toxicity",null,null,null,"Bala Shark",null,null,"2 days old",null,null,"13 hour",null,null,"Growth Rate: Length",null,null,0.04]
[null,null,null,null,null,{"$f":"IF(Y3=\"\",0,1)","v":1},"Toxicity endpoint",null,null,null,"Basa",null,null,"2 weeks old",null,null,"14 days",null,null,"Growth Rate: New Leaves",null,null,0.05]
[null,null,null,null,null,{"$f":"IF(H8=\"\",0,1)","v":1},"Toxicity value","4 mg/L",null,null,"Black Parinha",null,null,"20 mins",null,null,"15 days",null,null,"Growth Rate: Number of Shoots",null,null,0.06]
[null,2,"CHOOSE ANSWER OPTIONS AND FILL IN ANSWERS IN ANSWER COLUMN",null,null,{"$f":"IF(M3=\"\",0,1)","v":1},null,null,null,null,"Brachionus calyciflorus",null,null,"4-5 months old",null,null,"2 hours",null,null,"Growth: ChlA",null,null,7.0000000000000007E-2]
[null,"*","If had problem click on answer options,click on any  other cells first and then click back again.",null,null,{"$f":"IF(P3=\"\",0,1)","v":1},null,null,null,null,"Branchiura sowerbyi",null,null,"4-6 months old",null,null,"20 mins",null,null,"Growth: Height",null,null,0.08]
[null,"No.","Question","Marks Awarded","Answer Options","Option References","Scores","Answers",null,null,"Catfish",null,null,"5 days old",null,null,"21 hour",null,null,"Growth: Length",null,null,0.09]
[null,null,"Was the duration of the exposure stated (e.g., 48 or 96 h)?",10,null,1,{"$f":"IF(F15=0,0,INDEX($D12:$D13,F12,1))","v":10},null,null,null,"Chlamydomonas geitleri",null,null,"60-day old",null,null,"24 hour",null,null,"Growth: Weight",null,null,0.1]
[null,1,null,0,null,null,null,null,null,null,"Chlamydomonas geitleri",null,null,"Adult",null,null,"28 days",null,null,"Method 1",null,null,"EC1"]
[null,null,null,null,null,null,null,null,null,null,"Chlorella pyrenoidosa",null,null,"Exponential Growth Phase",null,null,"3 days",null,null,"Method 10",null,null,"EC2.52"]
[null,null,"Was the biological endpoint (e.g., immobilization or population growth) stated and defined (10 marks)? Award 5 marks if the biological endpoint is only stated.",10,null,2,{"$f":"IF(F15=0,0,INDEX($D15:$D17,F15,1))","v":5},"The only relevant endpoint was mortality",null,null,"Chlorella sp.",null,null,"Fingerlings",null,null,"3 hours",null,null,"Method 2",null,null,"EC2.71"]
[null,2,null,5,null,null,null,null,null,null,"Cirrhinus mrigala",null,null,"Fourth instar larvae",null,null,"30 day",null,null,"Method 3",null,null,"EC50"]
[null,null,null,0,null,null,null,null,null,null,"Cyprinus carpio",null,null,"Fry",null,null,"38 hour",null,null,"Method 4",null,null,"EC6.99"]
[null,null,"Was the biological effect stated (e.g., LC or NOEC)?",5,null,2,{"$f":"IF(F18=0,0,INDEX($D18:$D19,F18,1))","v":0},null,null,null,"Daphnia lumholtzi",null,null,"Juveniles",null,null,"4 hours",null,null,"Method 5",null,null,"Growth rate - area"]
[null,3,null,0,null,null,null,null,null,null,"Daphnia magna",null,null,"not stated",null,null,"48 hour",null,null,"Method 6",null,null,"IC50"]
[null,null,null,null,null,null,null,null,null,null,"Eel",null,null,"not stated",null,null,"5 days",null,null,"Method 7",null,null,"LC50"]
[null,4,"Was the biological effect quantified (e.g., 50% effect, 25% effect)? The effect for NOEC and LOEC data must be quantified.",5,null,1,{"$f":"IF(F21=0,0,INDEX($D21:$D22,F21,1))","v":5},null,null,null,"Elodea canadensis",null,null,"not stated",null,null,"5 hour",null,null,"Method 8",null,null,"LOEC"]
[null,null,null,0,null,null,null,null,null,null,"Glyceria maxima",null,null,"Phase 1",null,null,"5 hours",null,null,"Method 9",null,null,"NOEC"]
[null,5,"Were appropriate controls (e.g., a no-toxicant control and/or solvent control) used?",5,null,1,{"$f":"IF(F23=0,0,INDEX($D23:$D24,F23,1))","v":5},null,null,null,"Heliodiaptomus viduus",null,null,"Phase 2",null,null,"56 days",null,null,"Morphology: Development"]
[null,null,null,0,null,null,null,null,null,null,"Hyalella azteca",null,null,"Phase 3",null,null,"6 days",null,null,"Mortality"]
[null,null,null,null,null,null,null,null,null,null,"Lactica sativa",null,null,"Phase 4",null,null,"6 hours",null,null,"Population: Abundance"]
[null,6,"Was each control and contaminant concentration at least duplicated?",5,null,1,{"$f":"IF(F26=0,0,INDEX($D26:$D27,F26,1))","v":5},"For the other species there was replication and so they would get another 5 points",null,null,"Lemna gibba",null,null,"Phase 5",null,null,"60 days",null,null,"Population: Abundance: Density"]
[null,null,null,0,null,null,null,null,null,null,"Lungfish",null,null,"Phase 6",null,null,"7 days",null,null,"Population: Biomass: ChlA"]
[null,null,null,null,null,null,null,null,null,null,"Mesocyclops leuckarti",null,null,"Phase 7 ",null,null,"7 hours",null,null,"Population: Density: Area under the curve"]
[null,7,"Were test acceptability criteria stated (e.g., mortality in controls must not exceed a certain percentage) (5 marks)?\nOR\nWere test acceptability criteria inferred (e.g., test method used [USEPA, OECD, ASTM etc]) (award 2 marks). Note: Invalid data must no",5,null,3,{"$f":"IF(F29=0,0,INDEX($D29:$D31,F29,1))","v":0},null,null,null,"Murray Cod",null,null,"Phase 8",null,null,"72 hours",null,null,"Population: Growth Rate"]
[null,null,null,2,null,null,null,null,null,null,"Myriophyllum aquaticum",null,null,"Phase 9",null,null,"8 hours",null,null,"Population: Growth Rate (Number of fronds)"]
[null,null,null,0,null,null,null,null,null,null,"Myriophyllum spicatum",null,null,"Seedling",null,null,"84 days",null,null,"Population: Growth: Fresh weight"]
[null,8,"Were the characteristics of the test organism (e.g., length, mass, age) stated?",5,null,1,{"$f":"IF(F32=0,0,INDEX($D32:$D34,F32,1))","v":5},null,null,null,"Nemo",null,null,null,null,null,"9 hours",null,null,"Population: Growth: Inhibition of reproduction"]
[null,null,null,0,null,null,null,null,null,null,"Oncorhynchus kisutch",null,null,null,null,null,"90 days",null,null,"Relative Growth Rate (Biomass - Dry Weight)"]
[null,null,null,null,null,null,null,null,null,null,"Oncorhynchus mykiss",null,null,null,null,null,"96 hour",null,null,"Root elongation"]
[null,9,"Was the type of test media used stated?",5,null,1,{"$f":"IF(F35=0,0,INDEX($D35:$D37,F35,1))","v":5},null,null,null,"Oncorhynchus tshawytscha",null,null,null,null,null,"96 hour",null,null,"Not relevant"]
[null,null,null,0,null,null,null,null,null,null,"Pacifastacus leniusculus",null,null,null,null,null,"Variable",null,null,"Instantaneous growth rate ChlA"]
[null,null,null,null,null,null,null,null,null,null,"Persicaria amphibia"]
[null,null,"Was the type of exposure (e.g. static, flow through) stated? ",4,null,1,{"$f":"IF(F38=0,0,INDEX($D38:$D40,F38,1))","v":4},null,null,null,"Pontederia cordata"]
[null,10,null,0,null,null,null,null,null,null,"Rana catesbeiana"]
[null,null,null,null,null,null,null,null,null,null,"Redclaw"]
[null,null,"Were the contaminant concentrations measured?",4,null,1,{"$f":"IF(F41=0,0,INDEX($D41:$D43,F41,1))","v":4},null,null,null,"Rhamdia quelen"]
[null,11,null,0,null,null,null,null,null,null,"Scenedesmus acuolatus"]
[null,null,null,null,null,null,null,null,null,null,"Scenedesmus \u0001acuolatus"]
[null,null,"Were parallel reference toxicant toxicity tests conducted?",4,null,2,{"$f":"IF(F44=0,0,INDEX($D44:$D46,F44,1))","v":0},null,null,null,"Scenedesmus obliquus"]
[null,12,null,0,null,null,null,null,null,null,"Sea Mullet"]
[null,null,null,null,null,null,null,null,null,null,"Selenastrum capricornutum"]
[null,null,"Was there a concentration–response relationship either observable or stated",4,null,2,{"$f":"IF(F47=0,0,INDEX($D47:$D49,F47,1))","v":0},null,null,null,"SilverPerch"]
[null,13,null,0,null,null,null,null,null,null,"Typha latifolia"]
[null,null,null,null,null,null,null,null,null,null,"Vallisneria americana"]
[null,null,"Was an appropriate statistical method or model used to determine the toxicity?",4,null,1,{"$f":"IF(F50=0,0,INDEX($D50:$D52,F50,1))","v":4},null,null,null,"Viviparus bengalensis"]
[null,14,null,0,null,null,null,null,null,null,"Cylindroatheca closterium"]
[]
[null,15,"For LC/EC/BEC data was an estimate of variability provided? Or For NO EC/LOEC data was the significance level 0.05 or less?  \n\n",4,null,2,{"$f":"IF(F53=0,0,INDEX($D53:$D55,F53,1))","v":0}]
[null,null,null,0]
[]
[null,16,"Were the following parameters measured and stated? (3 marks if measured and stated, 1 if just measured)"]
[null,null,"pH",3,null,3,{"$f":"IF(F57=0,0,INDEX($D57:$D59,F57,1))","v":0}]
[null,16.100000000000001,null,1]
[null,null,null,0]
[]
[null,null,"Hardness",3,null,3,{"$f":"IF(F61=0,0,INDEX($D61:$D63,F61,1))","v":0}]
[null,16.2,null,1]
[null,null,null,0]
[]
[null,null,"Alkalinity",3,null,3,{"$f":"IF(F65=0,0,INDEX($D65:$D67,F65,1))","v":0}]
[null,16.3,null,1]
[null,null,null,0]
[]
[null,null,"Organic carbon concentration",3,null,3,{"$f":"IF(F69=0,0,INDEX($D69:$D71,F69,1))","v":0}]
[null,16.399999999999999,null,1]
[null,null,null,0]
[]
[null,null,"Conductivity ",3,null,3,{"$f":"IF(F73=0,0,INDEX($D73:$D75,F73,1))","v":0}]
[null,16.5,null,1]
[null,null,null,0]
[]
[null,null,"Dissolved Oxygen",3,null,1,{"$f":"IF(F77=0,0,INDEX($D77:$D79,F77,1))","v":3}]
[null,16.600000000000001,null,1]
[null,null,null,0]
[]
[null,null,"Was the temperature measured and stated?",3,null,1,{"$f":"IF(F81=0,0,INDEX($D81:$D83,F81,1))","v":3}]
[null,17,null,0]
[]
[null,null,"Was the grade or purity of the test contaminant stated?",3,null,2,{"$f":"IF(F84=0,0,INDEX($D84:$D85,F84,1))","v":0}]
[null,18,null,0]
[]
[null,null,null,null,null,null,null,null,{"$f":"(COUNTIF(F12:F87,\"=0\"))+COUNTIF(F2:F10,\"=0\")","v":0}]
[]
[]
[null,null,"Total score",null,null,null,{"$f":"IF(SUM(G12:G84)=0,\"\",SUM(G12:G84))","v":58}]
[null,null,"Total Max. possible score for the various types of data and contaminants ",null,{"$f":"D12+D15+D18+D21+D23+D26+D29+D32+D35+D38+D41+D44+D47+D50+D53+D57+D61+D65+D69+D73+D77+D81+D84","v":103}]
[null,null,"Quality Score",null,{"$f":"\"= [Total score / Total possible score] * 100 = \"","v":"= [Total score / Total possible score] * 100 = "},null,{"$f":"IF(ISERROR(G90/E91),#N/A,G90/E91)","v":0.56310679611650483}]
[]
[null,null,"H = high quality                           Quality score >=80%      "]
[null,null,"A = acceptable quality         80%>Quality score>50%      "]
[null,null,"U = unacceptable quality              Quality score <=50%  "]
[]
[3,null,"CLICK \"Save&Update\" BUTTON TO SAVE ANSWER TO SAMPLE FINALISED ASSESSMENT SHEET"]

{"sheet":"Sheet1","index":4,"n_rows":34,"n_cols":29,"rows_kept":34,"cut":false,"hidden":true,"merged":[]}
[]
[{"$f":"'Fresh Data QA'!B11","v":"No."},{"$f":"'Fresh Data QA'!B13","v":1},{"$f":"'Fresh Data QA'!B16","v":2},{"$f":"'Fresh Data QA'!B19","v":3},{"$f":"'Fresh Data QA'!B21","v":4},{"$f":"'Fresh Data QA'!B23","v":5},{"$f":"'Fresh Data QA'!B26","v":6},{"$f":"'Fresh Data QA'!B29","v":7},{"$f":"'Fresh Data QA'!B32","v":8},{"$f":"'Fresh Data QA'!B35","v":9},{"$f":"'Fresh Data QA'!B39","v":10},{"$f":"'Fresh Data QA'!B42","v":11},{"$f":"'Fresh Data QA'!B45","v":12},{"$f":"'Fresh Data QA'!B48","v":13},{"$f":"'Fresh Data QA'!B51","v":14},{"$f":"'Fresh Data QA'!B53","v":15},{"$f":"'Fresh Data QA'!B58","v":16.100000000000001},{"$f":"'Fresh Data QA'!B62","v":16.2},{"$f":"'Fresh Data QA'!B66","v":16.3},{"$f":"'Fresh Data QA'!B70","v":16.399999999999999},{"$f":"'Fresh Data QA'!B74","v":16.5},{"$f":"'Fresh Data QA'!B78","v":16.600000000000001},{"$f":"'Fresh Data QA'!B82","v":17},{"$f":"'Fresh Data QA'!B85","v":18},{"$f":"'Fresh Data QA'!C90","v":"Total score"},{"$f":"'Fresh Data QA'!C92","v":"Quality Score"}]
[{"$f":"'Fresh Data QA'!C2","v":"Category"},{"$f":"'Fresh Data QA'!E2","v":"Freshwater"},{"$f":"'Fresh Data QA'!C3","v":"Paper and data unique identifier(eg. 1-1,10-150)"},{"$f":"'Fresh Data QA'!E3","v":"???"}]
[{"$f":"'Fresh Data QA'!G11","v":"Scores"},{"$f":"'Fresh Data QA'!G12","v":10},{"$f":"'Fresh Data QA'!G15","v":5},{"$f":"'Fresh Data QA'!G18","v":0},{"$f":"'Fresh Data QA'!G21","v":5},{"$f":"'Fresh Data QA'!G23","v":5},{"$f":"'Fresh Data QA'!G26","v":5},{"$f":"'Fresh Data QA'!G29","v":0},{"$f":"'Fresh Data QA'!G32","v":5},{"$f":"'Fresh Data QA'!G35","v":5},{"$f":"'Fresh Data QA'!G38","v":4},{"$f":"'Fresh Data QA'!G41","v":4},{"$f":"'Fresh Data QA'!G44","v":0},{"$f":"'Fresh Data QA'!G47","v":0},{"$f":"'Fresh Data QA'!G50","v":4},{"$f":"'Fresh Data QA'!G53","v":0},{"$f":"'Fresh Data QA'!G57","v":0},{"$f":"'Fresh Data QA'!G61","v":0},{"$f":"'Fresh Data QA'!G65","v":0},{"$f":"'Fresh Data QA'!G69","v":0},{"$f":"'Fresh Data QA'!G73","v":0},{"$f":"'Fresh Data QA'!G77","v":3},{"$f":"'Fresh Data QA'!G81","v":3},{"$f":"'Fresh Data QA'!G84","v":0},{"$f":"'Fresh Data QA'!G90","v":58},{"$f":"'Fresh Data QA'!G92","v":0.56310679611650483}]
["Answers",{"$f":"IF('Fresh Data QA'!H12=0,\"\",'Fresh Data QA'!H12)","v":""},{"$f":"IF('Fresh Data QA'!H15=0,\"\",'Fresh Data QA'!H15)","v":"The only relevant endpoint was mortality"},{"$f":"IF('Fresh Data QA'!H18=0,\"\",'Fresh Data QA'!H18)","v":""},{"$f":"IF('Fresh Data QA'!H21=0,\"\",'Fresh Data QA'!H21)","v":""},{"$f":"IF('Fresh Data QA'!H23=0,\"\",'Fresh Data QA'!H23)","v":""},{"$f":"IF('Fresh Data QA'!H26=0,\"\",'Fresh Data QA'!H26)","v":"For the other species there was replication and so they would get another 5 points"},{"$f":"IF('Fresh Data QA'!H29=0,\"\",'Fresh Data QA'!H29)","v":""},{"$f":"IF('Fresh Data QA'!H32=0,\"\",'Fresh Data QA'!H32)","v":""},{"$f":"IF('Fresh Data QA'!H35=0,\"\",'Fresh Data QA'!H35)","v":""},{"$f":"IF('Fresh Data QA'!H38=0,\"\",'Fresh Data QA'!H38)","v":""},{"$f":"IF('Fresh Data QA'!H41=0,\"\",'Fresh Data QA'!H41)","v":""},{"$f":"IF('Fresh Data QA'!H44=0,\"\",'Fresh Data QA'!H44)","v":""},{"$f":"IF('Fresh Data QA'!H47=0,\"\",'Fresh Data QA'!H47)","v":""},{"$f":"IF('Fresh Data QA'!H50=0,\"\",'Fresh Data QA'!H50)","v":""},{"$f":"IF('Fresh Data QA'!H53=0,\"\",'Fresh Data QA'!H53)","v":""},{"$f":"IF('Fresh Data QA'!H57=0,\"\",'Fresh Data QA'!H57)","v":""},{"$f":"IF('Fresh Data QA'!H61=0,\"\",'Fresh Data QA'!H65)","v":""},{"$f":"IF('Fresh Data QA'!H65=0,\"\",'Fresh Data QA'!H65)","v":""},{"$f":"IF('Fresh Data QA'!H69=0,\"\",'Fresh Data QA'!H69)","v":""},{"$f":"IF('Fresh Data QA'!H73=0,\"\",'Fresh Data QA'!H73)","v":""},{"$f":"IF('Fresh Data QA'!H77=0,\"\",'Fresh Data QA'!H77)","v":""},{"$f":"IF('Fresh Data QA'!H81=0,\"\",'Fresh Data QA'!H81)","v":""},{"$f":"IF('Fresh Data QA'!H84=0,\"\",'Fresh Data QA'!H84)","v":""}]
[{"$f":"'Fresh Data QA'!G3","v":"Species (Scientific name)"},{"$f":"'Fresh Data QA'!G4","v":"Lifestage"},{"$f":"'Fresh Data QA'!G5","v":"Exposure duration"},{"$f":"'Fresh Data QA'!G6","v":"Measure of toxicity"},{"$f":"'Fresh Data QA'!G7","v":"Toxicity endpoint"},{"$f":"'Fresh Data QA'!G8","v":"Toxicity value"},{"$f":"'Fresh Data QA'!C4","v":"Citation"},{"$f":"'Fresh Data QA'!G2","v":"Citation No."}]
[{"$f":"'Fresh Data QA'!M3","v":"Cyprinus carpio"},{"$f":"'Fresh Data QA'!P3","v":"1 year old"},{"$f":"'Fresh Data QA'!S3","v":"60 days"},{"$f":"'Fresh Data QA'!V3","v":"Mortality"},{"$f":"'Fresh Data QA'!Y3","v":"NOEC"},{"$f":"IF('Fresh Data QA'!H8=0,\"\",'Fresh Data QA'!H8)","v":"4 mg/L"},{"$f":"IF('Fresh Data QA'!E4=0,\"\",'Fresh Data QA'!E4)","v":"Stara et al 2012"},{"$f":"IF('Fresh Data QA'!H2=0,\"\",'Fresh Data QA'!H2)","v":{"$error":"#VALUE!"}}]
[]
[]
[]
[{"$f":"'Marine Data QA'!B11","v":"No."},{"$f":"'Marine Data QA'!B13","v":1},{"$f":"'Marine Data QA'!B16","v":2},{"$f":"'Marine Data QA'!B19","v":3},{"$f":"'Marine Data QA'!B21","v":4},{"$f":"'Marine Data QA'!B23","v":5},{"$f":"'Marine Data QA'!B26","v":6},{"$f":"'Marine Data QA'!B29","v":7},{"$f":"'Marine Data QA'!B32","v":8},{"$f":"'Marine Data QA'!B35","v":9},{"$f":"'Marine Data QA'!B39","v":10},{"$f":"'Marine Data QA'!B42","v":11},{"$f":"'Marine Data QA'!B45","v":12},{"$f":"'Marine Data QA'!B48","v":13},{"$f":"'Marine Data QA'!B51","v":14},{"$f":"'Marine Data QA'!B53","v":15},{"$f":"'Marine Data QA'!B58","v":16.100000000000001},{"$f":"'Marine Data QA'!B62","v":16.2},{"$f":"'Marine Data QA'!B66","v":16.3},{"$f":"'Marine Data QA'!B70","v":16.399999999999999},{"$f":"'Marine Data QA'!B74","v":16.5},{"$f":"'Marine Data QA'!B78","v":16.600000000000001},{"$f":"'Marine Data QA'!B82","v":17},{"$f":"'Marine Data QA'!B85","v":18},{"$f":"'Marine Data QA'!B88","v":19},{"$f":"'Marine Data QA'!C90","v":"Total score"},{"$f":"'Marine Data QA'!C92","v":"Quality Score"}]
[{"$f":"'Marine Data QA'!C2","v":"Category"},{"$f":"'Marine Data QA'!E2","v":"Marine "},{"$f":"'Marine Data QA'!C3","v":"Paper and data unique identifier(eg. 1-1,10-150)"},{"$f":"'Marine Data QA'!E3","v":"852-1-GD"}]
[{"$f":"'Marine Data QA'!G11","v":"Scores"},{"$f":"'Marine Data QA'!G12","v":10},{"$f":"'Marine Data QA'!G15","v":5},{"$f":"'Marine Data QA'!G18","v":5},{"$f":"'Marine Data QA'!G21","v":5},{"$f":"'Marine Data QA'!G23","v":5},{"$f":"'Marine Data QA'!G26","v":5},{"$f":"'Marine Data QA'!G29","v":0},{"$f":"'Marine Data QA'!G32","v":5},{"$f":"'Marine Data QA'!G35","v":5},{"$f":"'Marine Data QA'!G38","v":0},{"$f":"'Marine Data QA'!G41","v":0},{"$f":"'Marine Data QA'!G44","v":0},{"$f":"'Marine Data QA'!G47","v":0},{"$f":"'Marine Data QA'!G50","v":4},{"$f":"'Marine Data QA'!G53","v":4},{"$f":"'Marine Data QA'!G57","v":3},{"$f":"'Marine Data QA'!G61","v":0},{"$f":"'Marine Data QA'!G65","v":0},{"$f":"'Marine Data QA'!G69","v":0},{"$f":"'Marine Data QA'!G73","v":0},{"$f":"'Marine Data QA'!G77","v":0},{"$f":"'Marine Data QA'!G81","v":3},{"$f":"'Marine Data QA'!G84","v":3},{"$f":"'Marine Data QA'!G88","v":3},{"$f":"'Marine Data QA'!G90","v":65},{"$f":"'Marine Data QA'!G92","v":0.67010309278350511}]
[{"$f":"'Marine Data QA'!H11","v":"Answers"},{"$f":"IF('Marine Data QA'!H12=0,\"\",'Marine Data QA'!H12)","v":""},{"$f":"IF('Marine Data QA'!H15=0,\"\",'Marine Data QA'!H15)","v":""},{"$f":"IF('Marine Data QA'!H18=0,\"\",'Marine Data QA'!H18)","v":""},{"$f":"IF('Marine Data QA'!H21=0,\"\",'Marine Data QA'!H21)","v":""},null,{"$f":"IF('Marine Data QA'!H26=0,\"\",'Marine Data QA'!H26)","v":""},{"$f":"IF('Marine Data QA'!H29=0,\"\",'Marine Data QA'!H29)","v":""},{"$f":"IF('Marine Data QA'!H32=0,\"\",'Marine Data QA'!H32)","v":""},{"$f":"IF('Marine Data QA'!H35=0,\"\",'Marine Data QA'!H35)","v":""},{"$f":"IF('Marine Data QA'!H38=0,\"\",'Marine Data QA'!H38)","v":""},{"$f":"IF('Marine Data QA'!H41=0,\"\",'Marine Data QA'!H41)","v":""},{"$f":"IF('Marine Data QA'!H44=0,\"\",'Marine Data QA'!H44)","v":""},{"$f":"IF('Marine Data QA'!H47=0,\"\",'Marine Data QA'!H47)","v":""},{"$f":"IF('Marine Data QA'!H50=0,\"\",'Marine Data QA'!H50)","v":""},{"$f":"IF('Marine Data QA'!H53=0,\"\",'Marine Data QA'!H53)","v":""},{"$f":"IF('Marine Data QA'!H57=0,\"\",'Marine Data QA'!H57)","v":""},{"$f":"IF('Marine Data QA'!H61=0,\"\",'Marine Data QA'!H61)","v":""},{"$f":"IF('Marine Data QA'!H65=0,\"\",'Marine Data QA'!H65)","v":""},{"$f":"IF('Marine Data QA'!H69=0,\"\",'Marine Data QA'!H69)","v":""},{"$f":"IF('Marine Data QA'!H73=0,\"\",'Marine Data QA'!H73)","v":""},{"$f":"IF('Marine Data QA'!H77=0,\"\",'Marine Data QA'!H77)","v":""},{"$f":"IF('Marine Data QA'!H81=0,\"\",'Marine Data QA'!H81)","v":""},{"$f":"IF('Marine Data QA'!H84=0,\"\",'Marine Data QA'!H84)","v":""},{"$f":"IF('Marine Data QA'!H88=0,\"\",'Marine Data QA'!H88)","v":""}]
[{"$f":"'Marine Data QA'!G3","v":"Species (Scientific name)"},{"$f":"'Marine Data QA'!$G4","v":"Lifestage"},{"$f":"'Marine Data QA'!$G5","v":"Exposure duration"},{"$f":"'Marine Data QA'!$G6","v":"Measure of toxicity"},{"$f":"'Marine Data QA'!$G7","v":"Toxicity endpoint"},{"$f":"'Marine Data QA'!$G8","v":"Toxicity value"},{"$f":"'Marine Data QA'!$C4","v":"Citation"},{"$f":"'Marine Data QA'!$G2","v":"Citation No."}]
[{"$f":"'Marine Data QA'!M3","v":"Proisotoma minuta"},{"$f":"'Marine Data QA'!P3","v":"60-day old"},{"$f":"'Marine Data QA'!S3","v":"7 days"},{"$f":"'Marine Data QA'!V3","v":"Mortality"},{"$f":"'Marine Data QA'!Y3","v":"LC50"},{"$f":"IF('Marine Data QA'!H8=0,\"\",'Marine Data QA'!H8)","v":">100,000 ug/L"},{"$f":"IF('Marine Data QA'!E4=0,\"\",'Marine Data QA'!E4)","v":"Park, E.K. and Lees, E.M., 2005. Application of an Artificial Sea Salt Solution to Determine Acute Toxicity of Herbicides to Proisotoma minuta (Collembola), J. Environ. Sci. Health Part B Pestic. Food Contam. Agric. Wastes40(4): 595-604. "},{"$f":"IF('Marine Data QA'!H2=0,\"\",'Marine Data QA'!H2)","v":"852"}]
[]
[]
[]
[{"$f":"#REF!","v":{"$error":"#REF!"}},{"$f":"#REF!","v":{"$error":"#REF!"}},{"$f":"#REF!","v":{"$error":"#REF!"}},{"$f":"#REF!","v":{"$error":"#REF!"}},{"$f":"#REF!","v":{"$error":"#REF!"}},{"$f":"#REF!","v":{"$error":"#REF!"}},{"$f":"#REF!","v":{"$error":"#REF!"}},{"$f":"#REF!","v":{"$error":"#REF!"}},{"$f":"#REF!","v":{"$error":"#REF!"}},{"$f":"#REF!","v":{"$error":"#REF!"}},{"$f":"#REF!","v":{"$error":"#REF!"}},{"$f":"#REF!","v":{"$error":"#REF!"}},{"$f":"#REF!","v":{"$error":"#REF!"}},{"$f":"#REF!","v":{"$error":"#REF!"}},{"$f":"#REF!","v":{"$error":"#REF!"}},{"$f":"#REF!","v":{"$error":"#REF!"}},{"$f":"#REF!","v":{"$error":"#REF!"}},{"$f":"#REF!","v":{"$error":"#REF!"}},{"$f":"#REF!","v":{"$error":"#REF!"}},{"$f":"#REF!","v":{"$error":"#REF!"}},{"$f":"#REF!","v":{"$error":"#REF!"}},{"$f":"#REF!","v":{"$error":"#REF!"}},{"$f":"#REF!","v":{"$error":"#REF!"}},{"$f":"#REF!","v":{"$error":"#REF!"}},{"$f":"#REF!","v":{"$error":"#REF!"}},{"$f":"#REF!","v":{"$error":"#REF!"}}]
[{"$f":"#REF!","v":{"$error":"#REF!"}},{"$f":"#REF!","v":{"$error":"#REF!"}},{"$f":"#REF!","v":{"$error":"#REF!"}},{"$f":"#REF!","v":{"$error":"#REF!"}}]
[{"$f":"#REF!","v":{"$error":"#REF!"}},{"$f":"#REF!","v":{"$error":"#REF!"}},{"$f":"#REF!","v":{"$error":"#REF!"}},{"$f":"#REF!","v":{"$error":"#REF!"}},{"$f":"#REF!","v":{"$error":"#REF!"}},{"$f":"#REF!","v":{"$error":"#REF!"}},{"$f":"#REF!","v":{"$error":"#REF!"}},{"$f":"#REF!","v":{"$error":"#REF!"}},{"$f":"#REF!","v":{"$error":"#REF!"}},{"$f":"#REF!","v":{"$error":"#REF!"}},{"$f":"#REF!","v":{"$error":"#REF!"}},{"$f":"#REF!","v":{"$error":"#REF!"}},{"$f":"#REF!","v":{"$error":"#REF!"}},{"$f":"#REF!","v":{"$error":"#REF!"}},{"$f":"#REF!","v":{"$error":"#REF!"}},{"$f":"#REF!","v":{"$error":"#REF!"}},{"$f":"#REF!","v":{"$error":"#REF!"}},{"$f":"#REF!","v":{"$error":"#REF!"}},{"$f":"#REF!","v":{"$error":"#REF!"}},{"$f":"#REF!","v":{"$error":"#REF!"}},{"$f":"#REF!","v":{"$error":"#REF!"}},{"$f":"#REF!","v":{"$error":"#REF!"}},{"$f":"#REF!","v":{"$error":"#REF!"}},{"$f":"#REF!","v":{"$error":"#REF!"}},{"$f":"#REF!","v":{"$error":"#REF!"}},{"$f":"#REF!","v":{"$error":"#REF!"}}]
[{"$f":"#REF!","v":{"$error":"#REF!"}},{"$f":"IF(#REF!=0,\"\",#REF!)","v":{"$error":"#REF!"}},{"$f":"IF(#REF!=0,\"\",#REF!)","v":{"$error":"#REF!"}},{"$f":"IF(#REF!=0,\"\",#REF!)","v":{"$error":"#REF!"}},{"$f":"IF(#REF!=0,\"\",#REF!)","v":{"$error":"#REF!"}},{"$f":"IF(#REF!=0,\"\",#REF!)","v":{"$error":"#REF!"}},{"$f":"IF(#REF!=0,\"\",#REF!)","v":{"$error":"#REF!"}},{"$f":"IF(#REF!=0,\"\",#REF!)","v":{"$error":"#REF!"}},{"$f":"IF(#REF!=0,\"\",#REF!)","v":{"$error":"#REF!"}},{"$f":"IF(#REF!=0,\"\",#REF!)","v":{"$error":"#REF!"}},{"$f":"IF(#REF!=0,\"\",#REF!)","v":{"$error":"#REF!"}},{"$f":"IF(#REF!=0,\"\",#REF!)","v":{"$error":"#REF!"}},{"$f":"IF(#REF!=0,\"\",#REF!)","v":{"$error":"#REF!"}},{"$f":"IF(#REF!=0,\"\",#REF!)","v":{"$error":"#REF!"}},{"$f":"IF(#REF!=0,\"\",#REF!)","v":{"$error":"#REF!"}},{"$f":"IF(#REF!=0,\"\",#REF!)","v":{"$error":"#REF!"}},{"$f":"IF(#REF!=0,\"\",#REF!)","v":{"$error":"#REF!"}},{"$f":"IF(#REF!=0,\"\",#REF!)","v":{"$error":"#REF!"}},{"$f":"IF(#REF!=0,\"\",#REF!)","v":{"$error":"#REF!"}},{"$f":"IF(#REF!=0,\"\",#REF!)","v":{"$error":"#REF!"}},{"$f":"IF(#REF!=0,\"\",#REF!)","v":{"$error":"#REF!"}},{"$f":"IF(#REF!=0,\"\",#REF!)","v":{"$error":"#REF!"}},{"$f":"IF(#REF!=0,\"\",#REF!)","v":{"$error":"#REF!"}},{"$f":"IF(#REF!=0,\"\",#REF!)","v":{"$error":"#REF!"}}]
[{"$f":"#REF!","v":{"$error":"#REF!"}},{"$f":"#REF!","v":{"$error":"#REF!"}},{"$f":"#REF!","v":{"$error":"#REF!"}},{"$f":"#REF!","v":{"$error":"#REF!"}},{"$f":"#REF!","v":{"$error":"#REF!"}},{"$f":"#REF!","v":{"$error":"#REF!"}},{"$f":"#REF!","v":{"$error":"#REF!"}},{"$f":"#REF!","v":{"$error":"#REF!"}}]
[{"$f":"#REF!","v":{"$error":"#REF!"}},{"$f":"#REF!","v":{"$error":"#REF!"}},{"$f":"#REF!","v":{"$error":"#REF!"}},{"$f":"#REF!","v":{"$error":"#REF!"}},{"$f":"#REF!","v":{"$error":"#REF!"}},{"$f":"IF(#REF!=0,\"\",#REF!)","v":{"$error":"#REF!"}},{"$f":"IF(#REF!=0,\"\",#REF!)","v":{"$error":"#REF!"}},{"$f":"IF(#REF!=0,\"\",#REF!)","v":{"$error":"#REF!"}}]
[]
[]
[]
[{"$f":"#REF!","v":{"$error":"#REF!"}},{"$f":"#REF!","v":{"$error":"#REF!"}},{"$f":"#REF!","v":{"$error":"#REF!"}},{"$f":"#REF!","v":{"$error":"#REF!"}},{"$f":"#REF!","v":{"$error":"#REF!"}},{"$f":"#REF!","v":{"$error":"#REF!"}},{"$f":"#REF!","v":{"$error":"#REF!"}},{"$f":"#REF!","v":{"$error":"#REF!"}},{"$f":"#REF!","v":{"$error":"#REF!"}},{"$f":"#REF!","v":{"$error":"#REF!"}},{"$f":"#REF!","v":{"$error":"#REF!"}},{"$f":"#REF!","v":{"$error":"#REF!"}},{"$f":"#REF!","v":{"$error":"#REF!"}},{"$f":"#REF!","v":{"$error":"#REF!"}},{"$f":"#REF!","v":{"$error":"#REF!"}},{"$f":"#REF!","v":{"$error":"#REF!"}},{"$f":"#REF!","v":{"$error":"#REF!"}},{"$f":"#REF!","v":{"$error":"#REF!"}},{"$f":"#REF!","v":{"$error":"#REF!"}},{"$f":"#REF!","v":{"$error":"#REF!"}},{"$f":"#REF!","v":{"$error":"#REF!"}},{"$f":"#REF!","v":{"$error":"#REF!"}},{"$f":"#REF!","v":{"$error":"#REF!"}},{"$f":"#REF!","v":{"$error":"#REF!"}},{"$f":"#REF!","v":{"$error":"#REF!"}},{"$f":"#REF!","v":{"$error":"#REF!"}},{"$f":"#REF!","v":{"$error":"#REF!"}},{"$f":"#REF!","v":{"$error":"#REF!"}},{"$f":"#REF!","v":{"$error":"#REF!"}}]
[{"$f":"#REF!","v":{"$error":"#REF!"}},{"$f":"#REF!","v":{"$error":"#REF!"}},{"$f":"#REF!","v":{"$error":"#REF!"}},{"$f":"#REF!","v":{"$error":"#REF!"}}]
[{"$f":"#REF!","v":{"$error":"#REF!"}},{"$f":"#REF!","v":{"$error":"#REF!"}},{"$f":"#REF!","v":{"$error":"#REF!"}},{"$f":"#REF!","v":{"$error":"#REF!"}},{"$f":"#REF!","v":{"$error":"#REF!"}},{"$f":"#REF!","v":{"$error":"#REF!"}},{"$f":"#REF!","v":{"$error":"#REF!"}},{"$f":"#REF!","v":{"$error":"#REF!"}},{"$f":"#REF!","v":{"$error":"#REF!"}},{"$f":"#REF!","v":{"$error":"#REF!"}},{"$f":"#REF!","v":{"$error":"#REF!"}},{"$f":"#REF!","v":{"$error":"#REF!"}},{"$f":"#REF!","v":{"$error":"#REF!"}},{"$f":"#REF!","v":{"$error":"#REF!"}},{"$f":"#REF!","v":{"$error":"#REF!"}},{"$f":"#REF!","v":{"$error":"#REF!"}},{"$f":"#REF!","v":{"$error":"#REF!"}},{"$f":"#REF!","v":{"$error":"#REF!"}},{"$f":"#REF!","v":{"$error":"#REF!"}},{"$f":"#REF!","v":{"$error":"#REF!"}},{"$f":"#REF!","v":{"$error":"#REF!"}},{"$f":"#REF!","v":{"$error":"#REF!"}},{"$f":"#REF!","v":{"$error":"#REF!"}},{"$f":"#REF!","v":{"$error":"#REF!"}},{"$f":"#REF!","v":{"$error":"#REF!"}},{"$f":"#REF!","v":{"$error":"#REF!"}},{"$f":"#REF!","v":{"$error":"#REF!"}},{"$f":"#REF!","v":{"$error":"#REF!"}},{"$f":"#REF!","v":{"$error":"#REF!"}}]
[{"$f":"#REF!","v":{"$error":"#REF!"}},{"$f":"IF(#REF!=\"\",\"\",#REF!)","v":{"$error":"#REF!"}},{"$f":"IF(#REF!=\"\",\"\",#REF!)","v":{"$error":"#REF!"}},{"$f":"IF(#REF!=\"\",\"\",#REF!)","v":{"$error":"#REF!"}},{"$f":"IF(#REF!=\"\",\"\",#REF!)","v":{"$error":"#REF!"}},{"$f":"IF(#REF!=\"\",\"\",#REF!)","v":{"$error":"#REF!"}},{"$f":"IF(#REF!=\"\",\"\",#REF!)","v":{"$error":"#REF!"}},{"$f":"IF(#REF!=\"\",\"\",#REF!)","v":{"$error":"#REF!"}},{"$f":"IF(#REF!=\"\",\"\",#REF!)","v":{"$error":"#REF!"}},{"$f":"IF(#REF!=\"\",\"\",#REF!)","v":{"$error":"#REF!"}},{"$f":"IF(#REF!=\"\",\"\",#REF!)","v":{"$error":"#REF!"}},{"$f":"IF(#REF!=\"\",\"\",#REF!)","v":{"$error":"#REF!"}},{"$f":"IF(#REF!=\"\",\"\",#REF!)","v":{"$error":"#REF!"}},{"$f":"IF(#REF!=\"\",\"\",#REF!)","v":{"$error":"#REF!"}},{"$f":"IF(#REF!=\"\",\"\",#REF!)","v":{"$error":"#REF!"}},{"$f":"IF(#REF!=\"\",\"\",#REF!)","v":{"$error":"#REF!"}},{"$f":"IF(#REF!=\"\",\"\",#REF!)","v":{"$error":"#REF!"}},{"$f":"IF(#REF!=\"\",\"\",#REF!)","v":{"$error":"#REF!"}},{"$f":"IF(#REF!=\"\",\"\",#REF!)","v":{"$error":"#REF!"}},{"$f":"IF(#REF!=\"\",\"\",#REF!)","v":{"$error":"#REF!"}},{"$f":"IF(#REF!=\"\",\"\",#REF!)","v":{"$error":"#REF!"}},{"$f":"IF(#REF!=\"\",\"\",#REF!)","v":{"$error":"#REF!"}},{"$f":"IF(#REF!=\"\",\"\",#REF!)","v":{"$error":"#REF!"}},{"$f":"IF(#REF!=\"\",\"\",#REF!)","v":{"$error":"#REF!"}},{"$f":"IF(#REF!=\"\",\"\",#REF!)","v":{"$error":"#REF!"}},{"$f":"IF(#REF!=\"\",\"\",#REF!)","v":{"$error":"#REF!"}},{"$f":"IF(#REF!=\"\",\"\",#REF!)","v":{"$error":"#REF!"}}]
[{"$f":"#REF!","v":{"$error":"#REF!"}},{"$f":"#REF!","v":{"$error":"#REF!"}},{"$f":"#REF!","v":{"$error":"#REF!"}},{"$f":"#REF!","v":{"$error":"#REF!"}},{"$f":"#REF!","v":{"$error":"#REF!"}},{"$f":"#REF!","v":{"$error":"#REF!"}},{"$f":"#REF!","v":{"$error":"#REF!"}},{"$f":"#REF!","v":{"$error":"#REF!"}}]
[{"$f":"#REF!","v":{"$error":"#REF!"}},{"$f":"#REF!","v":{"$error":"#REF!"}},{"$f":"#REF!","v":{"$error":"#REF!"}},{"$f":"#REF!","v":{"$error":"#REF!"}},{"$f":"#REF!","v":{"$error":"#REF!"}},{"$f":"IF(#REF!=\"\",\"\",#REF!)","v":{"$error":"#REF!"}},{"$f":"IF(#REF!=\"\",\"\",#REF!)","v":{"$error":"#REF!"}},{"$f":"IF(#REF!=\"\",\"\",#REF!)","v":{"$error":"#REF!"}}]

{"sheet":"Fresh Quality","index":5,"n_rows":848,"n_cols":26,"rows_kept":848,"cut":false,"hidden":false,"merged":[]}
[]
["Question No.",1,2,3,4,5,6,7,8,9,10,11,12,13,14,15,16.100000000000001,16.2,16.3,16.399999999999999,16.5,16.600000000000001,17,18,"Total Score","Quality Score"]
["Short Questions","Duration of the exposure ","Biological endpoint","Biological effect stated or not","Biological effect quantified or not","Appropriate controls","Control & contaminant concentration","Test acceptability criteria","Characteristics of the test organism"," Type of test media","Type of exposure","Contaminant concentrations","Parallel reference toxicant toxicity tests","Concentration–response relationship","Determine the toxicity","NOEC/LOEC or LC/EC/BEC","pH","POC","Particle size","AVS & 1-M HCl extractable metals","Dissolved contaminants","Dissolved ammonia and sulfide","Temperature","Grade or purity"]
["Marks Awarded","10 or 0","10,5 or 0","5 or 0 ","5 or 0 ","5 or 0 ","5 or 0 ","5 or 0 ","5 or 0 ","5 or 0 ","4 or 0","4 or 0","4 or 0","4 or 0","4 or 0","4 or 0","3,1,or 0","3,1,or 0","3,1,or 0","3,1,or 0","3,1,or 0","3,1,or 0","3 or 0","3 or 0"]
["Max. Possible Score",10,10,5,5,5,5,5,5,5,4,4,4,4,4,4,3,3,3,3,3,3,3,3,{"$f":"SUM(B5:X5)","v":103}]
["Category","Freshwater","Paper and data unique identifier(eg. 1-1,10-150)","1-2"]
["Scores",10,10,5,5,5,5,5,0,5,4,0,0,0,4,4,3,3,3,3,1,1,3,3,82,0.79611650485436891]
["Answers","","","","","","","","","","","","","","","","","","","","","","",""]
["Category","Freshwater","Paper and data unique identifier(eg. 1-1,10-150)","891-1"]
["Scores",10,10,5,5,5,5,0,5,5,4,0,0,0,4,4,3,0,0,3,0,0,3,3,74,0.71844660194174759]
["Answers","14 days - but IC value was taken at 6 days.","Algae growth inhibition (direct cell count using haemocytometer). Spectrophotometry. ","IC",0.5,"Milli-Q","Triplicate","","Provided from the Marine Science Laboratory of The Chinese University of Hong Kong (Hong Kong SAR, China).","","50 rpm shaking","Not stated??","","","Probit","Variability provided",7.2,"","","","","","23 degrees C","Commercial:  >98% purity"]
["Category","Freshwater","Paper and data unique identifier(eg. 1-1,10-150)","891-2"]
["Scores",10,10,5,5,5,5,0,5,5,4,0,0,0,4,4,3,0,0,3,0,0,3,3,74,0.71844660194174759]
["Answers","14 days - but IC value was taken at 6 days.","Algae growth inhibition (direct cell count using haemocytometer). Spectrophotometry. ","IC",0.5,"Milli-Q","Triplicate","","Provided from the Marine Science Laboratory of The Chinese University of Hong Kong (Hong Kong SAR, China).","","50 rpm shaking","Not stated??","","","Probit","Variability provided",7.2,"","","","","","23 degrees C","Commercial:  >98% purity"]
["Category","Freshwater","Paper and data unique identifier(eg. 1-1,10-150)","892-1"]
["Scores",10,10,5,5,5,5,0,5,5,4,4,4,4,4,4,3,0,0,0,0,0,3,3,83,0.80582524271844658]
["Answers","24 hours","Population: Growth: Inhibition of Reproduction (final-initial cell # using an electronic particle counter). ","EC",0.5,"No-toxicant control","Triplicate","","Homogeneous population of autospores (young algal cells at the beginning of a growth cycle)","Sterile inorganic nutrient medium with NO3- as a nitrogen source.","Gentle stirring","Analytically validated concentrations","Laboratory facilities allowed the\nparallel testing of up to 90 cultures.","","Statistical regression analysis","Variability for EC50. 95% CI for NOEC",6.7,"","","","","","28 degrees C","Highest available purity = 99%"]
["Category","Freshwater","Paper and data unique identifier(eg. 1-1,10-150)","892-2"]
["Scores",10,10,5,5,5,5,0,5,5,4,4,4,4,4,4,3,0,0,0,0,0,3,3,83,0.80582524271844658]
["Answers","24 hours","Population: Growth: Inhibition of Reproduction (final-initial cell # using an electronic particle counter). ","EC",0.01,"No-toxicant control","Triplicate","","Homogeneous population of autospores (young algal cells at the beginning of a growth cycle)","Sterile inorganic nutrient medium with NO3- as a nitrogen source.","Gentle stirring","Analytically validated concentrations","Laboratory facilities allowed the\nparallel testing of up to 90 cultures.","","Statistical regression analysis","Variability for EC50. 95% CI for NOEC",6.7,"","","","","","28 degrees C","Highest available purity = 99%"]
["Category","Freshwater","Paper and data unique identifier(eg. 1-1,10-150)","892-3"]
["Scores",10,10,5,5,5,5,0,5,5,4,4,4,4,4,4,3,0,0,0,0,0,3,3,83,0.80582524271844658]
["Answers","24 hours","Population: Growth: Inhibition of Reproduction (final-initial cell # using an electronic particle counter). ","NOEC","95% CI","No-toxicant control","Triplicate","","Homogeneous population of autospores (young algal cells at the beginning of a growth cycle)","Sterile inorganic nutrient medium with NO3- as a nitrogen source.","Gentle stirring","Analytically validated concentrations","Laboratory facilities allowed the\nparallel testing of up to 90 cultures.","","Statistical regression analysis","Variability for EC50. 95% CI for NOEC",6.7,"","","","","","28 degrees C","Highest available purity = 99%"]
["Category","Freshwater","Paper and data unique identifier(eg. 1-1,10-150)","893-1"]
["Scores",10,10,5,5,5,5,2,5,5,4,0,0,4,4,4,0,0,0,0,0,0,3,3,74,0.71844660194174759]
["Answers","72 hour","Population: Abundance: Cell Density counted with hemocytometer.","IC",50,"Controls","Triplicated","USEPA method","Exponential growth phase","USEPA medium","Shaken 100rpm","Nominal","","","Linear interpolation method","Variability","","","","","","","24 degrees C",0.97]
["Category","Freshwater","Paper and data unique identifier(eg. 1-1,10-150)","893-2"]
["Scores",10,10,5,5,5,5,2,5,5,4,0,0,4,4,4,0,0,0,0,0,0,3,3,74,0.71844660194174759]
["Answers","72 hour","Population: Abundance: Cell Density counted with hemocytometer.","IC",50,"Controls","Triplicated","USEPA method","Exponential growth phase","USEPA medium","Shaken 100rpm","Nominal","","","Linear interpolation method","Variability","","","","","","","24 degrees C",0.97]
["Category","Freshwater","Paper and data unique identifier(eg. 1-1,10-150)","893-3"]
["Scores",10,10,5,5,5,5,2,5,5,4,0,0,4,4,4,0,0,0,0,0,0,3,3,74,0.71844660194174759]
["Answers","72 hour","Population: Abundance: Cell Density counted with hemocytometer.","IC",0.5,"Controls","Triplicated","USEPA method","Exponential growth phase","USEPA medium","Shaken 100rpm","Nominal","","","Linear interpolation method","Variability","","","","","","","24 degrees C",0.97]
["Category","Freshwater","Paper and data unique identifier(eg. 1-1,10-150)","893-1"]
["Scores",10,10,5,5,5,5,0,5,5,4,0,0,4,4,4,3,0,1,0,0,0,3,3,76,0.73786407766990292]
["Answers","3 days","Population growth rate (final cell density - initial cell density using coulter counter). ","EC",0.5,"No toxicant control","Triplicates","","Exponential growth phase","WC medium","Bubbled with air passed through a cotton trap","Unable to find this information?!","","","Probit","No variability for EC values, but sig level was 0.05. ",7.8,"","","","","","23 degrees C","Reagent grade chemicals (99.62%)"]
["Category","Freshwater","Paper and data unique identifier(eg. 1-1,10-150)","893-2"]
["Scores",10,10,5,5,5,5,0,5,5,4,0,0,4,4,4,3,0,1,0,0,0,3,3,76,0.73786407766990292]
["Answers","3 days","Population growth rate (final cell density - initial cell density using coulter counter). ","EC",0.5,"No toxicant control","Triplicates","","Exponential growth phase","WC medium","Bubbled with air passed through a cotton trap","Unable to find this information?!","","","Probit","No variability for EC values, but sig level was 0.05. ",7.8,"","","","","","23 degrees C","Reagent grade chemicals (99.62%)"]
["Category","Freshwater","Paper and data unique identifier(eg. 1-1,10-150)","893-3"]
["Scores",10,10,5,5,5,5,0,5,5,4,0,0,4,4,4,3,0,1,0,0,0,3,3,76,0.73786407766990292]
["Answers","3 days","Population growth rate (final cell density - initial cell density using coulter counter). ","EC",0.5,"No toxicant control","Triplicates","","Exponential growth phase","WC medium","Bubbled with air passed through a cotton trap","Unable to find this information?!","","","Probit","No variability for EC values, but sig level was 0.05. ",7.8,"","","","","","23 degrees C","Reagent grade chemicals (99.62%)"]
["Category","Freshwater","Paper and data unique identifier(eg. 1-1,10-150)","893-4"]
["Scores",10,10,5,5,5,5,0,5,5,4,0,0,4,4,4,3,0,1,0,0,0,3,3,76,0.73786407766990292]
["Answers","3 days","Inhibition of growth rate: Cell counts to determine growth rates and final yields (taken as the mean of the last 3 cell counts in stationary phase). ","EC",0.5,"No toxicant control","Triplicates","","Exponential growth phase","WC medium","Bubbled with air passed through a cotton trap","Unable to find this information?!","","","Linear regression analysis","No variability for EC values, but sig level was 0.05. ",7.8,"","","","","","23 degrees C","Reagent grade chemicals (99.62%)"]
["Category","Freshwater","Paper and data unique identifier(eg. 1-1,10-150)","893-5"]
["Scores",10,10,5,5,5,5,0,5,5,4,0,0,4,4,4,3,0,1,0,0,0,3,3,76,0.73786407766990292]
["Answers","3 days","Inhibition of growth rate: Cell counts to determine growth rates and final yields (taken as the mean of the last 3 cell counts in stationary phase). ","EC",0.5,"No toxicant control","Triplicates","","Exponential growth phase","WC medium","Bubbled with air passed through a cotton trap","Unable to find this information?!","","","Linear regression analysis","No variability for EC values, but sig level was 0.05. ",7.8,"","","","","","23 degrees C","Reagent grade chemicals (99.62%)"]
["Category","Freshwater","Paper and data unique identifier(eg. 1-1,10-150)","894-1"]
["Scores",10,0,5,5,5,5,0,5,5,4,0,0,0,4,4,3,3,3,0,0,3,3,3,70,0.67961165048543692]
["Answers","96 hour","Mortality","LC",0.5,"","Triplicated","","60 days old, weight = 2-4 kg","","Water was not changed throughout the test period. Static. ","Nominal","","","Trimmed Spearman-Karber method (USEPA)","","6.2-7.0","65 mg CaCO3","65 mg CaCO3","","","5.6-7.5 mg/L","22 degrees C","Commercial grade: Atrazine + Simazine mix (250g/L / 250g/L) \"Herbimix\". "]
["Category","Freshwater","Paper and data unique identifier(eg. 1-1,10-150)","895-1"]
["Scores",10,5,5,5,0,5,2,5,0,4,0,0,0,4,4,0,0,0,0,0,0,3,3,55,0.53398058252427105]
["Answers","72 hour","Algal growth inhibition (final-initial cell count) = AREA","EC",0.5,"Unable to find this information??","Triplicate","The algal growth inhibition test was performed using the freshwater green alga Selenastrum capricornutum (NIES-35)International Organization for Standardization (1987).","","","Unable to find this information??","Unable to find this information?? Only says 'tested over at least 4 concentrations in each toxicity test'. ","","","Probit","","","","","","","","25 degrees C","99% purity"]
["Category","Freshwater","Paper and data unique identifier(eg. 1-1,10-150)","895-2"]
["Scores",10,5,5,5,0,5,2,5,0,4,0,0,0,4,4,0,0,0,0,0,0,3,3,55,0.53398058252427105]
["Answers","72 hour","Algal growth inhibition (final-initial cell count) = AREA","EC",0.5,"Unable to find this information??","Triplicate","The algal growth inhibition test was performed using the freshwater green alga Selenastrum capricornutum (NIES-35)International Organization for Standardization (1987).","","","Unable to find this information??","Unable to find this information?? Only says 'tested over at least 4 concentrations in each toxicity test'. ","","","Probit","","","","","","","","25 degrees C","99% purity"]
["Category","Freshwater","Paper and data unique identifier(eg. 1-1,10-150)","895-3"]
["Scores",10,5,5,5,0,5,2,5,0,4,0,0,0,4,4,0,0,0,0,0,0,3,3,55,0.53398058252427105]
["Answers","72 hour","Algal growth inhibition (final-initial cell count) = AREA","EC",0.5,"Unable to find this information??","Triplicate","The algal growth inhibition test was performed using the freshwater green alga Selenastrum capricornutum (NIES-35)International Organization for Standardization (1987).","","","Unable to find this information??","Unable to find this information?? Only says 'tested over at least 4 concentrations in each toxicity test'. ","","","Probit","","","","","","","","25 degrees C","99% purity"]
["Category","Freshwater","Paper and data unique identifier(eg. 1-1,10-150)","895-4"]
["Scores",10,5,5,5,0,5,2,5,0,4,0,0,0,4,4,0,0,0,0,0,0,3,3,55,0.53398058252427105]
["Answers","72 hour","Algal growth inhibition (final-initial cell count) = AREA","EC",0.5,"Unable to find this information??","Triplicate","The algal growth inhibition test was performed using the freshwater green alga Selenastrum capricornutum (NIES-35)International Organization for Standardization (1987).","","","Unable to find this information??","Unable to find this information?? Only says 'tested over at least 4 concentrations in each toxicity test'. ","","","Probit","","","","","","","","25 degrees C","99% purity"]
["Category","Freshwater","Paper and data unique identifier(eg. 1-1,10-150)","895-5"]
["Scores",10,5,5,5,0,5,2,5,0,4,0,0,0,4,4,0,0,0,0,0,0,3,3,55,0.53398058252427105]
["Answers","72 hour","Algal growth inhibition (final-initial cell count) = AREA","EC",0.5,"Unable to find this information??","Triplicate","The algal growth inhibition test was performed using the freshwater green alga Selenastrum capricornutum (NIES-35)International Organization for Standardization (1987).","","","Unable to find this information??","Unable to find this information?? Only says 'tested over at least 4 concentrations in each toxicity test'. ","","","Probit","","","","","","","","25 degrees C","99% purity"]
["Category","Freshwater","Paper and data unique identifier(eg. 1-1,10-150)","895-6"]
["Scores",10,5,5,5,0,5,2,5,0,4,0,0,0,4,4,0,0,0,0,0,0,3,3,55,0.53398058252427105]
["Answers","72 hour","Algal growth inhibition (final-initial cell count) = AREA","EC",0.5,"Unable to find this information??","Triplicate","The algal growth inhibition test was performed using the freshwater green alga Selenastrum capricornutum (NIES-35)International Organization for Standardization (1987).","","","Unable to find this information??","Unable to find this information?? Only says 'tested over at least 4 concentrations in each toxicity test'. ","","","Probit","","","","","","","","25 degrees C","99% purity"]
["Category","Freshwater","Paper and data unique identifier(eg. 1-1,10-150)","896-1"]
["Scores",10,5,0,5,5,0,2,5,5,4,4,0,0,4,4,3,3,0,0,0,3,3,3,68,0.66019417475728104]
["Answers","90 days","Mortality","","","Solvent control: acetone","Unable to find this information?","OECD","Adults; weight. ","Tap water","Flow through","Simazine concentration\nthroughout the experiment remained close to the nominal\n(±8%)","","Only one dose","","<0.05","7.81±0.26",0,"","","","(9.5±1.1mgL−1","21.93±2.08 ◦C","95% purity"]
["Category","Freshwater","Paper and data unique identifier(eg. 1-1,10-150)","896-2"]
["Scores",10,5,0,5,5,0,2,5,5,4,4,0,0,4,4,3,3,0,0,0,3,3,3,68,0.66019417475728104]
["Answers","90 days","Noticeable macroscopic response\nwas mucus hyperproduction in gills and skin.","","","Solvent control: acetone","Unable to find this information?","OECD","Adults; weight. ","Tap water","Flow through","Simazine concentration\nthroughout the experiment remained close to the nominal\n(±8%)","","Only one dose","","<0.05","7.81±0.26",0,"","","","(9.5±1.1mgL−1","21.93±2.08 ◦C","95% purity"]
["Category","Freshwater","Paper and data unique identifier(eg. 1-1,10-150)","897-1"]
["Scores",10,5,5,5,5,5,0,5,5,0,0,0,4,0,0,0,0,0,0,0,0,3,3,55,0.53398058252427105]
["Answers","48 hour","Mortality","","","Acetone solvent control","3 or 4 times with mosquito larvae from different generations.","","Fourth instar larvae (last larval stage)","Pure water, with chemical dissolved in acetone first. ","","Nominal","","","","","","","","","","","","Analytical grade. "]
["Category","Freshwater","Paper and data unique identifier(eg. 1-1,10-150)","897-2"]
["Scores",10,5,5,5,5,5,0,5,5,0,0,0,4,0,0,0,0,0,0,0,0,3,3,55,0.53398058252427105]
["Answers","48 hour","Mortality","","","Acetone solvent control","3 or 4 times with mosquito larvae from different generations.","","Fourth instar larvae (last larval stage)","Pure water, with chemical dissolved in acetone first. ","","Nominal","","","","","","","","","","","","Analytical grade. "]
["Category","Freshwater","Paper and data unique identifier(eg. 1-1,10-150)","897-3"]
["Scores",10,5,5,5,5,5,0,5,5,0,0,0,4,0,0,0,0,0,0,0,0,3,3,55,0.53398058252427105]
["Answers","48 hour","Mortality","","","Acetone solvent control","3 or 4 times with mosquito larvae from different generations.","","Fourth instar larvae (last larval stage)","Pure water, with chemical dissolved in acetone first. ","","Nominal","","","","","","","","","","","","Analytical grade. "]
["Category","Freshwater","Paper and data unique identifier(eg. 1-1,10-150)","898-1"]
["Scores",10,5,5,5,5,0,0,0,0,0,0,0,0,0,0,0,0,0,0,0,0,0,0,30,0.29126213592233008]
["Answers","24 hour","Mortality","Yes - LC50 values; No - NOEC LOEC","Yes - LC50 values; No - NOEC LOEC","Mentions \"no mortality in the control\", but doesn't specify what the control was?!","No mention. ","No mention. ","No mention. ","No mention. ","No mention. ","Nominal ? No mention. ","No mention. ","No mention. ","No mention. ","No mention. ","No mention. ","No mention. ","No mention. ","No mention. ","No mention. ","No mention. ","No mention. ","No mention. "]
["Category","Freshwater","Paper and data unique identifier(eg. 1-1,10-150)","898-2"]
["Scores",10,5,5,5,5,0,0,0,0,0,0,0,0,0,0,0,0,0,0,0,0,0,0,30,0.29126213592233008]
["Answers","13 hour","Mortality","Yes - LC50 values; No - NOEC LOEC","Yes - LC50 values; No - NOEC LOEC","Mentions \"no mortality in the control\", but doesn't specify what the control was?!","No mention. ","No mention. ","No mention. ","No mention. ","No mention. ","Nominal ? No mention. ","No mention. ","No mention. ","No mention. ","No mention. ","No mention. ","No mention. ","No mention. ","No mention. ","No mention. ","No mention. ","No mention. ","No mention. "]
["Category","Freshwater","Paper and data unique identifier(eg. 1-1,10-150)","898-3"]
["Scores",10,5,5,5,5,0,0,0,0,0,0,0,0,0,0,0,0,0,0,0,0,0,0,30,0.29126213592233008]
["Answers","11 hour","Mortality","Yes - LC50 values; No - NOEC LOEC","Yes - LC50 values; No - NOEC LOEC","Mentions \"no mortality in the control\", but doesn't specify what the control was?!","No mention. ","No mention. ","No mention. ","No mention. ","No mention. ","Nominal ? No mention. ","No mention. ","No mention. ","No mention. ","No mention. ","No mention. ","No mention. ","No mention. ","No mention. ","No mention. ","No mention. ","No mention. ","No mention. "]
["Category","Freshwater","Paper and data unique identifier(eg. 1-1,10-150)","898-4"]
["Scores",10,5,5,5,5,0,0,0,0,0,0,0,0,0,0,0,0,0,0,0,0,0,0,30,0.29126213592233008]
["Answers","5 hour","Mortality","Yes - LC50 values; No - NOEC LOEC","Yes - LC50 values; No - NOEC LOEC","Mentions \"no mortality in the control\", but doesn't specify what the control was?!","No mention. ","No mention. ","No mention. ","No mention. ","No mention. ","Nominal ? No mention. ","No mention. ","No mention. ","No mention. ","No mention. ","No mention. ","No mention. ","No mention. ","No mention. ","No mention. ","No mention. ","No mention. ","No mention. "]
["Category","Freshwater","Paper and data unique identifier(eg. 1-1,10-150)","898-5"]
["Scores",10,5,5,5,5,0,0,0,0,0,0,0,0,0,0,0,0,0,0,0,0,0,0,30,0.29126213592233008]
["Answers","24 hour","Mortality (occurred either by the consumption of the food poisoned by 2,4-D or by direct absorption).","Yes - LC50 values; No - NOEC LOEC","Yes - LC50 values; No - NOEC LOEC","Mentions \"no mortality in the control\", but doesn't specify what the control was?!","No mention. ","No mention. ","No mention. ","No mention. ","No mention. ","Nominal ? No mention. ","No mention. ","No mention. ","No mention. ","No mention. ","No mention. ","No mention. ","No mention. ","No mention. ","No mention. ","No mention. ","No mention. ","No mention. "]
["Category","Freshwater","Paper and data unique identifier(eg. 1-1,10-150)","898-6"]
["Scores",10,5,5,5,5,0,0,0,0,0,0,0,0,0,0,0,0,0,0,0,0,0,0,30,0.29126213592233008]
["Answers","38 hour","Mortality (occurred either by the consumption of the food poisoned by 2,4-D or by direct absorption).","Yes - LC50 values; No - NOEC LOEC","Yes - LC50 values; No - NOEC LOEC","Mentions \"no mortality in the control\", but doesn't specify what the control was?!","No mention. ","No mention. ","No mention. ","No mention. ","No mention. ","Nominal ? No mention. ","No mention. ","No mention. ","No mention. ","No mention. ","No mention. ","No mention. ","No mention. ","No mention. ","No mention. ","No mention. ","No mention. ","No mention. "]
["Category","Freshwater","Paper and data unique identifier(eg. 1-1,10-150)","898-7"]
["Scores",10,5,5,5,5,0,0,0,0,0,0,0,0,0,0,0,0,0,0,0,0,0,0,30,0.29126213592233008]
["Answers","21 hour","Mortality (occurred either by the consumption of the food poisoned by 2,4-D or by direct absorption).","Yes - LC50 values; No - NOEC LOEC","Yes - LC50 values; No - NOEC LOEC","Mentions \"no mortality in the control\", but doesn't specify what the control was?!","No mention. ","No mention. ","No mention. ","No mention. ","No mention. ","Nominal ? No mention. ","No mention. ","No mention. ","No mention. ","No mention. ","No mention. ","No mention. ","No mention. ","No mention. ","No mention. ","No mention. ","No mention. ","No mention. "]
["Category","Freshwater","Paper and data unique identifier(eg. 1-1,10-150)","898-8"]
["Scores",10,5,0,0,5,0,0,0,0,0,0,0,0,0,0,0,0,0,0,0,0,0,0,20,0.1941747572815534]
["Answers","30 day","Mortality (occurred either by the consumption of the food poisoned by 2,4-D or by direct absorption).","Yes - LC50 values; No - NOEC LOEC","Yes - LC50 values; No - NOEC LOEC","Mentions \"no mortality in the control\", but doesn't specify what the control was?!","No mention. ","No mention. ","No mention. ","No mention. ","No mention. ","Nominal ? No mention. ","No mention. ","No mention. ","No mention. ","No mention. ","No mention. ","No mention. ","No mention. ","No mention. ","No mention. ","No mention. ","No mention. ","No mention. "]
["Category","Freshwater","Paper and data unique identifier(eg. 1-1,10-150)","898-9"]
["Scores",10,5,0,0,5,0,0,0,0,0,0,0,0,0,0,0,0,0,0,0,0,0,0,20,0.1941747572815534]
["Answers","30 day","Mortality (occurred either by the consumption of the food poisoned by 2,4-D or by direct absorption).","Yes - LC50 values; No - NOEC LOEC","Yes - LC50 values; No - NOEC LOEC","Mentions \"no mortality in the control\", but doesn't specify what the control was?!","No mention. ","No mention. ","No mention. ","No mention. ","No mention. ","Nominal ? No mention. ","No mention. ","No mention. ","No mention. ","No mention. ","No mention. ","No mention. ","No mention. ","No mention. ","No mention. ","No mention. ","No mention. ","No mention. "]
["Category","Freshwater","Paper and data unique identifier(eg. 1-1,10-150)","900-1"]
["Scores",10,5,0,5,5,5,2,5,5,4,4,0,0,4,4,3,3,0,0,0,3,3,3,73,0.70873786407766992]
["Answers","90 days","Mortality","","","Solvent control (acetone).","","OECD","Adult fish (male and female).","Tap water - filtered.","Flow through","45 ug/L (remained close to nominal ±8%).","","","The data from the energetic parameters measurements from non-exposed and exposed groups were compared using the non-parametric Kruskal–Wallis one-way analysis of variance (ANOVA) on Ranks test, followed by All Pairwise Multiple Comparison Procedures (Dunn’s Method) for testing the significant (p ≤ 0.05) differences between the groups.","p<0.05","7.81 ± 0.26",0,"","","","9.5 ± 1.1 mg.L−1","21.93 ± 2.08◦C","95% purity"]
["Category","Freshwater","Paper and data unique identifier(eg. 1-1,10-150)","901-1"]
["Scores",10,5,0,5,5,5,0,5,5,0,4,0,4,4,4,0,0,0,0,0,0,3,3,62,0.60194174757281549]
["Answers","7 days of exposure","Growth: Fresh weight. Biomass was then calculated from freshweight data.","","","No toxicant controls","Duplicated","","2 weeks old","Hoaglands Liquid Nutrient Solution/Medium","Not stated","","","","","Variability (standard error) and p<0.05.","","","","","","","24 degrees C","99.6% purity"]
["Category","Freshwater","Paper and data unique identifier(eg. 1-1,10-150)","902-1"]
["Scores",10,5,5,5,5,5,0,5,0,0,0,0,4,4,0,3,3,0,0,0,3,3,0,60,0.58252427184466016]
["Answers","","Mortality","LC",0.5,"Viz, well water and acetone controls.","Duplicates","","Weight, size, length","","","Nominal.","","Table form","CETIS 2005","No variability around LC values","7.2-7.9",0,"","","","10.3 +/- 0.8 mg/L","98% (atrazine)",""]
["Category","Freshwater","Paper and data unique identifier(eg. 1-1,10-150)","902-2"]
["Scores",10,5,5,5,5,5,0,5,0,0,0,0,4,4,0,3,3,0,0,0,3,3,0,60,0.58252427184466016]
["Answers","","Mortality","LC",0.5,"Viz, well water and acetone controls.","Duplicates","","Weight, size, length","","","Nominal.","","Table form","CETIS 2005","No variability around LC values","7.2-7.9",0,"","","","10.3 +/- 0.8 mg/L","98% (atrazine)",""]
["Category","Freshwater","Paper and data unique identifier(eg. 1-1,10-150)","902-2"]
["Scores",10,5,5,5,5,5,0,5,0,0,0,0,4,4,0,3,3,0,0,0,3,3,0,60,0.58252427184466016]
["Answers","","Mortality","LC",0.5,"Viz, well water and acetone controls.","Duplicates","","Weight, size, length","","","Nominal.","","Table form","CETIS 2005","No variability around LC values","7.2-7.9",0,"","","","10.3 +/- 0.8 mg/L","98% (atrazine)",""]
["Category","Freshwater","Paper and data unique identifier(eg. 1-1,10-150)","902-3"]
["Scores",10,5,5,5,5,5,0,5,0,0,0,0,4,4,0,3,3,0,0,0,3,3,0,60,0.58252427184466016]
["Answers","","Mortality","LC",0.5,"Viz, well water and acetone controls.","Duplicates","","Weight, size, length","","","Nominal.","","Table form","CETIS 2005","No variability around LC values","7.2-7.9",0,"","","","10.3 +/- 0.8 mg/L","98% (atrazine)",""]
["Category","Freshwater","Paper and data unique identifier(eg. 1-1,10-150)","902-4"]
["Scores",10,5,5,5,5,5,0,5,0,0,0,0,4,4,0,3,3,0,0,0,3,3,0,60,0.58252427184466016]
["Answers","","Mortality","LC",0.5,"Viz, well water and acetone controls.","Duplicates","","Weight, size, length","","","Nominal.","","Table form","CETIS 2005","No variability around LC values","7.2-7.9",0,"","","","10.3 +/- 0.8 mg/L","98% (atrazine)",""]
["Category","Freshwater","Paper and data unique identifier(eg. 1-1,10-150)","902-5"]
["Scores",10,5,5,5,5,5,0,5,0,0,0,0,4,4,0,3,3,0,0,0,3,3,0,60,0.58252427184466016]
["Answers","","Mortality","LC",0.5,"Viz, well water and acetone controls.","Duplicates","","Weight, size, length","","","Nominal.","","Table form","CETIS 2005","No variability around LC values","7.2-7.9",0,"","","","10.3 +/- 0.8 mg/L","98% (atrazine)",""]
["Category","Freshwater","Paper and data unique identifier(eg. 1-1,10-150)","902-6"]
["Scores",10,5,5,5,5,5,0,5,0,0,0,0,4,4,0,3,3,0,0,0,3,3,0,60,0.58252427184466016]
["Answers","","Mortality","LC",0.5,"Viz, well water and acetone controls.","Duplicates","","Weight, size, length","","","Nominal.","","Table form","CETIS 2005","No variability around LC values","7.2-7.9",0,"","","","10.3 +/- 0.8 mg/L","98% (atrazine)",""]
["Category","Freshwater","Paper and data unique identifier(eg. 1-1,10-150)","902-7"]
["Scores",10,5,5,5,5,5,0,5,0,0,0,4,4,4,0,3,3,0,0,0,3,3,0,64,0.62135922330097082]
["Answers","","Mortality","LC",0.5,"Viz, well water and acetone controls.","Triplicates","","Weight, size, length","","","Nominal.","Copper","Table form","CETIS 2005","No variability around LC values","7.2-7.9",0,"","","","10.3 +/- 0.8 mg/L","98% (atrazine)",""]
["Category","Freshwater","Paper and data unique identifier(eg. 1-1,10-150)","902-8"]
["Scores",10,5,5,5,5,5,0,5,0,0,0,4,4,4,0,3,3,0,0,0,3,3,0,64,0.62135922330097082]
["Answers","","Mortality","LC",0.5,"Viz, well water and acetone controls.","Triplicates","","Weight, size, length","","","Nominal.","Copper","Table form","CETIS 2005","No variability around LC values","7.2-7.9",0,"","","","10.3 +/- 0.8 mg/L","98% (atrazine)",""]
["Category","Freshwater","Paper and data unique identifier(eg. 1-1,10-150)","902-9"]
["Scores",10,5,5,5,5,5,0,5,0,0,0,4,4,4,0,3,3,0,0,0,3,3,0,64,0.62135922330097082]
["Answers","","Mortality","LC",0.5,"Viz, well water and acetone controls.","Triplicates","","Weight, size, length","","","Nominal.","Copper","Table form","CETIS 2005","No variability around LC values","7.2-7.9",0,"","","","10.3 +/- 0.8 mg/L","98% (atrazine)",""]
["Category","Freshwater","Paper and data unique identifier(eg. 1-1,10-150)","902-10"]
["Scores",10,5,5,5,5,5,0,5,0,0,4,0,4,4,0,3,3,0,0,0,3,3,0,64,0.62135922330097082]
["Answers","","Mortality","LC",0.5,"Viz, well water and acetone controls.","Triplicates","","Weight, size, length","","","","","Table form","CETIS 2005","No variability around LC values","7.2-7.9",0,"","","","10.3 +/- 0.8 mg/L","98% (atrazine)",""]
["Category","Freshwater","Paper and data unique identifier(eg. 1-1,10-150)","902-11"]
["Scores",10,5,5,5,5,5,0,5,0,0,4,0,4,4,0,3,3,0,0,0,3,3,0,64,0.62135922330097082]
["Answers","","Mortality","LC",0.5,"Viz, well water and acetone controls.","Triplicates","","Weight, size, length","","","","","Table form","CETIS 2005","No variability around LC values","7.2-7.9",0,"","","","10.3 +/- 0.8 mg/L","98% (atrazine)",""]
["Category","Freshwater","Paper and data unique identifier(eg. 1-1,10-150)","902-12"]
["Scores",10,5,5,5,5,5,0,5,0,0,4,0,4,4,0,3,3,0,0,0,3,3,0,64,0.62135922330097082]
["Answers","","Mortality","LC",0.5,"Viz, well water and acetone controls.","Triplicates","","Weight, size, length","","","","","Table form","CETIS 2005","No variability around LC values","7.2-7.9",0,"","","","10.3 +/- 0.8 mg/L","98% (atrazine)",""]
["Category","Freshwater","Paper and data unique identifier(eg. 1-1,10-150)","902-13"]
["Scores",10,5,5,5,5,5,0,5,0,0,4,0,4,4,0,3,3,0,0,0,3,3,0,64,0.62135922330097082]
["Answers","","Mortality","LC",0.5,"Viz, well water and acetone controls.","Triplicates","","Weight, size, length","","","","","Table form","CETIS 2005","No variability around LC values","7.2-7.9",0,"","","","10.3 +/- 0.8 mg/L","98% (atrazine)",""]
["Category","Freshwater","Paper and data unique identifier(eg. 1-1,10-150)","902-14"]
["Scores",10,5,5,5,5,5,0,5,0,0,4,0,4,4,0,3,3,0,0,0,3,0,3,64,0.62135922330097082]
["Answers","","Mortality","LC",0.5,"Viz, well water and acetone controls.","Triplicates","","Weight, size, length","","","","","Table form","CETIS 2005","No variability around LC values","7.2-7.9",0,"","","","10.3 +/- 0.8 mg/L","","98% (atrazine), 97.2% (metolachlor), 99% (simazine)."]
["Category","Freshwater","Paper and data unique identifier(eg. 1-1,10-150)","902-15"]
["Scores",10,5,5,5,5,5,0,5,0,0,4,0,4,4,0,3,3,0,0,0,3,0,3,64,0.62135922330097082]
["Answers","","Mortality","LC",0.5,"Viz, well water and acetone controls.","Triplicates","","Weight, size, length","","","","","Table form","CETIS 2005","No variability around LC values","7.2-7.9",0,"","","","10.3 +/- 0.8 mg/L","","98% (atrazine), 97.2% (metolachlor), 99% (simazine)."]
["Category","Freshwater","Paper and data unique identifier(eg. 1-1,10-150)","902-16"]
["Scores",10,5,5,5,5,5,0,5,0,0,4,0,4,4,0,3,3,0,0,0,3,0,3,64,0.62135922330097082]
["Answers","","Mortality","LC",0.5,"Viz, well water and acetone controls.","Triplicates","","Weight, size, length","","","","","Table form","CETIS 2005","No variability around LC values","7.2-7.9",0,"","","","10.3 +/- 0.8 mg/L","","98% (atrazine), 97.2% (metolachlor), 99% (simazine)."]
["Category","Freshwater","Paper and data unique identifier(eg. 1-1,10-150)","902-17"]
["Scores",10,5,5,5,5,5,0,5,0,0,4,0,4,4,0,3,3,0,0,0,3,0,3,64,0.62135922330097082]
["Answers","","Mortality","LC",0.5,"Viz, well water and acetone controls.","Triplicates","","Weight, size, length","","","","","Table form","CETIS 2005","No variability around LC values","7.2-7.9",0,"","","","10.3 +/- 0.8 mg/L","","98% (atrazine), 97.2% (metolachlor), 99% (simazine)."]
["Category","Freshwater","Paper and data unique identifier(eg. 1-1,10-150)","902-18"]
["Scores",10,5,5,5,5,5,0,5,0,0,4,0,4,4,0,3,3,0,0,0,3,0,3,64,0.62135922330097082]
["Answers","","Mortality","LC",0.5,"Viz, well water and acetone controls.","Triplicates","","Weight, size, length","","","","","Table form","CETIS 2005","No variability around LC values","7.2-7.9",0,"","","","10.3 +/- 0.8 mg/L","","98% (atrazine), 97.2% (metolachlor), 99% (simazine)."]
["Category","Freshwater","Paper and data unique identifier(eg. 1-1,10-150)","902-19"]
["Scores",10,5,5,5,5,5,0,5,0,0,4,0,4,4,0,3,3,0,0,0,3,0,3,64,0.62135922330097082]
["Answers","","Mortality","LC",0.5,"Viz, well water and acetone controls.","Triplicates","","Weight, size, length","","","","","Table form","CETIS 2005","No variability around LC values","7.2-7.9",0,"","","","10.3 +/- 0.8 mg/L","","98% (atrazine), 97.2% (metolachlor), 99% (simazine)."]
["Category","Freshwater","Paper and data unique identifier(eg. 1-1,10-150)","902-20"]
["Scores",10,5,5,5,5,5,0,5,0,0,4,0,4,4,0,3,3,0,0,0,3,0,3,64,0.62135922330097082]
["Answers","","Mortality","LC",0.5,"Viz, well water and acetone controls.","Triplicates","","Weight, size, length","","","","","Table form","CETIS 2005","No variability around LC values","7.2-7.9",0,"","","","10.3 +/- 0.8 mg/L","","98% (atrazine), 97.2% (metolachlor), 99% (simazine)."]
["Category","Freshwater","Paper and data unique identifier(eg. 1-1,10-150)","902-21"]
["Scores",10,5,5,5,5,5,0,5,0,0,4,0,4,4,0,3,3,0,0,0,3,0,3,64,0.62135922330097082]
["Answers","","Mortality","LC",0.5,"Viz, well water and acetone controls.","Triplicates","","Weight, size, length","","","","","Table form","CETIS 2005","No variability around LC values","7.2-7.9",0,"","","","10.3 +/- 0.8 mg/L","","98% (atrazine), 97.2% (metolachlor), 99% (simazine)."]
["Category","Freshwater","Paper and data unique identifier(eg. 1-1,10-150)","902-10"]
["Scores",10,5,5,5,5,5,0,5,0,0,0,0,4,4,0,3,3,0,0,0,3,0,3,60,0.58252427184466016]
["Answers","","Mortality","LC",0.5,"Viz, well water and acetone controls.","Triplicates","","Weight, size, length","","","","","Table form","CETIS 2005","No variability around LC values","7.2-7.9",0,"","","","10.3 +/- 0.8 mg/L","","98% (atrazine), 97.2% (metolachlor), 99% (simazine)."]
["Category","Freshwater","Paper and data unique identifier(eg. 1-1,10-150)","902-11"]
["Scores",10,5,5,5,5,5,0,5,0,0,0,0,4,4,0,3,3,0,0,0,3,0,3,60,0.58252427184466016]
["Answers","","Mortality","LC",0.5,"Viz, well water and acetone controls.","Triplicates","","Weight, size, length","","","","","Table form","CETIS 2005","No variability around LC values","7.2-7.9",0,"","","","10.3 +/- 0.8 mg/L","","98% (atrazine), 97.2% (metolachlor), 99% (simazine)."]
["Category","Freshwater","Paper and data unique identifier(eg. 1-1,10-150)","902-12"]
["Scores",10,5,5,5,5,5,0,5,0,0,0,0,4,4,0,3,3,0,0,0,3,0,3,60,0.58252427184466016]
["Answers","","Mortality","LC",0.5,"Viz, well water and acetone controls.","Triplicates","","Weight, size, length","","","","","Table form","CETIS 2005","No variability around LC values","7.2-7.9",0,"","","","10.3 +/- 0.8 mg/L","","98% (atrazine), 97.2% (metolachlor), 99% (simazine)."]
["Category","Freshwater","Paper and data unique identifier(eg. 1-1,10-150)","902-13"]
["Scores",10,5,5,5,5,5,0,5,0,0,0,0,4,4,0,3,3,0,0,0,3,0,3,60,0.58252427184466016]
["Answers","","Mortality","LC",0.5,"Viz, well water and acetone controls.","Triplicates","","Weight, size, length","","","","","Table form","CETIS 2005","No variability around LC values","7.2-7.9",0,"","","","10.3 +/- 0.8 mg/L","","98% (atrazine), 97.2% (metolachlor), 99% (simazine)."]
["Category","Freshwater","Paper and data unique identifier(eg. 1-1,10-150)","902-14"]
["Scores",10,5,5,5,5,5,0,5,0,0,0,0,4,4,0,3,3,0,0,0,3,0,3,60,0.58252427184466016]
["Answers","","Mortality","LC",0.5,"Viz, well water and acetone controls.","Triplicates","","Weight, size, length","","","","","Table form","CETIS 2005","No variability around LC values","7.2-7.9",0,"","","","10.3 +/- 0.8 mg/L","","98% (atrazine), 97.2% (metolachlor), 99% (simazine)."]
["Category","Freshwater","Paper and data unique identifier(eg. 1-1,10-150)","902-15"]
["Scores",10,5,5,5,5,5,0,5,0,0,0,0,4,4,0,3,3,0,0,0,3,0,3,60,0.58252427184466016]
["Answers","","Mortality","LC",0.5,"Viz, well water and acetone controls.","Triplicates","","Weight, size, length","","","","","Table form","CETIS 2005","No variability around LC values","7.2-7.9",0,"","","","10.3 +/- 0.8 mg/L","","98% (atrazine), 97.2% (metolachlor), 99% (simazine)."]
["Category","Freshwater","Paper and data unique identifier(eg. 1-1,10-150)","902-16"]
["Scores",10,5,5,5,5,5,0,5,0,0,0,0,4,4,0,3,3,0,0,0,3,0,3,60,0.58252427184466016]
["Answers","","Mortality","LC",0.5,"Viz, well water and acetone controls.","Triplicates","","Weight, size, length","","","","","Table form","CETIS 2005","No variability around LC values","7.2-7.9",0,"","","","10.3 +/- 0.8 mg/L","","98% (atrazine), 97.2% (metolachlor), 99% (simazine)."]
["Category","Freshwater","Paper and data unique identifier(eg. 1-1,10-150)","902-17"]
["Scores",10,5,5,5,5,5,0,5,0,0,0,0,4,4,0,3,3,0,0,0,3,0,3,60,0.58252427184466016]
["Answers","","Mortality","LC",0.5,"Viz, well water and acetone controls.","Triplicates","","Weight, size, length","","","","","Table form","CETIS 2005","No variability around LC values","7.2-7.9",0,"","","","10.3 +/- 0.8 mg/L","","98% (atrazine), 97.2% (metolachlor), 99% (simazine)."]
["Category","Freshwater","Paper and data unique identifier(eg. 1-1,10-150)","902-18"]
["Scores",10,5,5,5,5,5,0,5,0,0,0,0,4,4,0,3,3,0,0,0,3,0,3,60,0.58252427184466016]
["Answers","","Mortality","LC",0.5,"Viz, well water and acetone controls.","Triplicates","","Weight, size, length","","","","","Table form","CETIS 2005","No variability around LC values","7.2-7.9",0,"","","","10.3 +/- 0.8 mg/L","","98% (atrazine), 97.2% (metolachlor), 99% (simazine)."]
["Category","Freshwater","Paper and data unique identifier(eg. 1-1,10-150)","902-19"]
["Scores",10,5,5,5,5,5,0,5,0,0,0,0,4,4,0,3,3,0,0,0,3,0,3,60,0.58252427184466016]
["Answers","","Mortality","LC",0.5,"Viz, well water and acetone controls.","Triplicates","","Weight, size, length","","","","","Table form","CETIS 2005","No variability around LC values","7.2-7.9",0,"","","","10.3 +/- 0.8 mg/L","","98% (atrazine), 97.2% (metolachlor), 99% (simazine)."]
["Category","Freshwater","Paper and data unique identifier(eg. 1-1,10-150)","902-20"]
["Scores",10,5,5,5,5,5,0,5,0,0,0,0,4,4,0,3,3,0,0,0,3,0,3,60,0.58252427184466016]
["Answers","","Mortality","LC",0.5,"Viz, well water and acetone controls.","Triplicates","","Weight, size, length","","","","","Table form","CETIS 2005","No variability around LC values","7.2-7.9",0,"","","","10.3 +/- 0.8 mg/L","","98% (atrazine), 97.2% (metolachlor), 99% (simazine)."]
["Category","Freshwater","Paper and data unique identifier(eg. 1-1,10-150)","902-21"]
["Scores",10,5,5,5,5,5,0,5,0,0,0,0,4,4,0,3,3,0,0,0,3,0,3,60,0.58252427184466016]
["Answers","","Mortality","LC",0.5,"Viz, well water and acetone controls.","Triplicates","","Weight, size, length","","","","","Table form","CETIS 2005","No variability around LC values","7.2-7.9",0,"","","","10.3 +/- 0.8 mg/L","","98% (atrazine), 97.2% (metolachlor), 99% (simazine)."]
["Category","Freshwater","Paper and data unique identifier(eg. 1-1,10-150)","902-22"]
["Scores",10,5,5,5,5,5,0,5,0,0,4,0,4,4,0,3,3,0,0,0,3,0,3,64,0.62135922330097082]
["Answers","","Mortality","LC",0.5,"Viz, well water and acetone controls.","Triplicates","","Weight, size, length","","","Measured","","Table form","CETIS 2005","No variability around LC values","7.2-7.9",0,"","","","10.3 +/- 0.8 mg/L","","98% (atrazine), 97.2% (metolachlor), 99% (simazine)."]
["Category","Freshwater","Paper and data unique identifier(eg. 1-1,10-150)","902-23"]
["Scores",10,5,5,5,5,5,0,5,0,0,4,0,4,4,0,3,3,0,0,0,3,0,3,64,0.62135922330097082]
["Answers","","Mortality","LC",0.5,"Viz, well water and acetone controls.","Triplicates","","Weight, size, length","","","Measured","","Table form","CETIS 2005","No variability around LC values","7.2-7.9",0,"","","","10.3 +/- 0.8 mg/L","","98% (atrazine), 97.2% (metolachlor), 99% (simazine)."]
["Category","Freshwater","Paper and data unique identifier(eg. 1-1,10-150)","902-24"]
["Scores",10,5,5,5,5,5,0,5,0,0,4,0,4,4,0,3,3,0,0,0,3,0,3,64,0.62135922330097082]
["Answers","","Mortality","LC",0.5,"Viz, well water and acetone controls.","Triplicates","","Weight, size, length","","","Measured","","Table form","CETIS 2005","No variability around LC values","7.2-7.9",0,"","","","10.3 +/- 0.8 mg/L","","98% (atrazine), 97.2% (metolachlor), 99% (simazine)."]
["Category","Freshwater","Paper and data unique identifier(eg. 1-1,10-150)","902-25"]
["Scores",10,5,5,5,5,5,0,5,0,0,4,0,4,4,0,3,3,0,0,0,3,0,3,64,0.62135922330097082]
["Answers","","Mortality","LC",0.5,"Viz, well water and acetone controls.","Triplicates","","Weight, size, length","","","Measured","","Table form","CETIS 2005","No variability around LC values","7.2-7.9",0,"","","","10.3 +/- 0.8 mg/L","","98% (atrazine), 97.2% (metolachlor), 99% (simazine)."]
["Category","Freshwater","Paper and data unique identifier(eg. 1-1,10-150)","902-26"]
["Scores",10,5,5,5,5,5,0,5,0,0,4,0,4,4,0,3,3,0,0,0,3,0,3,64,0.62135922330097082]
["Answers","","Mortality","LC",0.5,"Viz, well water and acetone controls.","Triplicates","","Weight, size, length","","","Measured","","Table form","CETIS 2005","No variability around LC values","7.2-7.9",0,"","","","10.3 +/- 0.8 mg/L","","98% (atrazine), 97.2% (metolachlor), 99% (simazine)."]
["Category","Freshwater","Paper and data unique identifier(eg. 1-1,10-150)","902-27"]
["Scores",10,5,5,5,5,5,0,5,0,0,4,0,4,4,0,3,3,0,0,0,3,0,3,64,0.62135922330097082]
["Answers","","Mortality","LC",0.5,"Viz, well water and acetone controls.","Triplicates","","Weight, size, length","","","Measured","","Table form","CETIS 2005","No variability around LC values","7.2-7.9",0,"","","","10.3 +/- 0.8 mg/L","","98% (atrazine), 97.2% (metolachlor), 99% (simazine)."]
["Category","Freshwater","Paper and data unique identifier(eg. 1-1,10-150)","902-28"]
["Scores",10,5,5,5,5,5,0,5,0,0,4,0,4,4,0,3,3,0,0,0,3,0,3,64,0.62135922330097082]
["Answers","","Mortality","LC",0.5,"Viz, well water and acetone controls.","Triplicates","","Weight, size, length","","","Measured","","Table form","CETIS 2005","No variability around LC values","7.2-7.9",0,"","","","10.3 +/- 0.8 mg/L","","98% (atrazine), 97.2% (metolachlor), 99% (simazine)."]
["Category","Freshwater","Paper and data unique identifier(eg. 1-1,10-150)","902-29"]
["Scores",10,5,5,5,5,5,0,5,0,0,4,0,4,4,0,3,3,0,0,0,3,0,3,64,0.62135922330097082]
["Answers","","Mortality","LC",0.5,"Viz, well water and acetone controls.","Triplicates","","Weight, size, length","","","Measured","","Table form","CETIS 2005","No variability around LC values","7.2-7.9",0,"","","","10.3 +/- 0.8 mg/L","","98% (atrazine), 97.2% (metolachlor), 99% (simazine)."]
["Category","Freshwater","Paper and data unique identifier(eg. 1-1,10-150)","902-30"]
["Scores",10,5,5,5,5,5,0,5,0,0,4,0,4,4,0,3,3,0,0,0,3,0,3,64,0.62135922330097082]
["Answers","","Mortality","LC",0.5,"Viz, well water and acetone controls.","Triplicates","","Weight, size, length","","","Measured","","Table form","CETIS 2005","No variability around LC values","7.2-7.9",0,"","","","10.3 +/- 0.8 mg/L","","98% (atrazine), 97.2% (metolachlor), 99% (simazine)."]
["Category","Freshwater","Paper and data unique identifier(eg. 1-1,10-150)","902-31"]
["Scores",10,5,5,5,5,5,0,5,0,0,4,0,4,4,0,3,3,0,0,0,3,0,3,64,0.62135922330097082]
["Answers","","Mortality","LC",0.5,"Viz, well water and acetone controls.","Triplicates","","Weight, size, length","","","Measured","","Table form","CETIS 2005","No variability around LC values","7.2-7.9",0,"","","","10.3 +/- 0.8 mg/L","","98% (atrazine), 97.2% (metolachlor), 99% (simazine)."]
["Category","Freshwater","Paper and data unique identifier(eg. 1-1,10-150)","902-32"]
["Scores",10,5,5,5,5,5,0,5,0,0,4,0,4,4,0,3,3,0,0,0,3,0,3,64,0.62135922330097082]
["Answers","","Mortality","LC",0.5,"Viz, well water and acetone controls.","Triplicates","","Weight, size, length","","","Measured","","Table form","CETIS 2005","No variability around LC values","7.2-7.9",0,"","","","10.3 +/- 0.8 mg/L","","98% (atrazine), 97.2% (metolachlor), 99% (simazine)."]
["Category","Freshwater","Paper and data unique identifier(eg. 1-1,10-150)","902-33"]
["Scores",10,5,5,5,5,5,0,5,0,0,4,0,4,4,0,3,3,0,0,0,3,0,3,64,0.62135922330097082]
["Answers","","Mortality","LC",0.5,"Viz, well water and acetone controls.","Triplicates","","Weight, size, length","","","Measured","","Table form","CETIS 2005","No variability around LC values","7.2-7.9",0,"","","","10.3 +/- 0.8 mg/L","","98% (atrazine), 97.2% (metolachlor), 99% (simazine)."]
["Category","Freshwater","Paper and data unique identifier(eg. 1-1,10-150)","902-34"]
["Scores",10,5,5,5,5,5,0,5,0,0,0,0,4,4,0,3,3,0,0,0,3,0,3,60,0.58252427184466016]
["Answers","","Mortality","LC",0.5,"Viz, well water and acetone controls.","Triplicates","","Weight, size, length","","","Measured","","Table form","CETIS 2005","No variability around LC values","7.2-7.9",0,"","","","10.3 +/- 0.8 mg/L","","98% (atrazine), 97.2% (metolachlor), 99% (simazine)."]
["Category","Freshwater","Paper and data unique identifier(eg. 1-1,10-150)","902-35"]
["Scores",10,5,5,5,5,5,0,5,0,0,0,0,4,4,0,3,3,0,0,0,3,0,3,60,0.58252427184466016]
["Answers","","Mortality","LC",0.5,"Viz, well water and acetone controls.","Triplicates","","Weight, size, length","","","Measured","","Table form","CETIS 2005","No variability around LC values","7.2-7.9",0,"","","","10.3 +/- 0.8 mg/L","","98% (atrazine), 97.2% (metolachlor), 99% (simazine)."]
["Category","Freshwater","Paper and data unique identifier(eg. 1-1,10-150)","902-36"]
["Scores",10,5,5,5,5,5,0,5,0,0,0,0,4,4,0,3,3,0,0,0,3,0,3,60,0.58252427184466016]
["Answers","","Mortality","LC",0.5,"Viz, well water and acetone controls.","Triplicates","","Weight, size, length","","","Measured","","Table form","CETIS 2005","No variability around LC values","7.2-7.9",0,"","","","10.3 +/- 0.8 mg/L","","98% (atrazine), 97.2% (metolachlor), 99% (simazine)."]
["Category","Freshwater","Paper and data unique identifier(eg. 1-1,10-150)","902-37"]
["Scores",10,5,5,5,5,5,0,5,0,0,0,0,4,4,0,3,3,0,0,0,3,0,3,60,0.58252427184466016]
["Answers","","Mortality","LC",0.5,"Viz, well water and acetone controls.","Triplicates","","Weight, size, length","","","Measured","","Table form","CETIS 2005","No variability around LC values","7.2-7.9",0,"","","","10.3 +/- 0.8 mg/L","","98% (atrazine), 97.2% (metolachlor), 99% (simazine)."]
["Category","Freshwater","Paper and data unique identifier(eg. 1-1,10-150)","902-38"]
["Scores",10,5,5,5,5,5,0,5,0,0,0,0,4,4,0,3,3,0,0,0,3,0,3,60,0.58252427184466016]
["Answers","","Mortality","LC",0.5,"Viz, well water and acetone controls.","Triplicates","","Weight, size, length","","","Measured","","Table form","CETIS 2005","No variability around LC values","7.2-7.9",0,"","","","10.3 +/- 0.8 mg/L","","98% (atrazine), 97.2% (metolachlor), 99% (simazine)."]
["Category","Freshwater","Paper and data unique identifier(eg. 1-1,10-150)","902-39"]
["Scores",10,5,5,5,5,5,0,5,0,0,0,0,4,4,0,3,3,0,0,0,3,0,3,60,0.58252427184466016]
["Answers","","Mortality","LC",0.5,"Viz, well water and acetone controls.","Triplicates","","Weight, size, length","","","Measured","","Table form","CETIS 2005","No variability around LC values","7.2-7.9",0,"","","","10.3 +/- 0.8 mg/L","","98% (atrazine), 97.2% (metolachlor), 99% (simazine)."]
["Category","Freshwater","Paper and data unique identifier(eg. 1-1,10-150)","902-40"]
["Scores",10,5,5,5,5,5,0,5,0,0,0,0,4,4,0,3,3,0,0,0,3,0,3,60,0.58252427184466016]
["Answers","","Mortality","LC",0.5,"Viz, well water and acetone controls.","Triplicates","","Weight, size, length","","","Measured","","Table form","CETIS 2005","No variability around LC values","7.2-7.9",0,"","","","10.3 +/- 0.8 mg/L","","98% (atrazine), 97.2% (metolachlor), 99% (simazine)."]
["Category","Freshwater","Paper and data unique identifier(eg. 1-1,10-150)","902-41"]
["Scores",10,5,5,5,5,5,0,5,0,0,0,0,4,4,0,3,3,0,0,0,3,0,3,60,0.58252427184466016]
["Answers","","Mortality","LC",0.5,"Viz, well water and acetone controls.","Triplicates","","Weight, size, length","","","Measured","","Table form","CETIS 2005","No variability around LC values","7.2-7.9",0,"","","","10.3 +/- 0.8 mg/L","","98% (atrazine), 97.2% (metolachlor), 99% (simazine)."]
["Category","Freshwater","Paper and data unique identifier(eg. 1-1,10-150)","902-42"]
["Scores",10,5,5,5,5,5,0,5,0,0,0,0,4,4,0,3,3,0,0,0,3,0,3,60,0.58252427184466016]
["Answers","","Mortality","LC",0.5,"Viz, well water and acetone controls.","Triplicates","","Weight, size, length","","","Measured","","Table form","CETIS 2005","No variability around LC values","7.2-7.9",0,"","","","10.3 +/- 0.8 mg/L","","98% (atrazine), 97.2% (metolachlor), 99% (simazine)."]
["Category","Freshwater","Paper and data unique identifier(eg. 1-1,10-150)","902-43"]
["Scores",10,5,5,5,5,5,0,5,0,0,0,0,4,4,0,3,3,0,0,0,3,0,3,60,0.58252427184466016]
["Answers","","Mortality","LC",0.5,"Viz, well water and acetone controls.","Triplicates","","Weight, size, length","","","Measured","","Table form","CETIS 2005","No variability around LC values","7.2-7.9",0,"","","","10.3 +/- 0.8 mg/L","","98% (atrazine), 97.2% (metolachlor), 99% (simazine)."]
["Category","Freshwater","Paper and data unique identifier(eg. 1-1,10-150)","902-44"]
["Scores",10,5,5,5,5,5,0,5,0,0,0,0,4,4,0,3,3,0,0,0,3,0,3,60,0.58252427184466016]
["Answers","","Mortality","LC",0.5,"Viz, well water and acetone controls.","Triplicates","","Weight, size, length","","","Measured","","Table form","CETIS 2005","No variability around LC values","7.2-7.9",0,"","","","10.3 +/- 0.8 mg/L","","98% (atrazine), 97.2% (metolachlor), 99% (simazine)."]
["Category","Freshwater","Paper and data unique identifier(eg. 1-1,10-150)","902-45"]
["Scores",10,5,5,5,5,5,0,5,0,0,0,0,4,4,0,3,3,0,0,0,3,0,3,60,0.58252427184466016]
["Answers","","Mortality","LC",0.5,"Viz, well water and acetone controls.","Triplicates","","Weight, size, length","","","Measured","","Table form","CETIS 2005","No variability around LC values","7.2-7.9",0,"","","","10.3 +/- 0.8 mg/L","","98% (atrazine), 97.2% (metolachlor), 99% (simazine)."]
["Category","Freshwater","Paper and data unique identifier(eg. 1-1,10-150)","902-46"]
["Scores",10,5,5,5,5,0,0,5,5,0,4,0,4,4,0,3,3,0,0,0,3,0,3,64,0.62135922330097004]
["Answers","","Mortality","LC",0.5,"Viz, well water and acetone controls.","Once","","Weight, size, length","","","Measured","","Table form","CETIS 2005","No variability around LC values","7.2-7.9",0,"","","","10.3 +/- 0.8 mg/L","","98% (atrazine), 97.2% (metolachlor), 99% (simazine)."]
["Category","Freshwater","Paper and data unique identifier(eg. 1-1,10-150)","902-47"]
["Scores",10,5,5,5,5,0,0,5,0,0,0,0,4,4,0,3,3,0,0,0,3,0,3,55,0.53398058252427183]
["Answers","","Mortality","LC",0.5,"Viz, well water and acetone controls.","Once","","Weight, size, length","","","Measured","","Table form","CETIS 2005","No variability around LC values","7.2-7.9",0,"","","","10.3 +/- 0.8 mg/L","","98% (atrazine), 97.2% (metolachlor), 99% (simazine)."]
["Category","Freshwater","Paper and data unique identifier(eg. 1-1,10-150)","902-48"]
["Scores",10,5,5,5,5,0,0,5,0,0,0,0,4,4,0,3,3,0,0,0,3,0,3,55,0.53398058252427183]
["Answers","","Mortality","LC",0.5,"Viz, well water and acetone controls.","Once","","Weight, size, length","","","Measured","","Table form","CETIS 2005","No variability around LC values","7.2-7.9",0,"","","","10.3 +/- 0.8 mg/L","","98% (atrazine), 97.2% (metolachlor), 99% (simazine)."]
["Category","Freshwater","Paper and data unique identifier(eg. 1-1,10-150)","902-49"]
["Scores",10,5,5,5,5,0,0,5,0,0,0,0,4,4,0,3,3,0,0,0,3,0,3,55,0.53398058252427183]
["Answers","","Mortality","LC",0.5,"Viz, well water and acetone controls.","Once","","Weight, size, length","","","Measured","","Table form","CETIS 2005","No variability around LC values","7.2-7.9",0,"","","","10.3 +/- 0.8 mg/L","","98% (atrazine), 97.2% (metolachlor), 99% (simazine)."]
["Category","Freshwater","Paper and data unique identifier(eg. 1-1,10-150)","902-50"]
["Scores",10,5,5,5,5,0,0,5,0,0,0,0,4,4,0,3,3,0,0,0,3,0,3,55,0.53398058252427183]
["Answers","","Mortality","LC",0.5,"Viz, well water and acetone controls.","Once","","Weight, size, length","","","Measured","","Table form","CETIS 2005","No variability around LC values","7.2-7.9",0,"","","","10.3 +/- 0.8 mg/L","","98% (atrazine), 97.2% (metolachlor), 99% (simazine)."]
["Category","Freshwater","Paper and data unique identifier(eg. 1-1,10-150)","902-51"]
["Scores",10,5,5,5,5,0,0,5,0,0,0,0,4,4,0,3,3,0,0,0,3,0,3,55,0.53398058252427183]
["Answers","","Mortality","LC",0.5,"Viz, well water and acetone controls.","Once","","Weight, size, length","","","Measured","","Table form","CETIS 2005","No variability around LC values","7.2-7.9",0,"","","","10.3 +/- 0.8 mg/L","","98% (atrazine), 97.2% (metolachlor), 99% (simazine)."]
["Category","Freshwater","Paper and data unique identifier(eg. 1-1,10-150)","902-52"]
["Scores",10,5,5,5,5,0,0,5,0,0,0,0,4,4,0,3,3,0,0,0,3,0,3,55,0.53398058252427183]
["Answers","","Mortality","LC",0.5,"Viz, well water and acetone controls.","Once","","Weight, size, length","","","Measured","","Table form","CETIS 2005","No variability around LC values","7.2-7.9",0,"","","","10.3 +/- 0.8 mg/L","","98% (atrazine), 97.2% (metolachlor), 99% (simazine)."]
["Category","Freshwater","Paper and data unique identifier(eg. 1-1,10-150)","902-53"]
["Scores",10,5,5,5,5,0,0,5,0,0,0,0,4,4,0,3,3,0,0,0,3,0,3,55,0.53398058252427183]
["Answers","","Mortality","LC",0.5,"Viz, well water and acetone controls.","Once","","Weight, size, length","","","Measured","","Table form","CETIS 2005","No variability around LC values","7.2-7.9",0,"","","","10.3 +/- 0.8 mg/L","","98% (atrazine), 97.2% (metolachlor), 99% (simazine)."]
["Category","Freshwater","Paper and data unique identifier(eg. 1-1,10-150)","902-54"]
["Scores",10,5,5,5,5,0,0,5,0,0,0,0,4,4,0,3,3,0,0,0,3,0,3,55,0.53398058252427183]
["Answers","","Mortality","LC",0.5,"Viz, well water and acetone controls.","Once","","Weight, size, length","","","Measured","","Table form","CETIS 2005","No variability around LC values","7.2-7.9",0,"","","","10.3 +/- 0.8 mg/L","","98% (atrazine), 97.2% (metolachlor), 99% (simazine)."]
["Category","Freshwater","Paper and data unique identifier(eg. 1-1,10-150)","902-55"]
["Scores",10,5,5,5,5,0,0,5,0,0,0,0,4,4,0,3,3,0,0,0,3,0,3,55,0.53398058252427183]
["Answers","","Mortality","LC",0.5,"Viz, well water and acetone controls.","Once","","Weight, size, length","","","Measured","","Table form","CETIS 2005","No variability around LC values","7.2-7.9",0,"","","","10.3 +/- 0.8 mg/L","","98% (atrazine), 97.2% (metolachlor), 99% (simazine)."]
["Category","Freshwater","Paper and data unique identifier(eg. 1-1,10-150)","902-56"]
["Scores",10,5,5,5,5,0,0,5,0,0,0,0,4,4,0,3,3,0,0,0,3,0,3,55,0.53398058252427183]
["Answers","","Mortality","LC",0.5,"Viz, well water and acetone controls.","Once","","Weight, size, length","","","Measured","","Table form","CETIS 2005","No variability around LC values","7.2-7.9",0,"","","","10.3 +/- 0.8 mg/L","","98% (atrazine), 97.2% (metolachlor), 99% (simazine)."]
["Category","Freshwater","Paper and data unique identifier(eg. 1-1,10-150)","902-57"]
["Scores",10,5,5,5,5,0,0,5,0,0,0,0,4,4,0,3,3,0,0,0,3,0,3,55,0.53398058252427183]
["Answers","","Mortality","LC",0.5,"Viz, well water and acetone controls.","Once","","Weight, size, length","","","Measured","","Table form","CETIS 2005","No variability around LC values","7.2-7.9",0,"","","","10.3 +/- 0.8 mg/L","","98% (atrazine), 97.2% (metolachlor), 99% (simazine)."]
["Category","Freshwater","Paper and data unique identifier(eg. 1-1,10-150)","903-1"]
["Scores",10,10,5,5,5,5,2,5,5,0,4,0,4,4,4,3,3,3,0,3,0,3,0,83,0.80582524271844658]
["Answers","13 days","Growth: Fresh weight gains during the exposure periods were calculated by subtracting the initial fresh weight from that measured following exposure.","NOAEC, LOAEC, EC50","","No toxicant controls","5 reps - Simazine; 4 reps - Bromacil","USEPA","Initial length and weights between 8.4cm and 0.22-1.97g, respectively - \"uniform size and appearance\" - they were daughter plants. ","Reconstituted very hard water","","Measured concentrations.","","","","Variability around EC data and NOAEC and LOAEC: p= 0.05.","8.2 +/-0.2","207 +/- 7 mg/L as CaCO3","207 +/- 7 mg/L as CaCO3","","826 +/- 14 mS","","25 degrees C",""]
["Category","Freshwater","Paper and data unique identifier(eg. 1-1,10-150)","903-2"]
["Scores",10,10,5,5,5,5,2,5,5,0,4,0,4,4,4,3,3,3,0,3,0,3,0,83,0.80582524271844658]
["Answers","13 days","Growth: Fresh weight gains during the exposure periods were calculated by subtracting the initial fresh weight from that measured following exposure.","NOAEC, LOAEC, EC50","","No toxicant controls","5 reps - Simazine; 4 reps - Bromacil","USEPA","Initial length and weights between 8.4cm and 0.22-1.97g, respectively - \"uniform size and appearance\" - they were daughter plants. ","Reconstituted very hard water","","Measured concentrations.","","","","Variability around EC data and NOAEC and LOAEC: p= 0.05.","8.2 +/-0.2","207 +/- 7 mg/L as CaCO3","207 +/- 7 mg/L as CaCO3","","826 +/- 14 mS","","25 degrees C",""]
["Category","Freshwater","Paper and data unique identifier(eg. 1-1,10-150)","903-3"]
["Scores",10,10,5,5,5,5,2,5,5,0,4,0,4,4,4,3,3,3,0,3,0,3,0,83,0.80582524271844658]
["Answers","13 days","Growth: Fresh weight gains during the exposure periods were calculated by subtracting the initial fresh weight from that measured following exposure.","NOAEC, LOAEC, EC50","","No toxicant controls","5 reps - Simazine; 4 reps - Bromacil","USEPA","Initial length and weights between 8.4cm and 0.22-1.97g, respectively - \"uniform size and appearance\" - they were daughter plants. ","Reconstituted very hard water","","Measured concentrations.","","","","Variability around EC data and NOAEC and LOAEC: p= 0.05.","8.2 +/-0.2","207 +/- 7 mg/L as CaCO3","207 +/- 7 mg/L as CaCO3","","826 +/- 14 mS","","25 degrees C",""]
["Category","Freshwater","Paper and data unique identifier(eg. 1-1,10-150)","903-4"]
["Scores",10,10,5,5,5,5,2,5,5,0,4,0,4,4,4,3,3,3,0,3,0,3,0,83,0.80582524271844658]
["Answers","13 days","Growth: Fresh weight gains during the exposure periods were calculated by subtracting the initial fresh weight from that measured following exposure.","NOAEC, LOAEC, EC50","","No toxicant controls","5 reps - Simazine; 4 reps - Bromacil","USEPA","Initial length and weights between 8.4cm and 0.22-1.97g, respectively - \"uniform size and appearance\" - they were daughter plants. ","Reconstituted very hard water","","Measured concentrations.","","","","Variability around EC data and NOAEC and LOAEC: p= 0.05.","8.2 +/-0.2","207 +/- 7 mg/L as CaCO3","207 +/- 7 mg/L as CaCO3","","826 +/- 14 mS","","25 degrees C",""]
["Category","Freshwater","Paper and data unique identifier(eg. 1-1,10-150)","903-5"]
["Scores",10,10,5,5,5,5,2,5,5,0,4,0,4,4,4,3,3,3,0,3,0,3,0,83,0.80582524271844658]
["Answers","13 days","Growth: Fresh weight gains during the exposure periods were calculated by subtracting the initial fresh weight from that measured following exposure.","NOAEC, LOAEC, EC50","","No toxicant controls","5 reps - Simazine; 4 reps - Bromacil","USEPA","Initial length and weights between 8.4cm and 0.22-1.97g, respectively - \"uniform size and appearance\" - they were daughter plants. ","Reconstituted very hard water","","Measured concentrations.","","","","Variability around EC data and NOAEC and LOAEC: p= 0.05.","8.2 +/-0.2","207 +/- 7 mg/L as CaCO3","207 +/- 7 mg/L as CaCO3","","826 +/- 14 mS","","25 degrees C",""]
["Category","Freshwater","Paper and data unique identifier(eg. 1-1,10-150)","903-6"]
["Scores",10,10,5,5,5,5,2,5,5,0,4,0,4,4,4,3,3,3,0,3,0,3,0,83,0.80582524271844658]
["Answers","13 days","Growth: Fresh weight gains during the exposure periods were calculated by subtracting the initial fresh weight from that measured following exposure.","NOAEC, LOAEC, EC50","","No toxicant controls","5 reps - Simazine; 4 reps - Bromacil","USEPA","Initial length and weights between 8.4cm and 0.22-1.97g, respectively - \"uniform size and appearance\" - they were daughter plants. ","Reconstituted very hard water","","Measured concentrations.","","","","Variability around EC data and NOAEC and LOAEC: p= 0.05.","8.2 +/-0.2","207 +/- 7 mg/L as CaCO3","207 +/- 7 mg/L as CaCO3","","826 +/- 14 mS","","25 degrees C",""]
["Category","Freshwater","Paper and data unique identifier(eg. 1-1,10-150)","903-7"]
["Scores",10,10,5,5,5,5,2,5,5,0,4,0,4,4,4,3,3,3,0,3,0,3,0,83,0.80582524271844658]
["Answers","","New leaf production was calculated by subtracting the initial number of leaves from the number measured at the end of the exposure and postexposure periods. ","NOAEC, LOAEC, EC50","","No toxicant controls","5 reps - Simazine; 4 reps - Bromacil","USEPA","Initial length and weights between 8.4cm and 0.22-1.97g, respectively - \"uniform size and appearance\" - they were daughter plants. ","Reconstituted very hard water","","Measured concentrations.","","","","Variability around EC data and NOAEC and LOAEC: p= 0.05.","8.2 +/-0.2","207 +/- 7 mg/L as CaCO3","207 +/- 7 mg/L as CaCO3","","826 +/- 14 mS","","25 degrees C",""]
["Category","Freshwater","Paper and data unique identifier(eg. 1-1,10-150)","903-8"]
["Scores",10,10,5,5,5,5,2,5,5,0,4,0,4,4,4,3,3,3,0,3,0,3,0,83,0.80582524271844658]
["Answers","","New leaf production was calculated by subtracting the initial number of leaves from the number measured at the end of the exposure and postexposure periods. ","NOAEC, LOAEC, EC50","","No toxicant controls","5 reps - Simazine; 4 reps - Bromacil","USEPA","Initial length and weights between 8.4cm and 0.22-1.97g, respectively - \"uniform size and appearance\" - they were daughter plants. ","Reconstituted very hard water","","Measured concentrations.","","","","Variability around EC data and NOAEC and LOAEC: p= 0.05.","8.2 +/-0.2","207 +/- 7 mg/L as CaCO3","207 +/- 7 mg/L as CaCO3","","826 +/- 14 mS","","25 degrees C",""]
["Category","Freshwater","Paper and data unique identifier(eg. 1-1,10-150)","903-9"]
["Scores",10,10,5,5,5,5,2,5,5,0,4,0,4,4,4,3,3,3,0,3,0,3,0,83,0.80582524271844658]
["Answers","","New leaf production was calculated by subtracting the initial number of leaves from the number measured at the end of the exposure and postexposure periods. ","NOAEC, LOAEC, EC50","","No toxicant controls","5 reps - Simazine; 4 reps - Bromacil","USEPA","Initial length and weights between 8.4cm and 0.22-1.97g, respectively - \"uniform size and appearance\" - they were daughter plants. ","Reconstituted very hard water","","Measured concentrations.","","","","Variability around EC data and NOAEC and LOAEC: p= 0.05.","8.2 +/-0.2","207 +/- 7 mg/L as CaCO3","207 +/- 7 mg/L as CaCO3","","826 +/- 14 mS","","25 degrees C",""]
["Category","Freshwater","Paper and data unique identifier(eg. 1-1,10-150)","903-10"]
["Scores",10,10,5,5,5,5,2,5,5,0,4,0,4,4,4,3,3,3,0,3,0,3,0,83,0.80582524271844658]
["Answers","","New leaf production was calculated by subtracting the initial number of leaves from the number measured at the end of the exposure and postexposure periods. ","NOAEC, LOAEC, EC50","","No toxicant controls","5 reps - Simazine; 4 reps - Bromacil","USEPA","Initial length and weights between 8.4cm and 0.22-1.97g, respectively - \"uniform size and appearance\" - they were daughter plants. ","Reconstituted very hard water","","Measured concentrations.","","","","Variability around EC data and NOAEC and LOAEC: p= 0.05.","8.2 +/-0.2","207 +/- 7 mg/L as CaCO3","207 +/- 7 mg/L as CaCO3","","826 +/- 14 mS","","25 degrees C",""]
["Category","Freshwater","Paper and data unique identifier(eg. 1-1,10-150)","903-11"]
["Scores",10,10,5,5,5,5,2,5,5,0,4,0,4,4,4,3,3,3,0,3,0,3,0,83,0.80582524271844658]
["Answers","","New leaf production was calculated by subtracting the initial number of leaves from the number measured at the end of the exposure and postexposure periods. ","NOAEC, LOAEC, EC50","","No toxicant controls","5 reps - Simazine; 4 reps - Bromacil","USEPA","Initial length and weights between 8.4cm and 0.22-1.97g, respectively - \"uniform size and appearance\" - they were daughter plants. ","Reconstituted very hard water","","Measured concentrations.","","","","Variability around EC data and NOAEC and LOAEC: p= 0.05.","8.2 +/-0.2","207 +/- 7 mg/L as CaCO3","207 +/- 7 mg/L as CaCO3","","826 +/- 14 mS","","25 degrees C",""]
["Category","Freshwater","Paper and data unique identifier(eg. 1-1,10-150)","903-12"]
["Scores",10,10,5,5,5,5,2,5,5,0,4,0,4,4,4,3,3,3,0,3,0,3,0,83,0.80582524271844658]
["Answers","","New leaf production was calculated by subtracting the initial number of leaves from the number measured at the end of the exposure and postexposure periods. ","NOAEC, LOAEC, EC50","","No toxicant controls","5 reps - Simazine; 4 reps - Bromacil","USEPA","Initial length and weights between 8.4cm and 0.22-1.97g, respectively - \"uniform size and appearance\" - they were daughter plants. ","Reconstituted very hard water","","Measured concentrations.","","","","Variability around EC data and NOAEC and LOAEC: p= 0.05.","8.2 +/-0.2","207 +/- 7 mg/L as CaCO3","207 +/- 7 mg/L as CaCO3","","826 +/- 14 mS","","25 degrees C",""]
["Category","Freshwater","Paper and data unique identifier(eg. 1-1,10-150)","903-13"]
["Scores",10,10,5,5,5,5,2,5,5,0,4,0,4,4,4,3,3,3,0,3,0,3,0,83,0.80582524271844658]
["Answers","","The lengths of all of the leaves per plant were summed together as an aggregate measure. Net increases in lengthwise growth were calculated by subtracting the initial length from that measured following exposure and postexposure.","NOAEC, LOAEC, EC50","","No toxicant controls","5 reps - Simazine; 4 reps - Bromacil","USEPA","Initial length and weights between 8.4cm and 0.22-1.97g, respectively - \"uniform size and appearance\" - they were daughter plants. ","Reconstituted very hard water","","Measured concentrations.","","","","Variability around EC data and NOAEC and LOAEC: p= 0.05.","8.2 +/-0.2","207 +/- 7 mg/L as CaCO3","207 +/- 7 mg/L as CaCO3","","826 +/- 14 mS","","25 degrees C",""]
["Category","Freshwater","Paper and data unique identifier(eg. 1-1,10-150)","903-14"]
["Scores",10,10,5,5,5,5,2,5,5,0,4,0,4,4,4,3,3,3,0,3,0,3,0,83,0.80582524271844658]
["Answers","","The lengths of all of the leaves per plant were summed together as an aggregate measure. Net increases in lengthwise growth were calculated by subtracting the initial length from that measured following exposure and postexposure.","NOAEC, LOAEC, EC50","","No toxicant controls","5 reps - Simazine; 4 reps - Bromacil","USEPA","Initial length and weights between 8.4cm and 0.22-1.97g, respectively - \"uniform size and appearance\" - they were daughter plants. ","Reconstituted very hard water","","Measured concentrations.","","","","Variability around EC data and NOAEC and LOAEC: p= 0.05.","8.2 +/-0.2","207 +/- 7 mg/L as CaCO3","207 +/- 7 mg/L as CaCO3","","826 +/- 14 mS","","25 degrees C",""]
["Category","Freshwater","Paper and data unique identifier(eg. 1-1,10-150)","903-15"]
["Scores",10,10,5,5,5,5,2,5,5,0,4,0,4,4,4,3,3,3,0,3,0,3,0,83,0.80582524271844658]
["Answers","","The lengths of all of the leaves per plant were summed together as an aggregate measure. Net increases in lengthwise growth were calculated by subtracting the initial length from that measured following exposure and postexposure.","NOAEC, LOAEC, EC50","","No toxicant controls","5 reps - Simazine; 4 reps - Bromacil","USEPA","Initial length and weights between 8.4cm and 0.22-1.97g, respectively - \"uniform size and appearance\" - they were daughter plants. ","Reconstituted very hard water","","Measured concentrations.","","","","Variability around EC data and NOAEC and LOAEC: p= 0.05.","8.2 +/-0.2","207 +/- 7 mg/L as CaCO3","207 +/- 7 mg/L as CaCO3","","826 +/- 14 mS","","25 degrees C",""]
["Category","Freshwater","Paper and data unique identifier(eg. 1-1,10-150)","903-16"]
["Scores",10,10,5,5,5,5,2,5,5,0,4,0,4,4,4,3,3,3,0,3,0,3,0,83,0.80582524271844658]
["Answers","","The lengths of all of the leaves per plant were summed together as an aggregate measure. Net increases in lengthwise growth were calculated by subtracting the initial length from that measured following exposure and postexposure.","NOAEC, LOAEC, EC50","","No toxicant controls","5 reps - Simazine; 4 reps - Bromacil","USEPA","Initial length and weights between 8.4cm and 0.22-1.97g, respectively - \"uniform size and appearance\" - they were daughter plants. ","Reconstituted very hard water","","Measured concentrations.","","","","Variability around EC data and NOAEC and LOAEC: p= 0.05.","8.2 +/-0.2","207 +/- 7 mg/L as CaCO3","207 +/- 7 mg/L as CaCO3","","826 +/- 14 mS","","25 degrees C",""]
["Category","Freshwater","Paper and data unique identifier(eg. 1-1,10-150)","903-17"]
["Scores",10,10,5,5,5,5,2,5,5,0,4,0,4,4,4,3,3,3,0,3,0,3,0,83,0.80582524271844658]
["Answers","","The lengths of all of the leaves per plant were summed together as an aggregate measure. Net increases in lengthwise growth were calculated by subtracting the initial length from that measured following exposure and postexposure.","NOAEC, LOAEC, EC50","","No toxicant controls","5 reps - Simazine; 4 reps - Bromacil","USEPA","Initial length and weights between 8.4cm and 0.22-1.97g, respectively - \"uniform size and appearance\" - they were daughter plants. ","Reconstituted very hard water","","Measured concentrations.","","","","Variability around EC data and NOAEC and LOAEC: p= 0.05.","8.2 +/-0.2","207 +/- 7 mg/L as CaCO3","207 +/- 7 mg/L as CaCO3","","826 +/- 14 mS","","25 degrees C",""]
["Category","Freshwater","Paper and data unique identifier(eg. 1-1,10-150)","903-18"]
["Scores",10,10,5,5,5,5,2,5,5,0,4,0,4,4,4,3,3,3,0,3,0,3,0,83,0.80582524271844658]
["Answers","","The lengths of all of the leaves per plant were summed together as an aggregate measure. Net increases in lengthwise growth were calculated by subtracting the initial length from that measured following exposure and postexposure.","NOAEC, LOAEC, EC50","","No toxicant controls","5 reps - Simazine; 4 reps - Bromacil","USEPA","Initial length and weights between 8.4cm and 0.22-1.97g, respectively - \"uniform size and appearance\" - they were daughter plants. ","Reconstituted very hard water","","Measured concentrations.","","","","Variability around EC data and NOAEC and LOAEC: p= 0.05.","8.2 +/-0.2","207 +/- 7 mg/L as CaCO3","207 +/- 7 mg/L as CaCO3","","826 +/- 14 mS","","25 degrees C",""]
["Category","Freshwater","Paper and data unique identifier(eg. 1-1,10-150)","904-1"]
["Scores",10,10,5,5,5,5,0,0,5,0,4,0,4,4,4,0,0,0,0,0,0,3,3,67,0.65048543689320393]
["Answers","7 days","Fresh weights were recorded before exposures, after 7 days of exposure, and after the 7-day postexposure period. These measurements were used to calculate the fresh weight gains during the 7-day exposure and postexposure periods.","","","No toxicant controls","Four replications","",">3-4 weeks old","Hoaglands aqueous nutrient media","Not stated","","","","","Variability (St Error) and p = 0.05","","","","","","","25 degrees C","Technical grade (99.6%)"]
["Category","Freshwater","Paper and data unique identifier(eg. 1-1,10-150)","904-2"]
["Scores",10,10,5,5,5,5,0,0,5,0,4,0,4,4,4,0,0,0,0,0,0,3,3,67,0.65048543689320393]
["Answers","7 days","Fresh weights were recorded before exposures, after 7 days of exposure, and after the 7-day postexposure period. These measurements were used to calculate the fresh weight gains during the 7-day exposure and postexposure periods.","","","No toxicant controls","Four replications","",">3-4 weeks old","Hoaglands aqueous nutrient media","Not stated","","","","","Variability (St Error) and p = 0.05","","","","","","","25 degrees C","Technical grade (99.6%)"]
["Category","Freshwater","Paper and data unique identifier(eg. 1-1,10-150)","905-1"]
["Scores",10,5,0,5,5,5,0,5,5,4,4,0,4,0,0,3,0,0,0,0,3,3,3,64,0.62135922330097082]
["Answers","90 days","Mortality","","","No toxicant control (freshwater)","Duplicates","","mean body length 22.23 +/- 1.88 cm, mean weight 297.38 +/- 55.58 g, age 1 year old.","","Semi-static","Measured daily by HPLC","","Table 2","","p<0.05",7.2,"","","","","92-98%","16.8 – 20.1 degrees C",0.995]
["Category","Freshwater","Paper and data unique identifier(eg. 1-1,10-150)","905-2"]
["Scores",10,5,0,5,5,5,0,5,5,4,4,0,4,4,4,3,0,0,0,0,3,3,3,72,0.69902912621359226]
["Answers","90 days","Mortality","","","No toxicant control (freshwater)","Duplicates","","mean body length 22.23 +/- 1.88 cm, mean weight 297.38 +/- 55.58 g, age 1 year old.","","Semi-static","Measured daily by HPLC","","Table 2","","p<0.05",7.2,"","","","","92-98%","16.8 – 20.1 degrees C",0.995]
["Category","Freshwater","Paper and data unique identifier(eg. 1-1,10-150)","905-3"]
["Scores",10,5,0,5,5,5,0,5,5,4,4,0,4,4,4,3,0,0,0,0,3,3,3,72,0.69902912621359226]
["Answers","90 days","Mortality","","","No toxicant control (freshwater)","Duplicates","","mean body length 22.23 +/- 1.88 cm, mean weight 297.38 +/- 55.58 g, age 1 year old.","","Semi-static","Measured daily by HPLC","","Table 2","","p<0.05",7.2,"","","","","92-98%","16.8 – 20.1 degrees C",0.995]
["Category","Freshwater","Paper and data unique identifier(eg. 1-1,10-150)","896-3"]
["Scores",10,0,0,0,5,0,2,5,5,4,4,0,4,0,4,3,3,0,0,0,3,3,3,58,0.56310679611650483]
["Answers","90 days","","","Worked it out as a percentage.","Solvent control: acetone","Unable to find this information?","OECD","Adults; weight.","Tap water","Flow through","Simazine concentration throughout the experiment remained close to the nominal (±8%)","Only one dose","Table 1 (Exposed and Control rows only)","","","7.81±0.26",0,"","","","(9.5±1.1mgL−1","21.93±2.08 ◦C",0.95]
["Category","Freshwater","Paper and data unique identifier(eg. 1-1,10-150)","896-4"]
["Scores",10,0,0,0,5,0,2,5,5,4,4,0,4,0,4,3,3,0,0,0,3,3,3,58,0.56310679611650483]
["Answers","90 days","","","Worked it out as a percentage.","Solvent control: acetone","Unable to find this information?","OECD","Adults; weight.","Tap water","Flow through","Simazine concentration throughout the experiment remained close to the nominal (±8%)","Only one dose","Table 1 (Exposed and Control rows only)","","","7.81±0.26",0,"","","","(9.5±1.1mgL−1","21.93±2.08 ◦C",0.95]
["Category","Freshwater","Paper and data unique identifier(eg. 1-1,10-150)","896-4"]
["Scores",10,0,0,0,5,0,2,5,5,4,4,0,4,0,4,3,3,0,0,0,3,3,3,58,0.56310679611650483]
["Answers","90 days","","","Worked it out as a percentage.","Solvent control: acetone","Unable to find this information?","OECD","Adults; weight.","Tap water","Flow through","Simazine concentration throughout the experiment remained close to the nominal (±8%)","Only one dose","Table 1 (Exposed and Control rows only)","","","7.81±0.26",0,"","","","(9.5±1.1mgL−1","21.93±2.08 ◦C",0.95]
["Category","Freshwater","Paper and data unique identifier(eg. 1-1,10-150)","896-5"]
["Scores",10,0,0,0,5,0,2,5,5,4,4,0,4,0,4,3,3,0,0,0,3,3,3,58,0.56310679611650483]
["Answers","90 days","","","Worked it out as a percentage.","Solvent control: acetone","Unable to find this information?","OECD","Adults; weight.","Tap water","Flow through","Simazine concentration throughout the experiment remained close to the nominal (±8%)","Only one dose","Table 1 (Exposed and Control rows only)","","","7.81±0.26",0,"","","","(9.5±1.1mgL−1","21.93±2.08 ◦C",0.95]
["Category","Freshwater","Paper and data unique identifier(eg. 1-1,10-150)","906-1"]
["Scores",10,10,0,5,5,5,0,0,5,0,4,0,4,4,4,3,0,0,0,3,1,3,3,69,0.66990291262135904]
["Answers","","Growth increase of main shoot","","","","3x reps for treatments; 6x reps for controls.","","","Aged tap water","","Measured to confirm nominal (0.083, 1.11, 8.47)","","Table 2","","p<0.05","","","","","","","15.0-22.7 +/-  0.2 degrees C",""]
["Category","Freshwater","Paper and data unique identifier(eg. 1-1,10-150)","906-2"]
["Scores",10,10,0,5,5,5,0,0,5,0,4,0,4,4,4,3,0,0,0,3,1,3,3,69,0.66990291262135904]
["Answers","","Growth increase of main shoot","","","","3x reps for treatments; 6x reps for controls.","","","Aged tap water","","Measured to confirm nominal (0.083, 1.11, 8.47)","","Table 2","","p<0.05","","","","","","","15.0-22.7 +/-  0.2 degrees C",""]
["Category","Freshwater","Paper and data unique identifier(eg. 1-1,10-150)","906-3"]
["Scores",10,10,0,5,5,5,0,0,5,0,4,0,4,4,4,3,0,0,0,3,1,3,3,69,0.66990291262135904]
["Answers","","Growth increase of main shoot","","","","3x reps for treatments; 6x reps for controls.","","","Aged tap water","","Measured to confirm nominal (0.083, 1.11, 8.47)","","Table 2","","p<0.05","","","","","","","15.0-22.7 +/-  0.2 degrees C",""]
["Category","Freshwater","Paper and data unique identifier(eg. 1-1,10-150)","906-4"]
["Scores",10,10,0,5,5,5,0,0,5,0,4,0,4,4,4,3,0,0,0,3,1,3,3,69,0.66990291262135904]
["Answers","","Growth increase of main shoot","","","","3x reps for treatments; 6x reps for controls.","","","Aged tap water","","Measured to confirm nominal (0.083, 1.11, 8.47)","","Table 2","","p<0.05","","","","","","","15.0-22.7 +/-  0.2 degrees C",""]
["Category","Freshwater","Paper and data unique identifier(eg. 1-1,10-150)","906-5"]
["Scores",10,10,0,5,5,5,0,0,5,0,4,0,4,4,4,3,0,0,0,3,1,3,3,69,0.66990291262135904]
["Answers","","Growth increase of main shoot","","","","3x reps for treatments; 6x reps for controls.","","","Aged tap water","","Measured to confirm nominal (0.083, 1.11, 8.47)","","Table 2","","p<0.05","","","","","","","15.0-22.7 +/-  0.2 degrees C",""]
["Category","Freshwater","Paper and data unique identifier(eg. 1-1,10-150)","906-6"]
["Scores",10,10,0,5,5,5,0,0,5,0,4,0,4,4,4,3,0,0,0,3,1,3,3,69,0.66990291262135904]
["Answers","","Growth increase of main shoot","","","","3x reps for treatments; 6x reps for controls.","","","Aged tap water","","Measured to confirm nominal (0.083, 1.11, 8.47)","","Table 2","","p<0.05","","","","","","","15.0-22.7 +/-  0.2 degrees C",""]
["Category","Freshwater","Paper and data unique identifier(eg. 1-1,10-150)","906-7"]
["Scores",10,10,0,5,5,5,0,0,5,0,4,0,4,4,4,3,0,0,0,3,1,3,3,69,0.66990291262135904]
["Answers","","Growth increase of main shoot","","","","3x reps for treatments; 6x reps for controls.","","","Aged tap water","","Measured to confirm nominal (0.083, 1.11, 8.47)","","Table 2","","p<0.05","","","","","","","15.0-22.7 +/-  0.2 degrees C",""]
["Category","Freshwater","Paper and data unique identifier(eg. 1-1,10-150)","906-8"]
["Scores",10,10,0,5,5,5,0,0,5,0,4,0,4,4,4,3,0,0,0,3,1,3,3,69,0.66990291262135904]
["Answers","","Growth increase of main shoot","","","","3x reps for treatments; 6x reps for controls.","","","Aged tap water","","Measured to confirm nominal (0.083, 1.11, 8.47)","","Table 2","","p<0.05","","","","","","","15.0-22.7 +/-  0.2 degrees C",""]
["Category","Freshwater","Paper and data unique identifier(eg. 1-1,10-150)","906-9"]
["Scores",10,10,0,5,5,5,0,0,5,0,4,0,4,4,4,3,0,0,0,3,1,3,3,69,0.66990291262135904]
["Answers","","Growth increase of main shoot","","","","3x reps for treatments; 6x reps for controls.","","","Aged tap water","","Measured to confirm nominal (0.083, 1.11, 8.47)","","Table 2","","p<0.05","","","","","","","15.0-22.7 +/-  0.2 degrees C",""]
["Category","Freshwater","Paper and data unique identifier(eg. 1-1,10-150)","906-10"]
["Scores",10,10,0,5,5,5,0,0,5,0,4,0,4,4,4,3,0,0,0,3,1,3,3,69,0.66990291262135904]
["Answers","","Growth increase of main shoot","","","","3x reps for treatments; 6x reps for controls.","","","Aged tap water","","Measured to confirm nominal (0.083, 1.11, 8.47)","","Table 2","","p<0.05","","","","","","","15.0-22.7 +/-  0.2 degrees C",""]
["Category","Freshwater","Paper and data unique identifier(eg. 1-1,10-150)","906-11"]
["Scores",10,10,0,5,5,5,0,0,5,0,4,0,4,4,4,3,0,0,0,3,1,3,3,69,0.66990291262135904]
["Answers","","Growth increase of main shoot","","","","3x reps for treatments; 6x reps for controls.","","","Aged tap water","","Measured to confirm nominal (0.083, 1.11, 8.47)","","Table 2","","p<0.05","","","","","","","15.0-22.7 +/-  0.2 degrees C",""]
["Category","Freshwater","Paper and data unique identifier(eg. 1-1,10-150)","906-12"]
["Scores",10,10,0,5,5,5,0,0,5,0,4,0,4,4,4,3,0,0,0,3,1,3,3,69,0.66990291262135904]
["Answers","","Growth increase of main shoot","","","","3x reps for treatments; 6x reps for controls.","","","Aged tap water","","Measured to confirm nominal (0.083, 1.11, 8.47)","","Table 2","","p<0.05","","","","","","","15.0-22.7 +/-  0.2 degrees C",""]
["Category","Freshwater","Paper and data unique identifier(eg. 1-1,10-150)","906-13"]
["Scores",10,10,0,5,5,5,0,0,5,0,4,0,4,4,4,3,0,0,0,3,1,3,3,69,0.66990291262135904]
["Answers","","Growth increase of main shoot","","","","3x reps for treatments; 6x reps for controls.","","","Aged tap water","","Measured to confirm nominal (0.083, 1.11, 8.47)","","Table 2","","p<0.05","","","","","","","15.0-22.7 +/-  0.2 degrees C",""]
["Category","Freshwater","Paper and data unique identifier(eg. 1-1,10-150)","906-14"]
["Scores",10,10,0,5,5,5,0,0,5,0,4,0,4,4,4,3,0,0,0,3,1,3,3,69,0.66990291262135904]
["Answers","","Growth increase of main shoot","","","","3x reps for treatments; 6x reps for controls.","","","Aged tap water","","Measured to confirm nominal (0.083, 1.11, 8.47)","","Table 2","","p<0.05","","","","","","","15.0-22.7 +/-  0.2 degrees C",""]
["Category","Freshwater","Paper and data unique identifier(eg. 1-1,10-150)","906-15"]
["Scores",10,10,0,5,5,5,0,0,5,0,4,0,4,4,4,3,0,0,0,3,1,3,3,69,0.66990291262135904]
["Answers","","Growth increase of main shoot","","","","3x reps for treatments; 6x reps for controls.","","","Aged tap water","","Measured to confirm nominal (0.083, 1.11, 8.47)","","Table 2","","p<0.05","","","","","","","15.0-22.7 +/-  0.2 degrees C",""]
["Category","Freshwater","Paper and data unique identifier(eg. 1-1,10-150)","906-16"]
["Scores",10,10,0,5,5,5,0,0,5,0,4,0,4,4,4,3,0,0,0,3,1,3,3,69,0.66990291262135904]
["Answers","","Growth increase of main shoot","","","","3x reps for treatments; 6x reps for controls.","","","Aged tap water","","Measured to confirm nominal (0.083, 1.11, 8.47)","","Table 2","","p<0.05","","","","","","","15.0-22.7 +/-  0.2 degrees C",""]
["Category","Freshwater","Paper and data unique identifier(eg. 1-1,10-150)","906-17"]
["Scores",10,10,0,5,5,5,0,0,5,0,4,0,4,4,4,3,0,0,0,3,1,3,3,69,0.66990291262135904]
["Answers","","Growth increase of main shoot","","","","3x reps for treatments; 6x reps for controls.","","","Aged tap water","","Measured to confirm nominal (0.083, 1.11, 8.47)","","Table 2","","p<0.05","","","","","","","15.0-22.7 +/-  0.2 degrees C",""]
["Category","Freshwater","Paper and data unique identifier(eg. 1-1,10-150)","906-18"]
["Scores",10,10,0,5,5,5,0,0,5,0,4,0,4,4,4,3,0,0,0,3,1,3,3,69,0.66990291262135904]
["Answers","","Growth increase of main shoot","","","","3x reps for treatments; 6x reps for controls.","","","Aged tap water","","Measured to confirm nominal (0.083, 1.11, 8.47)","","Table 2","","p<0.05","","","","","","","15.0-22.7 +/-  0.2 degrees C",""]
["Category","Freshwater","Paper and data unique identifier(eg. 1-1,10-150)","906-19"]
["Scores",10,10,0,5,5,5,0,0,5,0,4,0,4,4,4,3,0,0,0,3,1,3,3,69,0.66990291262135904]
["Answers","","Growth increase of main shoot","","","","3x reps for treatments; 6x reps for controls.","","","Aged tap water","","Measured to confirm nominal (0.083, 1.11, 8.47)","","Table 2","","p<0.05","","","","","","","15.0-22.7 +/-  0.2 degrees C",""]
["Category","Freshwater","Paper and data unique identifier(eg. 1-1,10-150)","906-20"]
["Scores",10,10,0,5,5,5,0,0,5,0,4,0,4,4,4,3,0,0,0,3,1,3,3,69,0.66990291262135904]
["Answers","","Growth increase of main shoot","","","","3x reps for treatments; 6x reps for controls.","","","Aged tap water","","Measured to confirm nominal (0.083, 1.11, 8.47)","","Table 2","","p<0.05","","","","","","","15.0-22.7 +/-  0.2 degrees C",""]
["Category","Freshwater","Paper and data unique identifier(eg. 1-1,10-150)","906-21"]
["Scores",10,10,0,5,5,5,0,0,5,0,4,0,4,4,4,3,0,0,0,3,1,3,3,69,0.66990291262135904]
["Answers","","Growth increase of main shoot","","","","3x reps for treatments; 6x reps for controls.","","","Aged tap water","","Measured to confirm nominal (0.083, 1.11, 8.47)","","Table 2","","p<0.05","","","","","","","15.0-22.7 +/-  0.2 degrees C",""]
["Category","Freshwater","Paper and data unique identifier(eg. 1-1,10-150)","906-22"]
["Scores",10,10,0,5,5,5,0,0,5,0,4,0,4,4,4,3,0,0,0,3,1,3,3,69,0.66990291262135904]
["Answers","","Growth increase of main shoot","","","","3x reps for treatments; 6x reps for controls.","","","Aged tap water","","Measured to confirm nominal (0.083, 1.11, 8.47)","","Table 2","","p<0.05","","","","","","","15.0-22.7 +/-  0.2 degrees C",""]
["Category","Freshwater","Paper and data unique identifier(eg. 1-1,10-150)","906-23"]
["Scores",10,10,0,5,5,5,0,0,5,0,4,0,4,4,4,3,0,0,0,3,1,3,3,69,0.66990291262135904]
["Answers","","Growth increase of main shoot","","","","3x reps for treatments; 6x reps for controls.","","","Aged tap water","","Measured to confirm nominal (0.083, 1.11, 8.47)","","Table 2","","p<0.05","","","","","","","15.0-22.7 +/-  0.2 degrees C",""]
["Category","Freshwater","Paper and data unique identifier(eg. 1-1,10-150)","906-24"]
["Scores",10,10,0,5,5,5,0,0,5,0,4,0,4,4,4,3,0,0,0,3,1,3,3,69,0.66990291262135904]
["Answers","","Growth increase of main shoot","","","","3x reps for treatments; 6x reps for controls.","","","Aged tap water","","Measured to confirm nominal (0.083, 1.11, 8.47)","","Table 2","","p<0.05","","","","","","","15.0-22.7 +/-  0.2 degrees C",""]
["Category","Freshwater","Paper and data unique identifier(eg. 1-1,10-150)","906-25"]
["Scores",10,10,0,5,5,5,0,0,5,0,4,0,4,4,4,3,0,0,0,3,1,3,3,69,0.66990291262135904]
["Answers","","Growth increase of main shoot","","","","3x reps for treatments; 6x reps for controls.","","","Aged tap water","","Measured to confirm nominal (0.083, 1.11, 8.47)","","Table 2","","p<0.05","","","","","","","15.0-22.7 +/-  0.2 degrees C",""]
["Category","Freshwater","Paper and data unique identifier(eg. 1-1,10-150)","906-26"]
["Scores",10,10,0,5,5,5,0,0,5,0,4,0,4,4,4,3,0,0,0,3,1,3,3,69,0.66990291262135904]
["Answers","","Growth increase of main shoot","","","","3x reps for treatments; 6x reps for controls.","","","Aged tap water","","Measured to confirm nominal (0.083, 1.11, 8.47)","","Table 2","","p<0.05","","","","","","","15.0-22.7 +/-  0.2 degrees C",""]
["Category","Freshwater","Paper and data unique identifier(eg. 1-1,10-150)","906-27"]
["Scores",10,5,0,5,5,5,0,0,5,0,4,0,4,4,4,3,0,0,0,3,1,3,3,64,0.62135922330097004]
["Answers","","","","","","3x reps for treatments; 6x reps for controls.","","","Aged tap water","","Measured to confirm nominal (0.083, 1.11, 8.47)","","Table 2","","p<0.05","","","","","","","15.0-22.7 +/-  0.2 degrees C",""]
["Category","Freshwater","Paper and data unique identifier(eg. 1-1,10-150)","906-28"]
["Scores",10,5,0,5,5,5,0,0,5,0,4,0,4,4,4,3,0,0,0,3,1,3,3,64,0.62135922330097004]
["Answers","","","","","","3x reps for treatments; 6x reps for controls.","","","Aged tap water","","Measured to confirm nominal (0.083, 1.11, 8.47)","","Table 2","","p<0.05","","","","","","","15.0-22.7 +/-  0.2 degrees C",""]
["Category","Freshwater","Paper and data unique identifier(eg. 1-1,10-150)","906-29"]
["Scores",10,5,0,5,5,5,0,0,5,0,4,0,4,4,4,3,0,0,0,3,1,3,3,64,0.62135922330097004]
["Answers","","","","","","3x reps for treatments; 6x reps for controls.","","","Aged tap water","","Measured to confirm nominal (0.083, 1.11, 8.47)","","Table 2","","p<0.05","","","","","","","15.0-22.7 +/-  0.2 degrees C",""]
["Category","Freshwater","Paper and data unique identifier(eg. 1-1,10-150)","906-30"]
["Scores",10,5,0,5,5,5,0,0,5,0,4,0,4,4,4,3,0,0,0,3,1,3,3,64,0.62135922330097004]
["Answers","","","","","","3x reps for treatments; 6x reps for controls.","","","Aged tap water","","Measured to confirm nominal (0.083, 1.11, 8.47)","","Table 2","","p<0.05","","","","","","","15.0-22.7 +/-  0.2 degrees C",""]
["Category","Freshwater","Paper and data unique identifier(eg. 1-1,10-150)","906-31"]
["Scores",10,5,0,5,5,5,0,0,5,0,4,0,4,4,4,3,0,0,0,3,1,3,3,64,0.62135922330097004]
["Answers","","","","","","3x reps for treatments; 6x reps for controls.","","","Aged tap water","","Measured to confirm nominal (0.083, 1.11, 8.47)","","Table 2","","p<0.05","","","","","","","15.0-22.7 +/-  0.2 degrees C",""]
["Category","Freshwater","Paper and data unique identifier(eg. 1-1,10-150)","906-32"]
["Scores",10,5,0,5,5,5,0,0,5,0,4,0,4,4,4,3,0,0,0,3,1,3,3,64,0.62135922330097004]
["Answers","","","","","","3x reps for treatments; 6x reps for controls.","","","Aged tap water","","Measured to confirm nominal (0.083, 1.11, 8.47)","","Table 2","","p<0.05","","","","","","","15.0-22.7 +/-  0.2 degrees C",""]
["Category","Freshwater","Paper and data unique identifier(eg. 1-1,10-150)","906-33"]
["Scores",10,5,0,5,5,5,0,0,5,0,4,0,4,4,4,3,0,0,0,3,1,3,3,64,0.62135922330097004]
["Answers","","","","","","3x reps for treatments; 6x reps for controls.","","","Aged tap water","","Measured to confirm nominal (0.083, 1.11, 8.47)","","Table 2","","p<0.05","","","","","","","15.0-22.7 +/-  0.2 degrees C",""]
["Category","Freshwater","Paper and data unique identifier(eg. 1-1,10-150)","906-34"]
["Scores",10,5,0,5,5,5,0,0,5,0,4,0,4,4,4,3,0,0,0,3,1,3,3,64,0.62135922330097004]
["Answers","","","","","","3x reps for treatments; 6x reps for controls.","","","Aged tap water","","Measured to confirm nominal (0.083, 1.11, 8.47)","","Table 2","","p<0.05","","","","","","","15.0-22.7 +/-  0.2 degrees C",""]
["Category","Freshwater","Paper and data unique identifier(eg. 1-1,10-150)","906-35"]
["Scores",10,5,0,5,5,5,0,0,5,0,4,0,4,4,4,3,0,0,0,3,1,3,3,64,0.62135922330097004]
["Answers","","","","","","3x reps for treatments; 6x reps for controls.","","","Aged tap water","","Measured to confirm nominal (0.083, 1.11, 8.47)","","Table 2","","p<0.05","","","","","","","15.0-22.7 +/-  0.2 degrees C",""]
["Category","Freshwater","Paper and data unique identifier(eg. 1-1,10-150)","906-36"]
["Scores",10,5,0,5,5,5,0,0,5,0,4,0,4,4,4,3,0,0,0,3,1,3,3,64,0.62135922330097004]
["Answers","","","","","","3x reps for treatments; 6x reps for controls.","","","Aged tap water","","Measured to confirm nominal (0.083, 1.11, 8.47)","","Table 2","","p<0.05","","","","","","","15.0-22.7 +/-  0.2 degrees C",""]
["Category","Freshwater","Paper and data unique identifier(eg. 1-1,10-150)","906-37"]
["Scores",10,5,0,5,5,5,0,0,5,0,4,0,4,4,4,3,0,0,0,3,1,3,3,64,0.62135922330097004]
["Answers","","","","","","3x reps for treatments; 6x reps for controls.","","","Aged tap water","","Measured to confirm nominal (0.083, 1.11, 8.47)","","Table 2","","p<0.05","","","","","","","15.0-22.7 +/-  0.2 degrees C",""]
["Category","Freshwater","Paper and data unique identifier(eg. 1-1,10-150)","906-38"]
["Scores",10,5,0,5,5,5,0,0,5,0,4,0,4,4,4,3,0,0,0,3,1,3,3,64,0.62135922330097004]
["Answers","","","","","","3x reps for treatments; 6x reps for controls.","","","Aged tap water","","Measured to confirm nominal (0.083, 1.11, 8.47)","","Table 2","","p<0.05","","","","","","","15.0-22.7 +/-  0.2 degrees C",""]
["Category","Freshwater","Paper and data unique identifier(eg. 1-1,10-150)","906-39"]
["Scores",10,5,0,5,5,5,0,0,5,0,4,0,4,4,4,3,0,0,0,3,1,3,3,64,0.62135922330097004]
["Answers","","","","","","3x reps for treatments; 6x reps for controls.","","","Aged tap water","","Measured to confirm nominal (0.083, 1.11, 8.47)","","Table 2","","p<0.05","","","","","","","15.0-22.7 +/-  0.2 degrees C",""]
["Category","Freshwater","Paper and data unique identifier(eg. 1-1,10-150)","906-40"]
["Scores",10,5,0,5,5,5,0,0,5,0,4,0,4,4,4,3,0,0,0,3,1,3,3,64,0.62135922330097004]
["Answers","","","","","","3x reps for treatments; 6x reps for controls.","","","Aged tap water","","Measured to confirm nominal (0.083, 1.11, 8.47)","","Table 2","","p<0.05","","","","","","","15.0-22.7 +/-  0.2 degrees C",""]
["Category","Freshwater","Paper and data unique identifier(eg. 1-1,10-150)","906-41"]
["Scores",10,5,0,5,5,5,0,0,5,0,4,0,4,4,4,3,0,0,0,3,1,3,3,64,0.62135922330097004]
["Answers","","","","","","3x reps for treatments; 6x reps for controls.","","","Aged tap water","","Measured to confirm nominal (0.083, 1.11, 8.47)","","Table 2","","p<0.05","","","","","","","15.0-22.7 +/-  0.2 degrees C",""]
["Category","Freshwater","Paper and data unique identifier(eg. 1-1,10-150)","906-42"]
["Scores",10,5,0,5,5,5,0,0,5,0,4,0,4,4,4,3,0,0,0,3,1,3,3,64,0.62135922330097004]
["Answers","","","","","","3x reps for treatments; 6x reps for controls.","","","Aged tap water","","Measured to confirm nominal (0.083, 1.11, 8.47)","","Table 2","","p<0.05","","","","","","","15.0-22.7 +/-  0.2 degrees C",""]
["Category","Freshwater","Paper and data unique identifier(eg. 1-1,10-150)","906-43"]
["Scores",10,5,0,5,5,5,0,0,5,0,4,0,4,4,4,3,0,0,0,3,1,3,3,64,0.62135922330097004]
["Answers","","","","","","3x reps for treatments; 6x reps for controls.","","","Aged tap water","","Measured to confirm nominal (0.083, 1.11, 8.47)","","Table 2","","p<0.05","","","","","","","15.0-22.7 +/-  0.2 degrees C",""]
["Category","Freshwater","Paper and data unique identifier(eg. 1-1,10-150)","906-44"]
["Scores",10,5,0,5,5,5,0,0,5,0,4,0,4,4,4,3,0,0,0,3,1,3,3,64,0.62135922330097004]
["Answers","","","","","","3x reps for treatments; 6x reps for controls.","","","Aged tap water","","Measured to confirm nominal (0.083, 1.11, 8.47)","","Table 2","","p<0.05","","","","","","","15.0-22.7 +/-  0.2 degrees C",""]
["Category","Freshwater","Paper and data unique identifier(eg. 1-1,10-150)","906-45"]
["Scores",10,5,0,5,5,5,0,0,5,0,4,0,4,4,4,3,0,0,0,3,1,3,3,64,0.62135922330097004]
["Answers","","","","","","3x reps for treatments; 6x reps for controls.","","","Aged tap water","","Measured to confirm nominal (0.083, 1.11, 8.47)","","Table 2","","p<0.05","","","","","","","15.0-22.7 +/-  0.2 degrees C",""]
["Category","Freshwater","Paper and data unique identifier(eg. 1-1,10-150)","906-46"]
["Scores",10,5,0,5,5,5,0,0,5,0,4,0,4,4,4,3,0,0,0,3,1,3,3,64,0.62135922330097004]
["Answers","","","","","","3x reps for treatments; 6x reps for controls.","","","Aged tap water","","Measured to confirm nominal (0.083, 1.11, 8.47)","","Table 2","","p<0.05","","","","","","","15.0-22.7 +/-  0.2 degrees C",""]
["Category","Freshwater","Paper and data unique identifier(eg. 1-1,10-150)","906-47"]
["Scores",10,5,0,5,5,5,0,0,5,0,4,0,4,4,4,3,0,0,0,3,1,3,3,64,0.62135922330097004]
["Answers","","","","","","3x reps for treatments; 6x reps for controls.","","","Aged tap water","","Measured to confirm nominal (0.083, 1.11, 8.47)","","Table 2","","p<0.05","","","","","","","15.0-22.7 +/-  0.2 degrees C",""]
["Category","Freshwater","Paper and data unique identifier(eg. 1-1,10-150)","906-48"]
["Scores",10,5,0,5,5,5,0,0,5,0,4,0,4,4,4,3,0,0,0,3,1,3,3,64,0.62135922330097004]
["Answers","","","","","","3x reps for treatments; 6x reps for controls.","","","Aged tap water","","Measured to confirm nominal (0.083, 1.11, 8.47)","","Table 2","","p<0.05","","","","","","","15.0-22.7 +/-  0.2 degrees C",""]
["Category","Freshwater","Paper and data unique identifier(eg. 1-1,10-150)","906-49"]
["Scores",10,5,0,5,5,5,0,0,5,0,4,0,4,4,4,3,0,0,0,3,1,3,3,64,0.62135922330097004]
["Answers","","","","","","3x reps for treatments; 6x reps for controls.","","","Aged tap water","","Measured to confirm nominal (0.083, 1.11, 8.47)","","Table 2","","p<0.05","","","","","","","15.0-22.7 +/-  0.2 degrees C",""]
["Category","Freshwater","Paper and data unique identifier(eg. 1-1,10-150)","906-50"]
["Scores",10,10,0,5,5,5,0,0,5,0,4,0,4,4,4,3,0,0,0,3,1,3,3,69,0.66990291262135904]
["Answers","","For the determination of fresh weight, the macrophytes were cut right above the sediment surface, touch-dried with a paper towel and weighed. Then they were placed in individually weighed paper bags and dried at 60  C for 48 h to determine dry weight.","","","","3x reps for treatments; 6x reps for controls.","","","Aged tap water","","Measured to confirm nominal (0.083, 1.11, 8.47)","","Table 2","","p<0.05","","","","","","","15.0-22.7 +/-  0.2 degrees C",""]
["Category","Freshwater","Paper and data unique identifier(eg. 1-1,10-150)","906-51"]
["Scores",10,10,0,5,5,5,0,0,5,0,4,0,4,4,4,3,0,0,0,3,1,3,3,69,0.66990291262135904]
["Answers","","For the determination of fresh weight, the macrophytes were cut right above the sediment surface, touch-dried with a paper towel and weighed. Then they were placed in individually weighed paper bags and dried at 60  C for 48 h to determine dry weight.","","","","3x reps for treatments; 6x reps for controls.","","","Aged tap water","","Measured to confirm nominal (0.083, 1.11, 8.47)","","Table 2","","p<0.05","","","","","","","15.0-22.7 +/-  0.2 degrees C",""]
["Category","Freshwater","Paper and data unique identifier(eg. 1-1,10-150)","906-52"]
["Scores",10,10,0,5,5,5,0,0,5,0,4,0,4,4,4,3,0,0,0,3,1,3,3,69,0.66990291262135904]
["Answers","","For the determination of fresh weight, the macrophytes were cut right above the sediment surface, touch-dried with a paper towel and weighed. Then they were placed in individually weighed paper bags and dried at 60  C for 48 h to determine dry weight.","","","","3x reps for treatments; 6x reps for controls.","","","Aged tap water","","Measured to confirm nominal (0.083, 1.11, 8.47)","","Table 2","","p<0.05","","","","","","","15.0-22.7 +/-  0.2 degrees C",""]
["Category","Freshwater","Paper and data unique identifier(eg. 1-1,10-150)","906-53"]
["Scores",10,10,0,5,5,5,0,0,5,0,4,0,4,4,4,3,0,0,0,3,1,3,3,69,0.66990291262135904]
["Answers","","For the determination of fresh weight, the macrophytes were cut right above the sediment surface, touch-dried with a paper towel and weighed. Then they were placed in individually weighed paper bags and dried at 60  C for 48 h to determine dry weight.","","","","3x reps for treatments; 6x reps for controls.","","","Aged tap water","","Measured to confirm nominal (0.083, 1.11, 8.47)","","Table 2","","p<0.05","","","","","","","15.0-22.7 +/-  0.2 degrees C",""]
["Category","Freshwater","Paper and data unique identifier(eg. 1-1,10-150)","906-54"]
["Scores",10,10,0,5,5,5,0,0,5,0,4,0,4,4,4,3,0,0,0,3,1,3,3,69,0.66990291262135904]
["Answers","","For the determination of fresh weight, the macrophytes were cut right above the sediment surface, touch-dried with a paper towel and weighed. Then they were placed in individually weighed paper bags and dried at 60  C for 48 h to determine dry weight.","","","","3x reps for treatments; 6x reps for controls.","","","Aged tap water","","Measured to confirm nominal (0.083, 1.11, 8.47)","","Table 2","","p<0.05","","","","","","","15.0-22.7 +/-  0.2 degrees C",""]
["Category","Freshwater","Paper and data unique identifier(eg. 1-1,10-150)","906-55"]
["Scores",10,10,0,5,5,5,0,0,5,0,4,0,4,4,4,3,0,0,0,3,1,3,3,69,0.66990291262135904]
["Answers","","For the determination of fresh weight, the macrophytes were cut right above the sediment surface, touch-dried with a paper towel and weighed. Then they were placed in individually weighed paper bags and dried at 60  C for 48 h to determine dry weight.","","","","3x reps for treatments; 6x reps for controls.","","","Aged tap water","","Measured to confirm nominal (0.083, 1.11, 8.47)","","Table 2","","p<0.05","","","","","","","15.0-22.7 +/-  0.2 degrees C",""]
["Category","Freshwater","Paper and data unique identifier(eg. 1-1,10-150)","906-56"]
["Scores",10,10,0,5,5,5,0,0,5,0,4,0,4,4,4,3,0,0,0,3,1,3,3,69,0.66990291262135904]
["Answers","","For the determination of fresh weight, the macrophytes were cut right above the sediment surface, touch-dried with a paper towel and weighed. Then they were placed in individually weighed paper bags and dried at 60  C for 48 h to determine dry weight.","","","","3x reps for treatments; 6x reps for controls.","","","Aged tap water","","Measured to confirm nominal (0.083, 1.11, 8.47)","","Table 2","","p<0.05","","","","","","","15.0-22.7 +/-  0.2 degrees C",""]
["Category","Freshwater","Paper and data unique identifier(eg. 1-1,10-150)","906-57"]
["Scores",10,10,0,5,5,5,0,0,5,0,4,0,4,4,4,3,0,0,0,3,1,3,3,69,0.66990291262135904]
["Answers","","For the determination of fresh weight, the macrophytes were cut right above the sediment surface, touch-dried with a paper towel and weighed. Then they were placed in individually weighed paper bags and dried at 60  C for 48 h to determine dry weight.","","","","3x reps for treatments; 6x reps for controls.","","","Aged tap water","","Measured to confirm nominal (0.083, 1.11, 8.47)","","Table 2","","p<0.05","","","","","","","15.0-22.7 +/-  0.2 degrees C",""]
["Category","Freshwater","Paper and data unique identifier(eg. 1-1,10-150)","906-58"]
["Scores",10,10,0,5,5,5,0,0,5,0,4,0,4,4,4,3,0,0,0,3,1,3,3,69,0.66990291262135904]
["Answers","","For the determination of fresh weight, the macrophytes were cut right above the sediment surface, touch-dried with a paper towel and weighed. Then they were placed in individually weighed paper bags and dried at 60  C for 48 h to determine dry weight.","","","","3x reps for treatments; 6x reps for controls.","","","Aged tap water","","Measured to confirm nominal (0.083, 1.11, 8.47)","","Table 2","","p<0.05","","","","","","","15.0-22.7 +/-  0.2 degrees C",""]
["Category","Freshwater","Paper and data unique identifier(eg. 1-1,10-150)","906-59"]
["Scores",10,10,0,5,5,5,0,0,5,0,4,0,4,4,4,3,0,0,0,3,1,3,3,69,0.66990291262135904]
["Answers","","For the determination of fresh weight, the macrophytes were cut right above the sediment surface, touch-dried with a paper towel and weighed. Then they were placed in individually weighed paper bags and dried at 60  C for 48 h to determine dry weight.","","","","3x reps for treatments; 6x reps for controls.","","","Aged tap water","","Measured to confirm nominal (0.083, 1.11, 8.47)","","Table 2","","p<0.05","","","","","","","15.0-22.7 +/-  0.2 degrees C",""]
["Category","Freshwater","Paper and data unique identifier(eg. 1-1,10-150)","906-60"]
["Scores",10,10,0,5,5,5,0,0,5,0,4,0,4,4,4,3,0,0,0,3,1,3,3,69,0.66990291262135904]
["Answers","","For the determination of fresh weight, the macrophytes were cut right above the sediment surface, touch-dried with a paper towel and weighed. Then they were placed in individually weighed paper bags and dried at 60  C for 48 h to determine dry weight.","","","","3x reps for treatments; 6x reps for controls.","","","Aged tap water","","Measured to confirm nominal (0.083, 1.11, 8.47)","","Table 2","","p<0.05","","","","","","","15.0-22.7 +/-  0.2 degrees C",""]
["Category","Freshwater","Paper and data unique identifier(eg. 1-1,10-150)","906-61"]
["Scores",10,10,0,5,5,5,0,0,5,0,4,0,4,4,4,3,0,0,0,3,1,3,3,69,0.66990291262135904]
["Answers","","For the determination of fresh weight, the macrophytes were cut right above the sediment surface, touch-dried with a paper towel and weighed. Then they were placed in individually weighed paper bags and dried at 60  C for 48 h to determine dry weight.","","","","3x reps for treatments; 6x reps for controls.","","","Aged tap water","","Measured to confirm nominal (0.083, 1.11, 8.47)","","Table 2","","p<0.05","","","","","","","15.0-22.7 +/-  0.2 degrees C",""]
["Category","Freshwater","Paper and data unique identifier(eg. 1-1,10-150)","906-62"]
["Scores",10,10,0,5,5,5,0,0,5,0,4,0,4,4,4,3,0,0,0,3,1,3,3,69,0.66990291262135904]
["Answers","","For the determination of fresh weight, the macrophytes were cut right above the sediment surface, touch-dried with a paper towel and weighed. Then they were placed in individually weighed paper bags and dried at 60  C for 48 h to determine dry weight.","","","","3x reps for treatments; 6x reps for controls.","","","Aged tap water","","Measured to confirm nominal (0.083, 1.11, 8.47)","","Table 2","","p<0.05","","","","","","","15.0-22.7 +/-  0.2 degrees C",""]
["Category","Freshwater","Paper and data unique identifier(eg. 1-1,10-150)","906-63"]
["Scores",10,10,0,5,5,5,0,0,5,0,4,0,4,4,4,3,0,0,0,3,1,3,3,69,0.66990291262135904]
["Answers","","For the determination of fresh weight, the macrophytes were cut right above the sediment surface, touch-dried with a paper towel and weighed. Then they were placed in individually weighed paper bags and dried at 60  C for 48 h to determine dry weight.","","","","3x reps for treatments; 6x reps for controls.","","","Aged tap water","","Measured to confirm nominal (0.083, 1.11, 8.47)","","Table 2","","p<0.05","","","","","","","15.0-22.7 +/-  0.2 degrees C",""]
["Category","Freshwater","Paper and data unique identifier(eg. 1-1,10-150)","906-64"]
["Scores",10,10,0,5,5,5,0,0,5,0,4,0,4,4,4,3,0,0,0,3,1,3,3,69,0.66990291262135904]
["Answers","","For the determination of fresh weight, the macrophytes were cut right above the sediment surface, touch-dried with a paper towel and weighed. Then they were placed in individually weighed paper bags and dried at 60  C for 48 h to determine dry weight.","","","","3x reps for treatments; 6x reps for controls.","","","Aged tap water","","Measured to confirm nominal (0.083, 1.11, 8.47)","","Table 2","","p<0.05","","","","","","","15.0-22.7 +/-  0.2 degrees C",""]
["Category","Freshwater","Paper and data unique identifier(eg. 1-1,10-150)","906-65"]
["Scores",10,10,0,5,5,5,0,0,5,0,4,0,4,4,4,3,0,0,0,3,1,3,3,69,0.66990291262135904]
["Answers","","For the determination of fresh weight, the macrophytes were cut right above the sediment surface, touch-dried with a paper towel and weighed. Then they were placed in individually weighed paper bags and dried at 60  C for 48 h to determine dry weight.","","","","3x reps for treatments; 6x reps for controls.","","","Aged tap water","","Measured to confirm nominal (0.083, 1.11, 8.47)","","Table 2","","p<0.05","","","","","","","15.0-22.7 +/-  0.2 degrees C",""]
["Category","Freshwater","Paper and data unique identifier(eg. 1-1,10-150)","906-66"]
["Scores",10,10,0,5,5,5,0,0,5,0,4,0,4,4,4,3,0,0,0,3,1,3,3,69,0.66990291262135904]
["Answers","","For the determination of fresh weight, the macrophytes were cut right above the sediment surface, touch-dried with a paper towel and weighed. Then they were placed in individually weighed paper bags and dried at 60  C for 48 h to determine dry weight.","","","","3x reps for treatments; 6x reps for controls.","","","Aged tap water","","Measured to confirm nominal (0.083, 1.11, 8.47)","","Table 2","","p<0.05","","","","","","","15.0-22.7 +/-  0.2 degrees C",""]
["Category","Freshwater","Paper and data unique identifier(eg. 1-1,10-150)","906-67"]
["Scores",10,10,0,5,5,5,0,0,5,0,4,0,4,4,4,3,0,0,0,3,1,3,3,69,0.66990291262135904]
["Answers","","For the determination of fresh weight, the macrophytes were cut right above the sediment surface, touch-dried with a paper towel and weighed. Then they were placed in individually weighed paper bags and dried at 60  C for 48 h to determine dry weight.","","","","3x reps for treatments; 6x reps for controls.","","","Aged tap water","","Measured to confirm nominal (0.083, 1.11, 8.47)","","Table 2","","p<0.05","","","","","","","15.0-22.7 +/-  0.2 degrees C",""]
["Category","Freshwater","Paper and data unique identifier(eg. 1-1,10-150)","906-68"]
["Scores",10,10,0,5,5,5,0,0,5,0,4,0,4,4,4,3,0,0,0,3,1,3,3,69,0.66990291262135904]
["Answers","","For the determination of fresh weight, the macrophytes were cut right above the sediment surface, touch-dried with a paper towel and weighed. Then they were placed in individually weighed paper bags and dried at 60  C for 48 h to determine dry weight.","","","","3x reps for treatments; 6x reps for controls.","","","Aged tap water","","Measured to confirm nominal (0.083, 1.11, 8.47)","","Table 2","","p<0.05","","","","","","","15.0-22.7 +/-  0.2 degrees C",""]
["Category","Freshwater","Paper and data unique identifier(eg. 1-1,10-150)","906-69"]
["Scores",10,10,0,5,5,5,0,0,5,0,4,0,4,4,4,3,0,0,0,3,1,3,3,69,0.66990291262135904]
["Answers","","For the determination of fresh weight, the macrophytes were cut right above the sediment surface, touch-dried with a paper towel and weighed. Then they were placed in individually weighed paper bags and dried at 60  C for 48 h to determine dry weight.","","","","3x reps for treatments; 6x reps for controls.","","","Aged tap water","","Measured to confirm nominal (0.083, 1.11, 8.47)","","Table 2","","p<0.05","","","","","","","15.0-22.7 +/-  0.2 degrees C",""]
["Category","Freshwater","Paper and data unique identifier(eg. 1-1,10-150)","906-70"]
["Scores",10,10,0,5,5,5,0,0,5,0,4,0,4,4,4,3,0,0,0,3,1,3,3,69,0.66990291262135904]
["Answers","","For the determination of fresh weight, the macrophytes were cut right above the sediment surface, touch-dried with a paper towel and weighed. Then they were placed in individually weighed paper bags and dried at 60  C for 48 h to determine dry weight.","","","","3x reps for treatments; 6x reps for controls.","","","Aged tap water","","Measured to confirm nominal (0.083, 1.11, 8.47)","","Table 2","","p<0.05","","","","","","","15.0-22.7 +/-  0.2 degrees C",""]
["Category","Freshwater","Paper and data unique identifier(eg. 1-1,10-150)","906-71"]
["Scores",10,10,0,5,5,5,0,0,5,0,4,0,4,4,4,3,0,0,0,3,1,3,3,69,0.66990291262135904]
["Answers","","For the determination of fresh weight, the macrophytes were cut right above the sediment surface, touch-dried with a paper towel and weighed. Then they were placed in individually weighed paper bags and dried at 60  C for 48 h to determine dry weight.","","","","3x reps for treatments; 6x reps for controls.","","","Aged tap water","","Measured to confirm nominal (0.083, 1.11, 8.47)","","Table 2","","p<0.05","","","","","","","15.0-22.7 +/-  0.2 degrees C",""]
["Category","Freshwater","Paper and data unique identifier(eg. 1-1,10-150)","906-72"]
["Scores",10,10,0,5,5,5,0,0,5,0,4,0,4,4,4,3,0,0,0,3,1,3,3,69,0.66990291262135904]
["Answers","","For the determination of fresh weight, the macrophytes were cut right above the sediment surface, touch-dried with a paper towel and weighed. Then they were placed in individually weighed paper bags and dried at 60  C for 48 h to determine dry weight.","","","","3x reps for treatments; 6x reps for controls.","","","Aged tap water","","Measured to confirm nominal (0.083, 1.11, 8.47)","","Table 2","","p<0.05","","","","","","","15.0-22.7 +/-  0.2 degrees C",""]
["Category","Freshwater","Paper and data unique identifier(eg. 1-1,10-150)","906-73"]
["Scores",10,10,0,5,5,5,0,0,5,0,4,0,4,4,4,3,0,0,0,3,1,3,3,69,0.66990291262135904]
["Answers","","For the determination of fresh weight, the macrophytes were cut right above the sediment surface, touch-dried with a paper towel and weighed. Then they were placed in individually weighed paper bags and dried at 60  C for 48 h to determine dry weight.","","","","3x reps for treatments; 6x reps for controls.","","","Aged tap water","","Measured to confirm nominal (0.083, 1.11, 8.47)","","Table 2","","p<0.05","","","","","","","15.0-22.7 +/-  0.2 degrees C",""]
["Category","Freshwater","Paper and data unique identifier(eg. 1-1,10-150)","906-74"]
["Scores",10,10,0,5,5,5,0,0,5,0,4,0,4,4,4,3,0,0,0,3,1,3,3,69,0.66990291262135904]
["Answers","","For the determination of fresh weight, the macrophytes were cut right above the sediment surface, touch-dried with a paper towel and weighed. Then they were placed in individually weighed paper bags and dried at 60  C for 48 h to determine dry weight.","","","","3x reps for treatments; 6x reps for controls.","","","Aged tap water","","Measured to confirm nominal (0.083, 1.11, 8.47)","","Table 2","","p<0.05","","","","","","","15.0-22.7 +/-  0.2 degrees C",""]
["Category","Freshwater","Paper and data unique identifier(eg. 1-1,10-150)","906-75"]
["Scores",10,10,0,5,5,5,0,0,5,0,4,0,4,4,4,3,0,0,0,3,1,3,3,69,0.66990291262135904]
["Answers","","For the determination of fresh weight, the macrophytes were cut right above the sediment surface, touch-dried with a paper towel and weighed. Then they were placed in individually weighed paper bags and dried at 60  C for 48 h to determine dry weight.","","","","3x reps for treatments; 6x reps for controls.","","","Aged tap water","","Measured to confirm nominal (0.083, 1.11, 8.47)","","Table 2","","p<0.05","","","","","","","15.0-22.7 +/-  0.2 degrees C",""]
["Category","Freshwater","Paper and data unique identifier(eg. 1-1,10-150)","906-76"]
["Scores",10,10,0,5,5,5,0,0,5,0,4,0,4,4,4,3,0,0,0,3,1,3,3,69,0.66990291262135904]
["Answers","","For the determination of fresh weight, the macrophytes were cut right above the sediment surface, touch-dried with a paper towel and weighed. Then they were placed in individually weighed paper bags and dried at 60  C for 48 h to determine dry weight.","","","","3x reps for treatments; 6x reps for controls.","","","Aged tap water","","Measured to confirm nominal (0.083, 1.11, 8.47)","","Table 2","","p<0.05","","","","","","","15.0-22.7 +/-  0.2 degrees C",""]
["Category","Freshwater","Paper and data unique identifier(eg. 1-1,10-150)","906-77"]
["Scores",10,10,0,5,5,5,0,0,5,0,4,0,4,4,4,3,0,0,0,3,1,3,3,69,0.66990291262135904]
["Answers","","For the determination of fresh weight, the macrophytes were cut right above the sediment surface, touch-dried with a paper towel and weighed. Then they were placed in individually weighed paper bags and dried at 60  C for 48 h to determine dry weight.","","","","3x reps for treatments; 6x reps for controls.","","","Aged tap water","","Measured to confirm nominal (0.083, 1.11, 8.47)","","Table 2","","p<0.05","","","","","","","15.0-22.7 +/-  0.2 degrees C",""]
["Category","Freshwater","Paper and data unique identifier(eg. 1-1,10-150)","906-78"]
["Scores",10,10,0,5,5,5,0,0,5,0,4,0,4,4,4,3,0,0,0,3,1,3,3,69,0.66990291262135904]
["Answers","","For the determination of fresh weight, the macrophytes were cut right above the sediment surface, touch-dried with a paper towel and weighed. Then they were placed in individually weighed paper bags and dried at 60  C for 48 h to determine dry weight.","","","","3x reps for treatments; 6x reps for controls.","","","Aged tap water","","Measured to confirm nominal (0.083, 1.11, 8.47)","","Table 2","","p<0.05","","","","","","","15.0-22.7 +/-  0.2 degrees C",""]
["Category","Freshwater","Paper and data unique identifier(eg. 1-1,10-150)","906-79"]
["Scores",10,10,0,5,5,5,0,0,5,0,4,0,4,4,4,3,0,0,0,3,1,3,3,69,0.66990291262135904]
["Answers","","For the determination of fresh weight, the macrophytes were cut right above the sediment surface, touch-dried with a paper towel and weighed. Then they were placed in individually weighed paper bags and dried at 60  C for 48 h to determine dry weight.","","","","3x reps for treatments; 6x reps for controls.","","","Aged tap water","","Measured to confirm nominal (0.083, 1.11, 8.47)","","Table 2","","p<0.05","","","","","","","15.0-22.7 +/-  0.2 degrees C",""]
["Category","Freshwater","Paper and data unique identifier(eg. 1-1,10-150)","906-80"]
["Scores",10,10,0,5,5,5,0,0,5,0,4,0,4,4,4,3,0,0,0,3,1,3,3,69,0.66990291262135904]
["Answers","","For the determination of fresh weight, the macrophytes were cut right above the sediment surface, touch-dried with a paper towel and weighed. Then they were placed in individually weighed paper bags and dried at 60  C for 48 h to determine dry weight.","","","","3x reps for treatments; 6x reps for controls.","","","Aged tap water","","Measured to confirm nominal (0.083, 1.11, 8.47)","","Table 2","","p<0.05","","","","","","","15.0-22.7 +/-  0.2 degrees C",""]
["Category","Freshwater","Paper and data unique identifier(eg. 1-1,10-150)","906-81"]
["Scores",10,10,0,5,5,5,0,0,5,0,4,0,4,4,4,3,0,0,0,3,1,3,3,69,0.66990291262135904]
["Answers","","For the determination of fresh weight, the macrophytes were cut right above the sediment surface, touch-dried with a paper towel and weighed. Then they were placed in individually weighed paper bags and dried at 60  C for 48 h to determine dry weight.","","","","3x reps for treatments; 6x reps for controls.","","","Aged tap water","","Measured to confirm nominal (0.083, 1.11, 8.47)","","Table 2","","p<0.05","","","","","","","15.0-22.7 +/-  0.2 degrees C",""]
["Category","Freshwater","Paper and data unique identifier(eg. 1-1,10-150)","906-82"]
["Scores",10,10,0,5,5,5,0,0,5,0,4,0,4,4,4,3,0,0,0,3,1,3,3,69,0.66990291262135904]
["Answers","","For the determination of fresh weight, the macrophytes were cut right above the sediment surface, touch-dried with a paper towel and weighed. Then they were placed in individually weighed paper bags and dried at 60  C for 48 h to determine dry weight.","","","","3x reps for treatments; 6x reps for controls.","","","Aged tap water","","Measured to confirm nominal (0.083, 1.11, 8.47)","","Table 2","","p<0.05","","","","","","","15.0-22.7 +/-  0.2 degrees C",""]
["Category","Freshwater","Paper and data unique identifier(eg. 1-1,10-150)","906-83"]
["Scores",10,10,0,5,5,5,0,0,5,0,4,0,4,4,4,3,0,0,0,3,1,3,3,69,0.66990291262135904]
["Answers","","For the determination of fresh weight, the macrophytes were cut right above the sediment surface, touch-dried with a paper towel and weighed. Then they were placed in individually weighed paper bags and dried at 60  C for 48 h to determine dry weight.","","","","3x reps for treatments; 6x reps for controls.","","","Aged tap water","","Measured to confirm nominal (0.083, 1.11, 8.47)","","Table 2","","p<0.05","","","","","","","15.0-22.7 +/-  0.2 degrees C",""]
["Category","Freshwater","Paper and data unique identifier(eg. 1-1,10-150)","906-84"]
["Scores",10,10,0,5,5,5,0,0,5,0,4,0,4,4,4,3,0,0,0,3,1,3,3,69,0.66990291262135904]
["Answers","","For the determination of fresh weight, the macrophytes were cut right above the sediment surface, touch-dried with a paper towel and weighed. Then they were placed in individually weighed paper bags and dried at 60  C for 48 h to determine dry weight.","","","","3x reps for treatments; 6x reps for controls.","","","Aged tap water","","Measured to confirm nominal (0.083, 1.11, 8.47)","","Table 2","","p<0.05","","","","","","","15.0-22.7 +/-  0.2 degrees C",""]
["Category","Freshwater","Paper and data unique identifier(eg. 1-1,10-150)","906-85"]
["Scores",10,10,0,5,5,5,0,0,5,0,4,0,4,4,4,3,0,0,0,3,1,3,3,69,0.66990291262135904]
["Answers","","For the determination of fresh weight, the macrophytes were cut right above the sediment surface, touch-dried with a paper towel and weighed. Then they were placed in individually weighed paper bags and dried at 60  C for 48 h to determine dry weight.","","","","3x reps for treatments; 6x reps for controls.","","","Aged tap water","","Measured to confirm nominal (0.083, 1.11, 8.47)","","Table 2","","p<0.05","","","","","","","15.0-22.7 +/-  0.2 degrees C",""]
["Category","Freshwater","Paper and data unique identifier(eg. 1-1,10-150)","906-86"]
["Scores",10,10,0,5,5,5,0,0,5,0,4,0,4,4,4,3,0,0,0,3,1,3,3,69,0.66990291262135904]
["Answers","","For the determination of fresh weight, the macrophytes were cut right above the sediment surface, touch-dried with a paper towel and weighed. Then they were placed in individually weighed paper bags and dried at 60  C for 48 h to determine dry weight.","","","","3x reps for treatments; 6x reps for controls.","","","Aged tap water","","Measured to confirm nominal (0.083, 1.11, 8.47)","","Table 2","","p<0.05","","","","","","","15.0-22.7 +/-  0.2 degrees C",""]
["Category","Freshwater","Paper and data unique identifier(eg. 1-1,10-150)","906-87"]
["Scores",10,10,0,5,5,5,0,0,5,0,4,0,4,4,4,3,0,0,0,3,1,3,3,69,0.66990291262135904]
["Answers","","For the determination of fresh weight, the macrophytes were cut right above the sediment surface, touch-dried with a paper towel and weighed. Then they were placed in individually weighed paper bags and dried at 60  C for 48 h to determine dry weight.","","","","3x reps for treatments; 6x reps for controls.","","","Aged tap water","","Measured to confirm nominal (0.083, 1.11, 8.47)","","Table 2","","p<0.05","","","","","","","15.0-22.7 +/-  0.2 degrees C",""]
["Category","Freshwater","Paper and data unique identifier(eg. 1-1,10-150)","906-88"]
["Scores",10,10,0,5,5,5,0,0,5,0,4,0,4,4,4,3,0,0,0,3,1,3,3,69,0.66990291262135904]
["Answers","","For the determination of fresh weight, the macrophytes were cut right above the sediment surface, touch-dried with a paper towel and weighed. Then they were placed in individually weighed paper bags and dried at 60  C for 48 h to determine dry weight.","","","","3x reps for treatments; 6x reps for controls.","","","Aged tap water","","Measured to confirm nominal (0.083, 1.11, 8.47)","","Table 2","","p<0.05","","","","","","","15.0-22.7 +/-  0.2 degrees C",""]
["Category","Freshwater","Paper and data unique identifier(eg. 1-1,10-150)","906-89"]
["Scores",10,10,0,5,5,5,0,0,5,0,4,0,4,4,4,3,0,0,0,3,1,3,3,69,0.66990291262135904]
["Answers","","For the determination of fresh weight, the macrophytes were cut right above the sediment surface, touch-dried with a paper towel and weighed. Then they were placed in individually weighed paper bags and dried at 60  C for 48 h to determine dry weight.","","","","3x reps for treatments; 6x reps for controls.","","","Aged tap water","","Measured to confirm nominal (0.083, 1.11, 8.47)","","Table 2","","p<0.05","","","","","","","15.0-22.7 +/-  0.2 degrees C",""]
["Category","Freshwater","Paper and data unique identifier(eg. 1-1,10-150)","906-90"]
["Scores",10,10,0,5,5,5,0,0,5,0,4,0,4,4,4,3,0,0,0,3,1,3,3,69,0.66990291262135904]
["Answers","","For the determination of fresh weight, the macrophytes were cut right above the sediment surface, touch-dried with a paper towel and weighed. Then they were placed in individually weighed paper bags and dried at 60  C for 48 h to determine dry weight.","","","","3x reps for treatments; 6x reps for controls.","","","Aged tap water","","Measured to confirm nominal (0.083, 1.11, 8.47)","","Table 2","","p<0.05","","","","","","","15.0-22.7 +/-  0.2 degrees C",""]
["Category","Freshwater","Paper and data unique identifier(eg. 1-1,10-150)","906-91"]
["Scores",10,10,0,5,5,5,0,0,5,0,4,0,4,4,4,3,0,0,0,3,1,3,3,69,0.66990291262135904]
["Answers","","For the determination of fresh weight, the macrophytes were cut right above the sediment surface, touch-dried with a paper towel and weighed. Then they were placed in individually weighed paper bags and dried at 60  C for 48 h to determine dry weight.","","","","3x reps for treatments; 6x reps for controls.","","","Aged tap water","","Measured to confirm nominal (0.083, 1.11, 8.47)","","Table 2","","p<0.05","","","","","","","15.0-22.7 +/-  0.2 degrees C",""]
["Category","Freshwater","Paper and data unique identifier(eg. 1-1,10-150)","906-92"]
["Scores",10,10,0,5,5,5,0,0,5,0,4,0,4,4,4,3,0,0,0,3,1,3,3,69,0.66990291262135904]
["Answers","","For the determination of fresh weight, the macrophytes were cut right above the sediment surface, touch-dried with a paper towel and weighed. Then they were placed in individually weighed paper bags and dried at 60  C for 48 h to determine dry weight.","","","","3x reps for treatments; 6x reps for controls.","","","Aged tap water","","Measured to confirm nominal (0.083, 1.11, 8.47)","","Table 2","","p<0.05","","","","","","","15.0-22.7 +/-  0.2 degrees C",""]
["Category","Freshwater","Paper and data unique identifier(eg. 1-1,10-150)","906-93"]
["Scores",10,10,0,5,5,5,0,0,5,0,4,0,4,4,4,3,0,0,0,3,1,3,3,69,0.66990291262135904]
["Answers","","For the determination of fresh weight, the macrophytes were cut right above the sediment surface, touch-dried with a paper towel and weighed. Then they were placed in individually weighed paper bags and dried at 60  C for 48 h to determine dry weight.","","","","3x reps for treatments; 6x reps for controls.","","","Aged tap water","","Measured to confirm nominal (0.083, 1.11, 8.47)","","Table 2","","p<0.05","","","","","","","15.0-22.7 +/-  0.2 degrees C",""]
["Category","Freshwater","Paper and data unique identifier(eg. 1-1,10-150)","908-1"]
["Scores",10,10,5,5,5,5,0,0,5,0,0,0,4,4,0,3,0,0,0,0,0,3,3,62,0.60194174757281549]
["Answers","14 days","","EC",0.5,"","5 reps for each treatment and control","","","Hutner 1/2 medium","","","","Fig.2","","",6.5,"","","","","","23 degrees C","Commercial grade"]
["Category","Freshwater","Paper and data unique identifier(eg. 1-1,10-150)","908-2"]
["Scores",10,10,5,5,5,5,0,0,5,0,0,0,4,4,4,3,0,0,0,0,0,3,3,66,0.64077669902912626]
["Answers","14 days","","EC",0.5,"","5 reps for each treatment and control","","","Hutner 1/2 medium","","","","Fig.2","","p<0.05",6.5,"","","","","","23 degrees C","Commercial grade"]
["Category","Freshwater","Paper and data unique identifier(eg. 1-1,10-150)","908-3"]
["Scores",10,10,5,5,5,5,0,0,5,0,0,0,4,4,4,3,0,0,0,0,0,3,3,66,0.64077669902912626]
["Answers","14 days","","EC",0.5,"","5 reps for each treatment and control","","","Hutner 1/2 medium","","","","Fig.2","","p<0.05",6.5,"","","","","","23 degrees C","Commercial grade"]
["Category","Freshwater","Paper and data unique identifier(eg. 1-1,10-150)","908-4"]
["Scores",10,10,5,5,5,5,0,0,5,0,0,0,4,4,0,3,0,0,0,0,0,3,3,62,0.60194174757281549]
["Answers","14 days","","EC",0.5,"","5 reps for each treatment and control","","","Hutner 1/2 medium","","","","Fig.2","","",6.5,"","","","","","23 degrees C","Commercial grade"]
["Category","Freshwater","Paper and data unique identifier(eg. 1-1,10-150)","908-5"]
["Scores",10,10,5,5,5,5,0,0,5,0,0,0,4,4,4,3,0,0,0,0,0,3,3,66,0.64077669902912626]
["Answers","14 days","","EC",0.5,"","5 reps for each treatment and control","","","Hutner 1/2 medium","","","","Fig.2","","p<0.05",6.5,"","","","","","23 degrees C","Commercial grade"]
["Category","Freshwater","Paper and data unique identifier(eg. 1-1,10-150)","908-6"]
["Scores",10,10,5,5,5,5,0,0,5,0,0,0,4,4,4,3,0,0,0,0,0,3,3,66,0.64077669902912626]
["Answers","14 days","","EC",0.5,"","5 reps for each treatment and control","","","Hutner 1/2 medium","","","","Fig.2","","p<0.05",6.5,"","","","","","23 degrees C","Commercial grade"]
["Category","Freshwater","Paper and data unique identifier(eg. 1-1,10-150)","910-1"]
["Scores",10,5,0,5,5,5,0,5,5,4,4,0,0,0,0,0,0,0,0,0,3,3,3,57,0.55339805825242705]
["Answers","60 days","Mortality","","","No toxicant control","Duplicates","","1 year old. Mean body length 21.31 ± 2.05 cm, mean weight 282.05 ± 38.08 g).","Freshwater with continuous aeration","Semi-static","Measured","","","","p<0.05","7.5 ± 0.4","","","","","90–96% saturation","18.4–21.2 ◦C","chemical purity 99.5%"]
["Category","Freshwater","Paper and data unique identifier(eg. 1-1,10-150)","911-1"]
["Scores",10,10,5,5,5,5,2,5,5,4,4,0,4,4,4,1,0,0,0,0,0,3,3,79,0.76699029126213591]
["Answers","","Mortality - immobile and if there is no responce to probing with a glass rod","LC",0.5,"No toxicant control and solvent control","Triplicate","OECD","5th-8th stage juvenile crayfish","Freshwater with physciochemical parameters measured and stated.","Semi-static (gently aerated). Static renewal","Measured values.","","","Probit","95% CI","","","","","","","18.1-19.6 degrees C","99.5% purity"]
["Category","Freshwater","Paper and data unique identifier(eg. 1-1,10-150)","911-2"]
["Scores",10,10,5,5,5,5,2,5,5,4,4,0,4,4,4,1,0,0,0,0,0,3,3,79,0.76699029126213591]
["Answers","","Mortality - immobile and if there is no responce to probing with a glass rod","LC",0.5,"No toxicant control and solvent control","Triplicate","OECD","5th-8th stage juvenile crayfish","Freshwater with physciochemical parameters measured and stated.","Semi-static (gently aerated). Static renewal","Measured values.","","","Probit","95% CI","","","","","","","18.1-19.6 degrees C","99.5% purity"]
["Category","Freshwater","Paper and data unique identifier(eg. 1-1,10-150)","911-3"]
["Scores",10,10,5,5,5,5,2,5,5,4,4,0,4,4,4,1,0,0,0,0,0,3,3,79,0.76699029126213591]
["Answers","","Mortality - immobile and if there is no responce to probing with a glass rod","LC",0.5,"No toxicant control and solvent control","Triplicate","OECD","5th-8th stage juvenile crayfish","Freshwater with physciochemical parameters measured and stated.","Semi-static (gently aerated). Static renewal","Measured values.","","","Probit","95% CI","","","","","","","18.1-19.6 degrees C","99.5% purity"]
["Category","Freshwater","Paper and data unique identifier(eg. 1-1,10-150)","911-4"]
["Scores",10,10,5,5,5,5,2,5,5,4,4,0,4,4,4,1,0,0,0,0,0,3,3,79,0.76699029126213591]
["Answers","","Mortality - immobile and if there is no responce to probing with a glass rod","LC",0.5,"No toxicant control and solvent control","Triplicate","OECD","5th-8th stage juvenile crayfish","Freshwater with physciochemical parameters measured and stated.","Semi-static (gently aerated). Static renewal","Measured values.","","","Probit","95% CI","","","","","","","18.1-19.6 degrees C","99.5% purity"]
["Category","Freshwater","Paper and data unique identifier(eg. 1-1,10-150)","911-5"]
["Scores",10,10,5,5,5,5,2,5,5,4,4,0,4,4,4,1,0,0,0,0,0,3,3,79,0.76699029126213591]
["Answers","","Mortality - immobile and if there is no responce to probing with a glass rod","LC",0.5,"No toxicant control and solvent control","Triplicate","OECD","5th-8th stage juvenile crayfish","Freshwater with physciochemical parameters measured and stated.","Semi-static (gently aerated). Static renewal","Measured values.","","","Probit","95% CI","","","","","","","18.1-19.6 degrees C","99.5% purity"]
["Category","Freshwater","Paper and data unique identifier(eg. 1-1,10-150)","911-6"]
["Scores",10,10,5,5,5,5,2,5,5,4,4,0,4,4,4,1,0,0,0,0,0,3,3,79,0.76699029126213591]
["Answers","","Mortality - immobile and if there is no responce to probing with a glass rod","LC",0.5,"No toxicant control and solvent control","Triplicate","OECD","5th-8th stage juvenile crayfish","Freshwater with physciochemical parameters measured and stated.","Semi-static (gently aerated). Static renewal","Measured values.","","","Probit","95% CI","","","","","","","18.1-19.6 degrees C","99.5% purity"]
["Category","Freshwater","Paper and data unique identifier(eg. 1-1,10-150)","911-7"]
["Scores",10,10,5,5,5,5,2,5,5,4,4,0,4,4,4,1,0,0,0,0,0,3,3,79,0.76699029126213591]
["Answers","","Mortality - immobile and if there is no responce to probing with a glass rod","LC",0.5,"No toxicant control and solvent control","Triplicate","OECD","5th-8th stage juvenile crayfish","Freshwater with physciochemical parameters measured and stated.","Semi-static (gently aerated). Static renewal","Measured values.","","","Probit","95% CI","","","","","","","18.1-19.6 degrees C","99.5% purity"]
["Category","Freshwater","Paper and data unique identifier(eg. 1-1,10-150)","912-1"]
["Scores",10,5,0,5,5,5,0,0,5,0,4,0,4,4,4,0,0,0,0,0,0,3,3,57,0.55339805825242716]
["Answers","7 days","Fresh weight gains (taken at the start and at the end of the experiment).","","","No toxicant controls","","","","Hoaglands nutrient solution","","","","","","p=0.05","","","","","","","25 +/- 2 degrees C","Technical grade: 99.6% purity"]
["Category","Freshwater","Paper and data unique identifier(eg. 1-1,10-150)","912-2"]
["Scores",10,5,0,5,5,5,0,0,5,0,4,0,4,4,4,0,0,0,0,0,0,3,3,57,0.55339805825242716]
["Answers","7 days","Fresh weight gains (taken at the start and at the end of the experiment).","","","No toxicant controls","","","","Hoaglands nutrient solution","","","","","","p=0.05","","","","","","","25 +/- 2 degrees C","Technical grade: 99.6% purity"]
["Category","Freshwater","Paper and data unique identifier(eg. 1-1,10-150)","912-3"]
["Scores",10,5,0,5,5,5,0,0,5,0,4,0,4,4,4,0,0,0,0,0,0,3,3,57,0.55339805825242716]
["Answers","7 days","Fresh weight gains (taken at the start and at the end of the experiment).","","","No toxicant controls","","","","Hoaglands nutrient solution","","","","","","p=0.05","","","","","","","25 +/- 2 degrees C","Technical grade: 99.6% purity"]
["Category","Freshwater","Paper and data unique identifier(eg. 1-1,10-150)","912-3"]
["Scores",10,5,0,5,5,5,0,0,5,0,4,0,4,4,4,0,0,0,0,0,0,3,3,57,0.55339805825242716]
["Answers","7 days","Fresh weight gains (taken at the start and at the end of the experiment).","","","No toxicant controls","","","","Hoaglands nutrient solution","","","","","","p=0.05","","","","","","","25 +/- 2 degrees C","Technical grade: 99.6% purity"]
["Category","Freshwater","Paper and data unique identifier(eg. 1-1,10-150)","912-4"]
["Scores",10,5,0,5,5,5,0,0,5,0,4,0,4,4,4,0,0,0,0,0,0,3,3,57,0.55339805825242716]
["Answers","7 days","Fresh weight gains (taken at the start and at the end of the experiment).","","","No toxicant controls","","","","Hoaglands nutrient solution","","","","","","p=0.05","","","","","","","25 +/- 2 degrees C","Technical grade: 99.6% purity"]
["Category","Freshwater","Paper and data unique identifier(eg. 1-1,10-150)","912-5"]
["Scores",10,5,0,5,5,5,0,0,5,0,4,0,4,4,4,0,0,0,0,0,0,3,3,57,0.55339805825242716]
["Answers","7 days","Fresh weight gains (taken at the start and at the end of the experiment).","","","No toxicant controls","","","","Hoaglands nutrient solution","","","","","","p=0.05","","","","","","","25 +/- 2 degrees C","Technical grade: 99.6% purity"]
["Category","Freshwater","Paper and data unique identifier(eg. 1-1,10-150)","912-6"]
["Scores",10,5,0,5,5,5,0,0,5,0,4,0,4,4,4,0,0,0,0,0,0,3,3,57,0.55339805825242716]
["Answers","7 days","Fresh weight gains (taken at the start and at the end of the experiment).","","","No toxicant controls","","","","Hoaglands nutrient solution","","","","","","p=0.05","","","","","","","25 +/- 2 degrees C","Technical grade: 99.6% purity"]
["Category","Freshwater","Paper and data unique identifier(eg. 1-1,10-150)","912-7"]
["Scores",10,5,0,5,5,5,0,0,5,0,4,0,4,4,4,0,0,0,0,0,0,3,3,57,0.55339805825242716]
["Answers","7 days","Fresh weight gains (taken at the start and at the end of the experiment).","","","No toxicant controls","","","","Hoaglands nutrient solution","","","","","","p=0.05","","","","","","","25 +/- 2 degrees C","Technical grade: 99.6% purity"]
["Category","Freshwater","Paper and data unique identifier(eg. 1-1,10-150)","912-8"]
["Scores",10,5,0,5,5,5,0,0,5,0,4,0,4,4,4,0,0,0,0,0,0,3,3,57,0.55339805825242716]
["Answers","7 days","Fresh weight gains (taken at the start and at the end of the experiment).","","","No toxicant controls","","","","Hoaglands nutrient solution","","","","","","p=0.05","","","","","","","25 +/- 2 degrees C","Technical grade: 99.6% purity"]
["Category","Freshwater","Paper and data unique identifier(eg. 1-1,10-150)","913-1"]
["Scores",10,5,5,5,5,5,2,5,5,0,0,0,0,0,0,3,3,3,0,0,3,3,3,65,0.6310679611650486]
["Answers","96 hour","Mortality","LC",0.5,"","4 reps","APHA test methods","Fish: Weight","Unchlorinated borehole water","not stated","","","","not stated","not stated",7.5,"170 mg/L","170 mg/L","","","7.5 mg/L","21 degrees C","Commercial grade"]
["Category","Freshwater","Paper and data unique identifier(eg. 1-1,10-150)","913-2"]
["Scores",10,5,5,5,5,5,2,5,5,0,0,0,0,0,0,3,3,3,0,0,3,3,3,65,0.6310679611650486]
["Answers","96 hour","Mortality","LC",0.5,"","4 reps","APHA test methods","Fish: Weight","Unchlorinated borehole water","not stated","","","","not stated","not stated",7.5,"170 mg/L","170 mg/L","","","7.5 mg/L","26 degrees C","Commercial grade"]
["Category","Freshwater","Paper and data unique identifier(eg. 1-1,10-150)","913-3"]
["Scores",10,5,5,5,5,5,2,5,5,0,0,0,0,0,0,3,3,3,0,0,3,3,3,65,0.6310679611650486]
["Answers","96 hour","Mortality","LC",0.5,"","4 reps","APHA test methods","Fish: Weight","Unchlorinated borehole water","not stated","","","","not stated","not stated",7.5,"170 mg/L","170 mg/L","","","7.5 mg/L","31 degrees C","Commercial grade"]
["Category","Freshwater","Paper and data unique identifier(eg. 1-1,10-150)","913-4"]
["Scores",10,5,5,5,5,5,2,5,5,0,0,0,0,0,0,3,3,3,0,0,3,3,3,65,0.6310679611650486]
["Answers","96 hour","Mortality","LC",0.5,"","4 reps","APHA test methods","Fish: Weight","Unchlorinated borehole water","not stated","","","","not stated","not stated",7.5,"170 mg/L","170 mg/L","","","7.5 mg/L","36 degrees C","Commercial grade"]
["Category","Freshwater","Paper and data unique identifier(eg. 1-1,10-150)","913-5"]
["Scores",10,5,5,5,5,5,2,5,5,0,0,0,0,0,0,3,3,3,0,0,3,3,3,65,0.6310679611650486]
["Answers","96 hour","Mortality","LC",0.5,"","4 reps","APHA test methods","Fish: Weight","Unchlorinated borehole water","not stated","","","","not stated","not stated",7.5,"170 mg/L","170 mg/L","","","7.5 mg/L","21 degrees C","Commercial grade"]
["Category","Freshwater","Paper and data unique identifier(eg. 1-1,10-150)","913-6"]
["Scores",10,5,5,5,5,5,2,5,5,0,0,0,0,0,0,3,3,3,0,0,3,3,3,65,0.6310679611650486]
["Answers","96 hour","Mortality","LC",0.5,"","4 reps","APHA test methods","Fish: Weight","Unchlorinated borehole water","not stated","","","","not stated","not stated",7.5,"170 mg/L","170 mg/L","","","7.5 mg/L","26 degrees C","Commercial grade"]
["Category","Freshwater","Paper and data unique identifier(eg. 1-1,10-150)","913-7"]
["Scores",10,5,5,5,5,5,2,5,5,0,0,0,0,0,0,3,3,3,0,0,3,3,3,65,0.6310679611650486]
["Answers","96 hour","Mortality","LC",0.5,"","4 reps","APHA test methods","Fish: Weight","Unchlorinated borehole water","not stated","","","","not stated","not stated",7.5,"170 mg/L","170 mg/L","","","7.5 mg/L","31 degrees C","Commercial grade"]
["Category","Freshwater","Paper and data unique identifier(eg. 1-1,10-150)","913-8"]
["Scores",10,5,5,5,5,5,2,5,5,0,0,0,0,0,0,3,3,3,0,0,3,3,3,65,0.6310679611650486]
["Answers","96 hour","Mortality","LC",0.5,"","4 reps","APHA test methods","Fish: Weight","Unchlorinated borehole water","not stated","","","","not stated","not stated",7.5,"170 mg/L","170 mg/L","","","7.5 mg/L","36 degrees C","Commercial grade"]
["Category","Freshwater","Paper and data unique identifier(eg. 1-1,10-150)","913-9"]
["Scores",10,5,5,5,5,5,2,0,5,0,0,0,0,0,0,3,3,3,0,0,3,3,3,60,0.58252427184466016]
["Answers","96 hour","Mortality","LC",0.5,"","4 reps","APHA test methods","","Unchlorinated borehole water","not stated","","","","not stated","not stated",7.5,"170 mg/L","170 mg/L","","","7.5 mg/L","21 degrees C","Commercial grade"]
["Category","Freshwater","Paper and data unique identifier(eg. 1-1,10-150)","913-10"]
["Scores",10,5,5,5,5,5,2,0,5,0,0,0,0,0,0,3,3,3,0,0,3,3,3,60,0.58252427184466016]
["Answers","96 hour","Mortality","LC",0.5,"","4 reps","APHA test methods","","Unchlorinated borehole water","not stated","","","","not stated","not stated",7.5,"170 mg/L","170 mg/L","","","7.5 mg/L","26 degrees C","Commercial grade"]
["Category","Freshwater","Paper and data unique identifier(eg. 1-1,10-150)","913-11"]
["Scores",10,5,5,5,5,5,2,0,5,0,0,0,0,0,0,3,3,3,0,0,3,3,3,60,0.58252427184466016]
["Answers","96 hour","Mortality","LC",0.5,"","4 reps","APHA test methods","","Unchlorinated borehole water","not stated","","","","not stated","not stated",7.5,"170 mg/L","170 mg/L","","","7.5 mg/L","31 degrees C","Commercial grade"]
["Category","Freshwater","Paper and data unique identifier(eg. 1-1,10-150)","913-12"]
["Scores",10,5,5,5,5,5,2,0,5,0,0,0,0,0,0,3,3,3,0,0,3,3,3,60,0.58252427184466016]
["Answers","96 hour","Mortality","LC",0.5,"","4 reps","APHA test methods","","Unchlorinated borehole water","not stated","","","","not stated","not stated",7.5,"170 mg/L","170 mg/L","","","7.5 mg/L","36 degrees C","Commercial grade"]
["Category","Freshwater","Paper and data unique identifier(eg. 1-1,10-150)","913-13"]
["Scores",10,5,5,5,5,5,2,0,5,0,0,0,0,0,0,3,3,3,0,0,3,3,3,60,0.58252427184466016]
["Answers","96 hour","Mortality","LC",0.5,"","4 reps","APHA test methods","","Unchlorinated borehole water","not stated","","","","not stated","not stated",7.5,"170 mg/L","170 mg/L","","","7.5 mg/L","21 degrees C","Commercial grade"]
["Category","Freshwater","Paper and data unique identifier(eg. 1-1,10-150)","913-14"]
["Scores",10,5,5,5,5,5,2,0,5,0,0,0,0,0,0,3,3,3,0,0,3,3,3,60,0.58252427184466016]
["Answers","96 hour","Mortality","LC",0.5,"","4 reps","APHA test methods","","Unchlorinated borehole water","not stated","","","","not stated","not stated",7.5,"170 mg/L","170 mg/L","","","7.5 mg/L","26 degrees C","Commercial grade"]
["Category","Freshwater","Paper and data unique identifier(eg. 1-1,10-150)","913-15"]
["Scores",10,5,5,5,5,5,2,0,5,0,0,0,0,0,0,3,3,3,0,0,3,3,3,60,0.58252427184466016]
["Answers","96 hour","Mortality","LC",0.5,"","4 reps","APHA test methods","","Unchlorinated borehole water","not stated","","","","not stated","not stated",7.5,"170 mg/L","170 mg/L","","","7.5 mg/L","31 degrees C","Commercial grade"]
["Category","Freshwater","Paper and data unique identifier(eg. 1-1,10-150)","913-16"]
["Scores",10,5,5,5,5,5,2,0,5,0,0,0,0,0,0,3,3,3,0,0,3,3,3,60,0.58252427184466016]
["Answers","96 hour","Mortality","LC",0.5,"","4 reps","APHA test methods","","Unchlorinated borehole water","not stated","","","","not stated","not stated",7.5,"170 mg/L","170 mg/L","","","7.5 mg/L","36 degrees C","Commercial grade"]
["Category","Freshwater","Paper and data unique identifier(eg. 1-1,10-150)","914-1"]
["Scores",10,10,5,5,5,0,0,5,5,4,0,0,4,0,4,0,0,0,0,0,0,3,0,60,0.58252427184466016]
["Answers","4 days","Measuring growth from ChlA inhibition","IC",0.5,"","not stated","","5 day old cultures","Culture medium","Rotating incubator","","Nominal","Figure 8","Calibration curves?","","","","","","","","20 degrees C",""]
["Category","Freshwater","Paper and data unique identifier(eg. 1-1,10-150)","???"]
["Scores",10,5,5,5,0,5,2,5,5,4,0,0,0,4,4,0,0,0,0,0,0,3,3,60,0.58252427184466016]
["Answers","","","","","","","","","","","","","","","","","","","","","","",""]
["Category","Freshwater","Paper and data unique identifier(eg. 1-1,10-150)","???"]
["Scores",10,5,5,5,0,0,0,5,5,4,4,0,0,4,4,0,0,0,0,0,0,3,3,57,0.55339805825242716]
["Answers","","","","","","","","","","","","","","","","","","","","","","",""]
["Category","Freshwater","Paper and data unique identifier(eg. 1-1,10-150)","???"]
["Scores",10,5,5,5,5,5,0,5,5,0,0,0,4,4,0,0,0,0,0,0,0,3,3,59,0.57281553398058249]
["Answers","","","","","","","","","","","","","","","","","","","","","","",""]
["Category","Freshwater","Paper and data unique identifier(eg. 1-1,10-150)","???"]
["Scores",10,5,5,5,0,0,0,0,0,0,0,0,4,0,0,0,0,0,0,0,0,3,3,35,0.33980582524271846]
["Answers","","","","","","","","","","","","","","","","","","","","","","",""]
["Category","Freshwater","Paper and data unique identifier(eg. 1-1,10-150)","???"]
["Scores",10,10,5,0,5,0,0,0,5,4,4,0,0,4,4,1,1,0,0,0,1,0,3,57,0.55339805825242716]
["Answers","","","","","","","","","","","","","","","","","","","","","","",""]
["Category","Freshwater","Paper and data unique identifier(eg. 1-1,10-150)","???"]
["Scores",10,10,5,0,5,5,0,0,5,0,4,0,4,4,4,0,0,0,0,0,0,3,3,62,0.60194174757281549]
["Answers","","","","","","","","","","","","","","","","","","","","","","",""]
["Category","Freshwater","Paper and data unique identifier(eg. 1-1,10-150)","???"]
["Scores",10,10,5,0,5,5,0,0,5,0,4,0,4,4,4,0,0,0,0,0,0,3,3,62,0.60194174757281549]
["Answers","","","","","","","","","","","","","","","","","","","","","","",""]
["Category","Freshwater","Paper and data unique identifier(eg. 1-1,10-150)","???"]
["Scores",10,10,5,5,0,5,0,5,5,0,0,0,4,0,4,0,0,0,0,0,0,3,0,56,0.5436893203883495]
["Answers","","","","","","","","","","","","","","","","","","","","","","",""]
["Category","Freshwater","Paper and data unique identifier(eg. 1-1,10-150)","???"]
["Scores",10,5,5,0,0,5,0,5,5,0,0,0,4,0,4,0,0,0,0,0,0,0,0,43,0.41747572815533979]
["Answers","","","","","","","","","","","","","","","","","","","","","","",""]
["Category","Freshwater","Paper and data unique identifier(eg. 1-1,10-150)","???"]
["Scores",10,5,5,5,5,5,0,5,5,0,0,0,0,0,0,3,3,3,0,0,3,3,0,60,0.58252427184466016]
["Answers","","","","","","","","","","","","","","","","","","","","","","",""]
["Category","Freshwater","Paper and data unique identifier(eg. 1-1,10-150)","???"]
["Scores",10,5,5,5,5,0,0,5,5,0,4,0,0,4,0,3,0,0,0,3,3,3,3,63,0.61165048543689315]
["Answers","","","","","","For the other species there was replication and so they would get another 5 points","","","","","","","","","","","","","","","","",""]
["Category","Freshwater","Paper and data unique identifier(eg. 1-1,10-150)","???"]
["Scores",10,5,0,0,5,0,2,5,5,4,4,0,4,4,4,3,3,0,0,3,3,3,3,70,0.67961165048543692]
["Answers","","","","","","For the other species there was replication and so they would get another 5 points","","","","","","","","","","","","","","","","",""]
["Category","Freshwater","Paper and data unique identifier(eg. 1-1,10-150)","???"]
["Scores",10,10,0,5,5,5,0,0,5,0,4,0,4,4,4,3,0,0,0,3,3,3,3,71,0.68932038834951459]
["Answers","","","","","","For the other species there was replication and so they would get another 5 points","","","","","","","","","","","","","","","","",""]
["Category","Freshwater","Paper and data unique identifier(eg. 1-1,10-150)","???"]
["Scores",10,5,0,5,5,5,0,5,5,4,4,0,0,4,0,0,0,0,0,0,3,3,3,61,0.59223300970873782]
["Answers","","The only relevant endpoint was mortality","","","","For the other species there was replication and so they would get another 5 points","","","","","","","","","","","","","","","","",""]

{"sheet":"Marine Data QA","index":6,"n_rows":98,"n_cols":25,"rows_kept":98,"cut":false,"hidden":false,"merged":[[3,4,7,4],[56,7,59,7],[60,7,63,7],[40,7,42,7],[43,7,45,7],[46,7,48,7],[49,7,51,7],[34,7,36,7],[52,7,54,7],[14,7,16,7],[11,7,13,7],[17,7,19,7],[20,7,21,7],[22,7,24,7],[25,7,27,7],[9,2,9,4],[80,7,82,7],[64,7,67,7],[68,7,71,7],[72,7,75,7],[76,7,79,7],[60,2,63,2],[40,2,42,2],[17,2,19,2],[28,2,30,2],[43,2,45,2],[25,2,27,2],[28,7,30,7],[31,7,33,7],[11,2,13,2],[20,2,21,2],[22,2,24,2],[14,2,16,2],[87,7,88,7],[46,2,48,2],[31,2,33,2],[37,7,39,7],[83,7,86,7],[34,2,36,2],[37,2,39,2],[83,2,86,2],[64,2,67,2],[68,2,71,2],[72,2,75,2],[76,2,79,2],[80,2,82,2],[49,2,51,2],[52,2,54,2],[56,2,59,2]]}
[null,1,"FILL IN BLANKS BELOW,PICK OPTIONS FROM DROPDOWN LIST",null,null,null,null,null,null,null,"* All the text in Blue are used for drop down list ,make changes with caution."]
[null,null,"Category",null,"Marine ",{"$f":"IF(M3=\"\",0,1)","v":1},"Citation No.",{"$f":"IF(E3=\"\",\"\",LEFT(E3,FIND(\"-\",E3) -1))","v":"852"},null,null,"Species",null,null,"Lifestage",null,null,"Exposure duration",null,null,"Measure of toxicity",null,null,"Toxicity endpoint"]
[null,null,"Paper and data unique identifier(eg. 1-1,10-150)",null,"852-1-GD",{"$f":"IF(E3=\"\",0,1)","v":1},"Species (Scientific name)",null,null,null,"Australian Bass",18,{"$f":"IF(L3=0,\"\",INDEX(K3:K50,L3))","v":"Proisotoma minuta"},"3h - 5h post-hatch larvae",13,{"$f":"IF(O3=0,\"\",INDEX(N3:N50,O3))","v":"60-day old"},"1 hour ",13,{"$f":"IF(R3=0,\"\",INDEX(Q3:Q50,R3))","v":"7 days"},"Method 1",11,{"$f":"IF(U3=0,\"\",INDEX(T3:T50,U3))","v":"Mortality"},0.01,14,{"$f":"IF(X3=0,\"\",INDEX(W3:W50,X3))","v":"LC50"}]
[null,null,"Citation",null,"Park, E.K. and Lees, E.M., 2005. Application of an Artificial Sea Salt Solution to Determine Acute Toxicity of Herbicides to Proisotoma minuta (Collembola), J. Environ. Sci. Health Part B Pestic. Food Contam. Agric. Wastes40(4): 595-604. ",{"$f":"IF(E4=\"\",0,1)","v":1},"Lifestage",null,null,null,"Bala Shark",null,null,"Exponential growth phase",null,null,"2 hours",null,null,"Method 10",null,null,0.02]
[null,null,null,null,null,{"$f":"IF(S3=\"\",0,1)","v":1},"Exposure duration",null,null,null,"Basa",null,null,"Phase 1",null,null,"3 days",null,null,"Method 2",null,null,0.03]
[null,null,null,null,null,{"$f":"IF(V3=\"\",0,1)","v":1},"Measure of toxicity",null,null,null,"Black Parinha",null,null,"phase 14",null,null,"3 hours",null,null,"Method 3",null,null,0.04]
[null,null,null,null,null,{"$f":"IF(Y3=\"\",0,1)","v":1},"Toxicity endpoint",null,null,null,"Catfish",null,null,"Phase 2",null,null,"4 hours",null,null,"Method 4",null,null,0.05]
[null,null,null,null,null,{"$f":"IF(H8=\"\",0,1)","v":1},"Toxicity value",">100,000 ug/L",null,null,"Ceratoneis closterium",null,null,"Phase 3",null,null,"5 days",null,null,"Method 5",null,null,0.06]
[null,2,"CHOOSE ANSWER OPTIONS AND FILL IN ANSWERS IN ANSWER COLUMN",null,null,{"$f":"IF(M3=\"\",0,1)","v":1},null,null,null,null,"Cylindrotheca closterium",null,null,"Phase 4",null,null,"5 hours",null,null,"Method 6",null,null,7.0000000000000007E-2]
[null,"*","If had problem click on answer options,click on any  other cells first and then click back again.",null,null,{"$f":"IF(P3=\"\",0,1)","v":1},null,null,null,null,"Eel",null,null,"Phase 5",null,null,"6 hours",null,null,"Method 7",null,null,0.08]
[null,"No.","Question","Marks Awarded","Answer Options","Option References","Scores","Answers",null,null,"Lungfish",null,null,"Phase 6",null,null,"7 hours",null,null,"Method 8",null,null,0.09]
[null,null,"Was the duration of the exposure stated (e.g., 48 or 96 h)?",10,null,1,{"$f":"IF(F15=0,0,INDEX($D12:$D13,F12,1))","v":10},null,null,null,"Murray Cod",null,null,"Phase 7 ",null,null,"72 hours",null,null,"Method 9",null,null,0.1]
[null,1,null,0,null,null,null,null,null,null,"Navicula perminuta",null,null,"Phase 8",null,null,"8 hours",null,null,"Mortality",null,null,"IC10"]
[null,null,null,null,null,null,null,null,null,null,"Phaeodactylum tricornutum",null,null,"Phase 9",null,null,"9 hours",null,null,"Population: ChlA",null,null,"IC50"]
[null,null,"Was the biological endpoint (e.g., immobilization or population growth) stated and defined (10 marks)? Award 5 marks if the biological endpoint is only stated.",10,null,2,{"$f":"IF(F15=0,0,INDEX($D15:$D17,F15,1))","v":5},null,null,null,"Redclaw",null,null,"60-day old",null,null,"7 days",null,null,"Population: Growth",null,null,"LC10"]
[null,2,null,5,null,null,null,null,null,null,"Sea Mullet",null,null,null,null,null,null,null,null,"Population: Growth (Weight)",null,null,"LC50"]
[null,null,null,0,null,null,null,null,null,null,"SilverPerch",null,null,null,null,null,null,null,null,"Population: Growth Rate",null,null,"LC90"]
[null,null,"Was the biological effect stated (e.g., LC or NOEC)?",5,null,1,{"$f":"IF(F18=0,0,INDEX($D18:$D19,F18,1))","v":5},null,null,null,"Sparus aurata L.",null,null,null,null,null,null,null,null,null,null,null,"LOEC"]
[null,3,null,0,null,null,null,null,null,null,"Whale",null,null,null,null,null,null,null,null,null,null,null,"NOEC"]
[null,null,null,null,null,null,null,null,null,null,"Proisotoma minuta"]
[null,4,"Was the biological effect quantified (e.g., 50% effect, 25% effect)? The effect for NOEC and LOEC data must be quantified.",5,null,1,{"$f":"IF(F21=0,0,INDEX($D21:$D22,F21,1))","v":5}]
[null,null,null,0]
[null,5,"Were appropriate controls (e.g., a no-toxicant control and/or solvent control) used?",5,null,1,{"$f":"IF(F23=0,0,INDEX($D23:$D24,F23,1))","v":5}]
[null,null,null,0]
[]
[null,6,"Was each control and contaminant concentration at least duplicated?",5,null,1,{"$f":"IF(F26=0,0,INDEX($D26:$D27,F26,1))","v":5}]
[null,null,null,0]
[]
[null,7,"Were test acceptability criteria stated (e.g., mortality in controls must not exceed a certain percentage) (5 marks)?\nOR\nWere test acceptability criteria inferred (e.g., test method used [USEPA, OECD, ASTM etc]) (award 2 marks). Note: Invalid data must no",5,null,3,{"$f":"IF(F29=0,0,INDEX($D29:$D31,F29,1))","v":0}]
[null,null,null,2]
[null,null,null,0]
[null,8,"Were the characteristics of the test organism (e.g., length, mass, age) stated?",5,null,1,{"$f":"IF(F32=0,0,INDEX($D32:$D34,F32,1))","v":5}]
[null,null,null,0]
[]
[null,9,"Was the type of test media used stated?",5,null,1,{"$f":"IF(F35=0,0,INDEX($D35:$D37,F35,1))","v":5}]
[null,null,null,0]
[]
[null,null,"Was the type of exposure (e.g. static, flow through) stated? ",4,null,2,{"$f":"IF(F38=0,0,INDEX($D38:$D40,F38,1))","v":0}]
[null,10,null,0]
[]
[null,null,"Were the contaminant concentrations measured?",4,null,2,{"$f":"IF(F41=0,0,INDEX($D41:$D43,F41,1))","v":0}]
[null,11,null,0]
[]
[null,null,"Were parallel reference toxicant toxicity tests conducted?",4,null,2,{"$f":"IF(F44=0,0,INDEX($D44:$D46,F44,1))","v":0}]
[null,12,null,0]
[]
[null,null,"Was there a concentration–response relationship either observable or stated",4,null,2,{"$f":"IF(F47=0,0,INDEX($D47:$D49,F47,1))","v":0}]
[null,13,null,0]
[]
[null,null,"Was an appropriate statistical method or model used to determine the toxicity?",4,null,1,{"$f":"IF(F50=0,0,INDEX($D50:$D52,F50,1))","v":4}]
[null,14,null,0]
[]
[null,15,"For LC/EC/BEC data values derived was an estimate of variability provided? Or                                         If NO EC/LOEC data, was the significance level 0.05 or less?\n\n",4,null,1,{"$f":"IF(F53=0,0,INDEX($D53:$D55,F53,1))","v":4}]
[null,null,null,0]
[]
[null,16,"Were the following parameters measured and stated? (3 marks if measured and stated, 1 if just measured)"]
[null,null,"pH",3,null,1,{"$f":"IF(F57=0,0,INDEX($D57:$D59,F57,1))","v":3}]
[null,16.100000000000001,null,1]
[null,null,null,0]
[]
[null,null,"Alkalinity",3,null,3,{"$f":"IF(F61=0,0,INDEX($D61:$D63,F61,1))","v":0}]
[null,16.2,null,1]
[null,null,null,0]
[]
[null,null,"Conductivity/Salinity",3,null,3,{"$f":"IF(F65=0,0,INDEX($D65:$D67,F65,1))","v":0}]
[null,16.3,null,1]
[null,null,null,0]
[]
[null,null,"Dissolved oxygen",3,null,3,{"$f":"IF(F69=0,0,INDEX($D69:$D71,F69,1))","v":0}]
[null,16.399999999999999,null,1]
[null,null,null,0]
[]
[null,null," ",3,null,3,{"$f":"IF(F73=0,0,INDEX($D73:$D75,F73,1))","v":0}]
[null,16.5,null,1]
[null,null,null,0]
[]
[null,null," ",3,null,3,{"$f":"IF(F77=0,0,INDEX($D77:$D79,F77,1))","v":0}]
[null,16.600000000000001,null,1]
[null,null,null,0]
[]
[null,null,"Was the temperature measured and stated?",3,null,1,{"$f":"IF(F81=0,0,INDEX($D81:$D83,F81,1))","v":3}]
[null,17,null,0]
[]
[null,null,"Was the grade or purity of the test contaminant stated?",3,null,1,{"$f":"IF(F84=0,0,INDEX($D84:$D85,F84,1))","v":3}]
[null,18,null,0]
[]
[]
[null,19," ",3,null,2,{"$f":"IF(F88=0,0,INDEX($D88:$D89,F84,1))","v":3}]
[null,null,null,0,null,null,null,null,{"$f":"(COUNTIF(F12:F89,\"=0\"))+COUNTIF(F2:F10,\"=0\")","v":0}]
[null,null,"Total score",null,null,null,{"$f":"IF(SUM(G12:G88)=0,\"\",SUM(G12:G88))","v":65}]
[null,null,"Total Max. possible score for the various types of data and contaminants ",null,{"$f":"D12+D15+D18+D21+D23+D26+D29+D32+D35+D38+D41+D44+D47+D50+D53+D57+D61+D65+D69+D81+D84","v":97}]
[null,null,"Quality Score",null,{"$f":"\"= [Total score / Total possible score] * 100 = \"","v":"= [Total score / Total possible score] * 100 = "},null,{"$f":"IF(ISERROR(G90/E91),#N/A,G90/E91)","v":0.67010309278350511}]
[]
[null,null,"H = high quality                           Quality score >=80%      "]
[null,null,"A = acceptable quality         80%>Quality score>50%      "]
[null,null,"U = unacceptable quality              Quality score <=50%  "]
[]
[3,null,"CLICK \"Save&Update\" BUTTON TO SAVE ANSWER TO SAMPLE FINALISED ASSESSMENT SHEET"]

{"sheet":"Marine Quality","index":7,"n_rows":71,"n_cols":27,"rows_kept":71,"cut":false,"hidden":false,"merged":[]}
[]
["Question No.",1,2,3,4,5,6,7,8,9,10,11,12,13,14,15,16.100000000000001,16.2,16.3,16.399999999999999,16.5,16.600000000000001,17,18,19,"Total Score","Quality Score"]
["Short Questions","duration of the exposure ","biological endpoint","biological effect stated or not","biological effect qualified or not","Appropriate controls","control and contaminant concentration","test acceptability criteria","characteristics of the test organism"," type of test media","type of exposure","contaminant concentrations","parallel reference toxicant toxicity tests","concentration–response relationship"," statistical method or model to determine the toxicity","LC/EC/BEC data values ","pH","POC","Particle size","AVS & 1-M HCl extractable metals","Dissolved contaminants","Dissolved ammonia and sulfide","Temperature","Grade or purity","salinity/conductivity measured and stated"]
["Marks Awarded","10 or 0","10,5 or 0","5 or 0 ","5 or 0 ","5 or 0 ","5 or 0 ","5 or 0 ","5 or 0 ","5 or 0 ","4 or 0","4 or 0","4 or 0","4 or 0","4 or 0","4 or 0","3,1,or 0","3,1,or 0","3,1,or 0","3,1,or 0","3,1,or 0","3,1,or 0","3 or 0","3 or 0","3 or 0"]
["Max. Possible Score",10,10,5,5,5,5,5,5,5,4,4,4,4,4,4,3,3,3,3,3,3,3,3,3,{"$f":"SUM(B5:Y5)","v":106}]
["Category","Marine ","Paper and data unique identifier(eg. 1-1,10-150)","2-2"]
["Scores",10,10,5,5,5,5,2,5,5,4,4,4,4,4,4,3,3,3,3,3,3,3,3,3,103,0.97169811320754718]
["Answers","","","","",null,"","","","","","","","","","","","","","","","","","",""]
["Category","Marine ","Paper and data unique identifier(eg. 1-1,10-150)","890-1"]
["Scores",10,10,5,5,5,5,5,5,5,4,0,4,4,4,4,3,0,3,3,0,0,3,3,3,93,0.95876288659793818]
["Answers","3 days (72hr)","Mortality (defines as immobility and absence of heartbeat).","72 hour LC10, LC50, LC90","",null,"3 replicates","Tests were considered valid if the survival rate was at least 90% in thecontrols.","3h - 5h post-hatch, yolk sac larvae.","The working stock solution of formulated simazine was prepared by dissolving the commercial herbicide Gesatop  GW (CIBA-GEIGY, S.A.) containing 90% simazine, in natural and filtered (0.45-lm) sea water, collected in the Bay of Ca´diz, without any carrier solvent, for a final concentration of 5mg/l of the formulation, and subsequently diluted to give the final concentrations of the testing media.","Static-renewal method","Nominal","","","Probit for LC values. One-way ANOVA, Bartlett's Test, Sharipo-Wilk's Test, Dunnets Multiple Range Test. Arc-sin square root transformations.","Variability provided for LC values. Sig level 0.05.",8,"","37%.",90,"","","19 degrees C","Commercial grade",""]
["Category","Marine ","Paper and data unique identifier(eg. 1-1,10-150)","890-2"]
["Scores",10,10,5,5,5,5,5,5,5,4,0,4,4,4,4,3,0,3,3,0,0,3,3,3,93,0.95876288659793818]
["Answers","3 days (72hr)","Mortality (defines as immobility and absence of heartbeat).","72 hour LC10, LC50, LC90","",null,"3 replicates","Tests were considered valid if the survival rate was at least 90% in thecontrols.","3h - 5h post-hatch, yolk sac larvae.","The working stock solution of formulated simazine was prepared by dissolving the commercial herbicide Gesatop  GW (CIBA-GEIGY, S.A.) containing 90% simazine, in natural and filtered (0.45-lm) sea water, collected in the Bay of Ca´diz, without any carrier solvent, for a final concentration of 5mg/l of the formulation, and subsequently diluted to give the final concentrations of the testing media.","Static-renewal method","Nominal","","","Probit for LC values. One-way ANOVA, Bartlett's Test, Sharipo-Wilk's Test, Dunnets Multiple Range Test. Arc-sin square root transformations.","Variability provided for LC values. Sig level 0.05.",8,"","37%.",90,"","","19 degrees C","Commercial grade",""]
["Category","Marine ","Paper and data unique identifier(eg. 1-1,10-150)","890-3"]
["Scores",10,10,5,5,5,5,5,5,5,4,0,4,4,4,4,3,0,3,3,0,0,3,3,3,93,0.95876288659793818]
["Answers","3 days (72hr)","Mortality (defines as immobility and absence of heartbeat).","72 hour LC10, LC50, LC90","",null,"3 replicates","Tests were considered valid if the survival rate was at least 90% in thecontrols.","3h - 5h post-hatch, yolk sac larvae.","The working stock solution of formulated simazine was prepared by dissolving the commercial herbicide Gesatop  GW (CIBA-GEIGY, S.A.) containing 90% simazine, in natural and filtered (0.45-lm) sea water, collected in the Bay of Ca´diz, without any carrier solvent, for a final concentration of 5mg/l of the formulation, and subsequently diluted to give the final concentrations of the testing media.","Static-renewal method","Nominal","","","Probit for LC values. One-way ANOVA, Bartlett's Test, Sharipo-Wilk's Test, Dunnets Multiple Range Test. Arc-sin square root transformations.","Variability provided for LC values. Sig level 0.05.",8,"","37%.",90,"","","19 degrees C","Commercial grade",""]
["Category","Marine ","Paper and data unique identifier(eg. 1-1,10-150)","890-3"]
["Scores",10,10,5,5,5,5,5,5,5,4,0,4,4,4,4,3,0,3,3,0,0,3,3,3,93,0.95876288659793818]
["Answers","3 days (72hr)","Mortality (defines as immobility and absence of heartbeat).","72 hour LC10, LC50, LC90","",null,"3 replicates","Tests were considered valid if the survival rate was at least 90% in thecontrols.","3h - 5h post-hatch, yolk sac larvae.","The working stock solution of formulated simazine was prepared by dissolving the commercial herbicide Gesatop  GW (CIBA-GEIGY, S.A.) containing 90% simazine, in natural and filtered (0.45-lm) sea water, collected in the Bay of Ca´diz, without any carrier solvent, for a final concentration of 5mg/l of the formulation, and subsequently diluted to give the final concentrations of the testing media.","Static-renewal method","Nominal","","","Probit for LC values. One-way ANOVA, Bartlett's Test, Sharipo-Wilk's Test, Dunnets Multiple Range Test. Arc-sin square root transformations.","Variability provided for LC values. Sig level 0.05.",8,"","37%.",90,"","","19 degrees C","Commercial grade",""]
["Category","Marine ","Paper and data unique identifier(eg. 1-1,10-150)","890-4"]
["Scores",10,10,5,5,5,5,5,5,5,4,0,4,4,4,4,3,0,3,3,0,0,3,3,3,93,0.95876288659793818]
["Answers","3 days (72hr)","Mortality (defines as immobility and absence of heartbeat).","72 hour LC10, LC50, LC90","",null,"3 replicates","Tests were considered valid if the survival rate was at least 90% in thecontrols.","3h - 5h post-hatch, yolk sac larvae.","The working stock solution of formulated simazine was prepared by dissolving the commercial herbicide Gesatop  GW (CIBA-GEIGY, S.A.) containing 90% simazine, in natural and filtered (0.45-lm) sea water, collected in the Bay of Ca´diz, without any carrier solvent, for a final concentration of 5mg/l of the formulation, and subsequently diluted to give the final concentrations of the testing media.","Static-renewal method","Nominal","","","Probit for LC values. One-way ANOVA, Bartlett's Test, Sharipo-Wilk's Test, Dunnets Multiple Range Test. Arc-sin square root transformations.","Variability provided for LC values. Sig level 0.05.",8,"","37%.",90,"","","19 degrees C","Commercial grade",""]
["Category","Marine ","Paper and data unique identifier(eg. 1-1,10-150)","890-5"]
["Scores",10,10,5,5,5,5,5,5,5,4,0,4,4,4,4,3,0,3,3,0,0,3,3,3,93,0.95876288659793818]
["Answers","3 days (72hr)","Mortality (defines as immobility and absence of heartbeat).","72 hour LC10, LC50, LC90","",null,"3 replicates","Tests were considered valid if the survival rate was at least 90% in thecontrols.","3h - 5h post-hatch, yolk sac larvae.","The working stock solution of formulated simazine was prepared by dissolving the commercial herbicide Gesatop  GW (CIBA-GEIGY, S.A.) containing 90% simazine, in natural and filtered (0.45-lm) sea water, collected in the Bay of Ca´diz, without any carrier solvent, for a final concentration of 5mg/l of the formulation, and subsequently diluted to give the final concentrations of the testing media.","Static-renewal method","Nominal","","","Probit for LC values. One-way ANOVA, Bartlett's Test, Sharipo-Wilk's Test, Dunnets Multiple Range Test. Arc-sin square root transformations.","Variability provided for LC values. Sig level 0.05.",8,"","37%.",90,"","","19 degrees C","Commercial grade",""]
["Category","Marine ","Paper and data unique identifier(eg. 1-1,10-150)","890-6"]
["Scores",10,10,5,5,5,5,5,5,5,4,0,4,4,4,4,3,0,3,3,0,0,3,3,3,93,0.95876288659793818]
["Answers","3 days (72hr)","Growth (measured as average dry weight).","72 hour LC10, LC50, LC90","",null,"3 replicates","Tests were considered valid if the survival rate was at least 90% in thecontrols.","3h - 5h post-hatch, yolk sac larvae.","The working stock solution of formulated simazine was prepared by dissolving the commercial herbicide Gesatop  GW (CIBA-GEIGY, S.A.) containing 90% simazine, in natural and filtered (0.45-lm) sea water, collected in the Bay of Ca´diz, without any carrier solvent, for a final concentration of 5mg/l of the formulation, and subsequently diluted to give the final concentrations of the testing media.","Static-renewal method","Nominal","","","Probit for LC values. One-way ANOVA, Bartlett's Test, Sharipo-Wilk's Test, Dunnets Multiple Range Test. Arc-sin square root transformations.","Variability provided for LC values. Sig level 0.05.",8,"","37%.",90,"","","19 degrees C","Commercial grade",""]
["Category","Marine ","Paper and data unique identifier(eg. 1-1,10-150)","890-7"]
["Scores",10,10,5,5,5,5,5,5,5,4,0,4,4,4,4,3,0,3,3,0,0,3,3,3,93,0.95876288659793818]
["Answers","3 days (72hr)","Growth (measured as average dry weight).","72 hour LC10, LC50, LC90","",null,"3 replicates","Tests were considered valid if the survival rate was at least 90% in thecontrols.","3h - 5h post-hatch, yolk sac larvae.","The working stock solution of formulated simazine was prepared by dissolving the commercial herbicide Gesatop  GW (CIBA-GEIGY, S.A.) containing 90% simazine, in natural and filtered (0.45-lm) sea water, collected in the Bay of Ca´diz, without any carrier solvent, for a final concentration of 5mg/l of the formulation, and subsequently diluted to give the final concentrations of the testing media.","Static-renewal method","Nominal","","","Probit for LC values. One-way ANOVA, Bartlett's Test, Sharipo-Wilk's Test, Dunnets Multiple Range Test. Arc-sin square root transformations.","Variability provided for LC values. Sig level 0.05.",8,"","37%.",90,"","","19 degrees C","Commercial grade",""]
["Category","Marine ","Paper and data unique identifier(eg. 1-1,10-150)","899-1"]
["Scores",10,5,0,5,5,5,0,5,5,0,0,0,4,4,4,0,0,0,0,0,0,0,0,0,52,0.53608247422680411]
["Answers","5 days","Grown in microtitre plates and growth recorded by measuring absorbance at 660 nm.","","",null,"5 reps","","Axenic unialgal cultures","Sprayed with saline water and herbicide","","Nominal…","","","","p<0.05","","","","","","","","",""]
["Category","Marine ","Paper and data unique identifier(eg. 1-1,10-150)","899-2"]
["Scores",10,5,0,5,5,5,0,5,5,0,0,0,4,4,4,0,0,0,0,0,0,0,0,0,52,0.53608247422680411]
["Answers","5 days","Grown in microtitre plates and growth recorded by measuring absorbance at 660 nm.","","",null,"5 reps","","Axenic unialgal cultures","Sprayed with saline water and herbicide","","Nominal…","","","","p<0.05","","","","","","","","",""]
["Category","Marine ","Paper and data unique identifier(eg. 1-1,10-150)","899-3"]
["Scores",10,5,0,5,5,5,0,5,5,0,0,0,4,4,4,0,0,0,0,0,0,0,0,0,52,0.53608247422680411]
["Answers","5 days","Grown in microtitre plates and growth recorded by measuring absorbance at 660 nm.","","",null,"5 reps","","Axenic unialgal cultures","Sprayed with saline water and herbicide","","Nominal…","","","","p<0.05","","","","","","","","",""]
["Category","Marine ","Paper and data unique identifier(eg. 1-1,10-150)","899-4"]
["Scores",10,5,0,5,5,5,0,5,5,0,0,0,4,4,4,0,0,0,0,0,0,0,0,0,52,0.53608247422680411]
["Answers","5 days","Grown in microtitre plates and growth recorded by measuring absorbance at 660 nm.","","",null,"5 reps","","Axenic unialgal cultures","Sprayed with saline water and herbicide","","Nominal…","","","","p<0.05","","","","","","","","",""]
["Category","Marine ","Paper and data unique identifier(eg. 1-1,10-150)","899-5"]
["Scores",10,5,0,5,5,5,0,5,5,0,0,0,4,4,4,0,0,0,0,0,0,0,0,0,52,0.53608247422680411]
["Answers","5 days","Grown in microtitre plates and growth recorded by measuring absorbance at 660 nm.","","",null,"5 reps","","Axenic unialgal cultures","Sprayed with saline water and herbicide","","Nominal…","","","","p<0.05","","","","","","","","",""]
["Category","Marine ","Paper and data unique identifier(eg. 1-1,10-150)","899-6"]
["Scores",10,5,5,0,0,5,0,5,5,0,0,0,4,4,4,0,0,0,0,0,0,0,0,0,47,0.45631067961165001]
["Answers","5 days","Grown in microtitre plates and growth recorded by measuring absorbance at 660 nm.","","",null,"5 reps","","Axenic unialgal cultures","Sprayed with saline water and herbicide","","Nominal…","","","","p<0.05","","","","","","","","",""]
["Category","Marine ","Paper and data unique identifier(eg. 1-1,10-150)","899-7",null,null,null,null,null,null,null,null,null,null,null,null,null,null,null,null,null,null,null,null,null,null,0.53608247422680411]
["Scores",10,5,0,5,5,5,0,5,5,0,0,0,4,4,4,0,0,0,0,0,0,0,0,0,52]
["Answers","5 days","Grown in microtitre plates and growth recorded by measuring absorbance at 660 nm.","","",null,"5 reps","","Axenic unialgal cultures","Sprayed with saline water and herbicide","","Nominal…","","","","p<0.05","","","","","","","","",""]
["Category","Marine ","Paper and data unique identifier(eg. 1-1,10-150)","899-8",null,null,null,null,null,null,null,null,null,null,null,null,null,null,null,null,null,null,null,null,null,null,0.53608247422680411]
["Scores",10,5,0,5,5,5,0,5,5,0,0,0,4,4,4,0,0,0,0,0,0,0,0,0,52]
["Answers","5 days","Grown in microtitre plates and growth recorded by measuring absorbance at 660 nm.","","",null,"5 reps","","Axenic unialgal cultures","Sprayed with saline water and herbicide","","Nominal…","","","","p<0.05","","","","","","","","",""]
["Category","Marine ","Paper and data unique identifier(eg. 1-1,10-150)","907-1",null,null,null,null,null,null,null,null,null,null,null,null,null,null,null,null,null,null,null,null,null,null,0.64948453608247425]
["Scores",10,5,5,5,5,0,2,5,5,0,4,0,0,4,4,3,0,3,0,0,0,3,0,0,63]
["Answers","72 hours","Population growth inhibition - via cell density.","IC","10%; 50%",null,"Treatments were in triplicate but control was only once.","USEPA methods","Axenic 5-6 days old.","Filtered (0.45 um) seawater; f medium. ","","","","","Linear interpolation.","Variability","8.2 ± 0.1","","35 ± 2‰","","","","21 ± 2 °C","",""]
["Category","Marine ","Paper and data unique identifier(eg. 1-1,10-150)","907-2",null,null,null,null,null,null,null,null,null,null,null,null,null,null,null,null,null,null,null,null,null,null,0.64948453608247425]
["Scores",10,5,5,5,5,0,2,5,5,0,4,0,0,4,4,3,0,3,0,0,0,3,0,0,63]
["Answers","72 hours","Population growth inhibition - via cell density.","IC","10%; 50%",null,"Treatments were in triplicate but control was only once.","USEPA methods","Axenic 5-6 days old.","Filtered (0.45 um) seawater; f medium. ","","","","","Linear interpolation.","Variability","8.2 ± 0.1","","35 ± 2‰","","","","21 ± 2 °C","",""]
["Category","Marine ","Paper and data unique identifier(eg. 1-1,10-150)","909-1",null,null,null,null,null,null,null,null,null,null,null,null,null,null,null,null,null,null,null,null,null,null,0.63917525773195871]
["Scores",10,5,5,5,5,5,0,5,5,0,0,0,0,4,4,3,0,3,0,0,0,3,0,0,62]
["Answers","72 hours","Algae growth inhibition (measured using flow cytometer)… Cell density. Initital cell density was stated. ","EC","10% and 50%",null,"Triplicates","","Exponential growth phase (cells 5-6 days old).","0.45 um filtered seawater","not stated","Nominal","","","Linear interpolation","Variability","8.2 +/- 0.1","","35 +/- 2 ‰","","","","21 degrees C","",""]
["Category","Marine ","Paper and data unique identifier(eg. 1-1,10-150)","909-2",null,null,null,null,null,null,null,null,null,null,null,null,null,null,null,null,null,null,null,null,null,null,0.63917525773195871]
["Scores",10,5,5,5,5,5,0,5,5,0,0,0,0,4,4,3,0,3,0,0,0,3,0,0,62]
["Answers","72 hours","Algae growth inhibition (measured using flow cytometer)… Cell density. Initital cell density was stated. ","EC","10% and 50%",null,"Triplicates","","Exponential growth phase (cells 5-6 days old).","0.45 um filtered seawater","not stated","Nominal","","","Linear interpolation","Variability","8.2 +/- 0.1","","35 +/- 2 ‰","","","","21 degrees C","",""]
["Category","Marine ","Paper and data unique identifier(eg. 1-1,10-150)","852-1-GD"]
["Scores",10,5,5,5,5,5,0,5,5,0,0,0,0,4,4,3,0,0,0,0,0,3,3,3,65,0.67010309278350511]
["Answers","","","","",null,"","","","","","","","","","","","","","","","","","",""]

{"sheet":"All Result","index":8,"n_rows":297,"n_cols":23,"rows_kept":297,"cut":false,"hidden":false,"merged":[]}
["Chemical","Simazine"]
[{"$f":"'Fresh Data QA'!C2","v":"Category"},{"$f":"'Fresh Data QA'!C3","v":"Paper and data unique identifier(eg. 1-1,10-150)"},{"$f":"'Fresh Data QA'!C90","v":"Total score"},{"$f":"'Fresh Data QA'!C92","v":"Quality Score"},null,{"$f":"'Fresh Data QA'!G3","v":"Species (Scientific name)"},{"$f":"'Fresh Data QA'!G4","v":"Lifestage"},{"$f":"'Fresh Data QA'!G5","v":"Exposure duration"},{"$f":"'Fresh Data QA'!G6","v":"Measure of toxicity"},{"$f":"'Fresh Data QA'!G7","v":"Toxicity endpoint"},{"$f":"'Fresh Data QA'!G8","v":"Toxicity value"},{"$f":"'Fresh Data QA'!C4","v":"Citation"},{"$f":"'Fresh Data QA'!G2","v":"Citation No."},null,"Olivia's check (22/01/18)","MWs formulation check (18/04/18)"]
["Marine ","890-1",93,0.95876288659793818,null,"Sparus aurata L.","3h - 5h post-hatch larvae","72 hours","Mortality","LC10","2.36 mg/L","Arufe,M.I., J. Arellano, M.J. Moreno, and C. Sarasquete, 2004. Comparative Toxic Effects of Formulated Simazine on Vibrio fischeri and Gilthead Seabream (Sparus aurata L.) Larvae, Chemosphere57(11): 1725-1732. ","890",null,"Commercial grade Gesatop containing 90% simazine","Formulation but 90% simazine"]
["Marine ","890-2",93,0.95876288659793818,null,"Sparus aurata L.","3h - 5h post-hatch larvae","72 hours","Mortality","LC50","4.19 mg/L","Arufe,M.I., J. Arellano, M.J. Moreno, and C. Sarasquete, 2004. Comparative Toxic Effects of Formulated Simazine on Vibrio fischeri and Gilthead Seabream (Sparus aurata L.) Larvae, Chemosphere57(11): 1725-1732. ","890",null,"Commercial grade Gesatop containing 90% simazine","Formulation but 90% simazine"]
["Marine ","890-3",93,0.95876288659793818,null,"Sparus aurata L.","3h - 5h post-hatch larvae","72 hours","Mortality","LC90","7.42 mg/L","Arufe,M.I., J. Arellano, M.J. Moreno, and C. Sarasquete, 2004. Comparative Toxic Effects of Formulated Simazine on Vibrio fischeri and Gilthead Seabream (Sparus aurata L.) Larvae, Chemosphere57(11): 1725-1732. ","890",null,"Commercial grade Gesatop containing 90% simazine","Formulation but 90% simazine"]
["Marine ","890-4",93,0.95876288659793818,null,"Sparus aurata L.","3h - 5h post-hatch larvae","72 hours","Mortality","NOEC","2.25 mg/L","Arufe,M.I., J. Arellano, M.J. Moreno, and C. Sarasquete, 2004. Comparative Toxic Effects of Formulated Simazine on Vibrio fischeri and Gilthead Seabream (Sparus aurata L.) Larvae, Chemosphere57(11): 1725-1732. ","890",null,"Commercial grade Gesatop containing 90% simazine","Formulation but 90% simazine"]
["Marine ","890-5",93,0.95876288659793818,null,"Sparus aurata L.","3h - 5h post-hatch larvae","72 hours","Mortality","LOEC","4.50 mg/L","Arufe,M.I., J. Arellano, M.J. Moreno, and C. Sarasquete, 2004. Comparative Toxic Effects of Formulated Simazine on Vibrio fischeri and Gilthead Seabream (Sparus aurata L.) Larvae, Chemosphere57(11): 1725-1732. ","890",null,"Commercial grade Gesatop containing 90% simazine","Formulation but 90% simazine"]
["Marine ","890-6",93,0.95876288659793818,null,"Sparus aurata L.","3h - 5h post-hatch larvae","72 hours","Population: Growth (Dry Weight)","NOEC","4.50 mg/L","Arufe,M.I., J. Arellano, M.J. Moreno, and C. Sarasquete, 2004. Comparative Toxic Effects of Formulated Simazine on Vibrio fischeri and Gilthead Seabream (Sparus aurata L.) Larvae, Chemosphere57(11): 1725-1732. ","890",null,"Commercial grade Gesatop containing 90% simazine","Formulation but 90% simazine"]
["Marine ","890-7",93,0.95876288659793818,null,"Sparus aurata L.","3h - 5h post-hatch larvae","72 hours","Population: Growth (Dry Weight)","NOEC",">4.50 mg/L","Arufe,M.I., J. Arellano, M.J. Moreno, and C. Sarasquete, 2004. Comparative Toxic Effects of Formulated Simazine on Vibrio fischeri and Gilthead Seabream (Sparus aurata L.) Larvae, Chemosphere57(11): 1725-1732. ","890","Do Not Use -  Actual NOEC was obtained from this paper (above)","Commercial grade Gesatop containing 90% simazine","Formulation but 90% simazine"]
["Freshwater","891-1",74,0.71844660194174759,null,"Chlorella pyrenoidosa","Exponential Growth Phase","6 days","Population: Abundance","IC50","6.45 uM","Chan,C.Y., 2005. Detoxification and Degradation of Triazine-Pollutants by an Integrated Photochemical-Biological System, Ph.D.Thesis, The Chinese University of Hong Kong, China:153. ","891",null,"Greater than 98% purity","Greater than 98% purity"]
["Freshwater","891-2",74,0.71844660194174759,null,"Scenedesmus obliquus","Exponential Growth Phase","6 days","Population: Abundance","IC50","7.43 uM","Chan,C.Y., 2005. Detoxification and Degradation of Triazine-Pollutants by an Integrated Photochemical-Biological System, Ph.D.Thesis, The Chinese University of Hong Kong, China:153. ","891",null,"Greater than 98% purity","Greater than 98% purity"]
["Freshwater","892-1",83,0.80582524271844658,null,"Scenedesmus acuolatus","not stated","24 hour","Population: Growth Rate: Inhibition of reproduction","EC50","56.9 ug/L","Faust,M., R. Altenburger, T. Backhaus, H. Blanck, W. Boedeker, P. Gramatica, V. Hamer, M. Scholze, M. Vighi, and L.H. Gr, 2001. Predicting the Joint Algal Toxicity of Multi-Component s-Triazine Mixtures at Low-Effect Concentrations of Individual Toxicants, Aquat. Toxicol.56(1): 13-32. ","892",null,"Simazine 99% purity","Simazine 99% purity"]
["Freshwater","892-2",83,0.80582524271844658,null,"Scenedesmus acuolatus","not stated","24 hour","Population: Growth Rate: Inhibition of reproduction","EC1","0.65 ug/L","Faust,M., R. Altenburger, T. Backhaus, H. Blanck, W. Boedeker, P. Gramatica, V. Hamer, M. Scholze, M. Vighi, and L.H. Gr, 2001. Predicting the Joint Algal Toxicity of Multi-Component s-Triazine Mixtures at Low-Effect Concentrations of Individual Toxicants, Aquat. Toxicol.56(1): 13-32. ","892",null,"Simazine 99% purity","Simazine 99% purity"]
["Freshwater","892-3",83,0.80582524271844658,null,"Scenedesmus acuolatus","not stated","24 hour","Population: Growth: Inhibition of reproduction","NOEC","3.7 ug/L","Faust,M., R. Altenburger, T. Backhaus, H. Blanck, W. Boedeker, P. Gramatica, V. Hamer, M. Scholze, M. Vighi, and L.H. Gr, 2001. Predicting the Joint Algal Toxicity of Multi-Component s-Triazine Mixtures at Low-Effect Concentrations of Individual Toxicants, Aquat. Toxicol.56(1): 13-32. ","892",null,"Simazine 99% purity","Simazine 99% purity"]
["Freshwater","893-1",74,0.71844660194174759,null,"Selenastrum capricornutum","Exponential Growth Phase","72 hours","Population: Abundance: Density","IC50","48.6 ug/L","Kamaya Y, Takada T and Suzuki K (2004). Effect of medium phosphate levels on the sensitivity of Selenastrum capricornutum to chemicals, Bulletin of Environmental Contamination and Toxicology 73(6), 995-1000.","893",null,"Purity of 97% or better","Purity of 97% or better"]
["Freshwater","893-2",74,0.71844660194174759,null,"Selenastrum capricornutum","Exponential Growth Phase","72 hours","Population: Abundance: Density","IC50","73.6 ug/L","Kamaya Y, Takada T and Suzuki K (2004). Effect of medium phosphate levels on the sensitivity of Selenastrum capricornutum to chemicals, Bulletin of Environmental Contamination and Toxicology 73(6), 995-1000.","893",null,"Purity of 97% or better","Purity of 97% or better"]
["Freshwater","893-3",74,0.71844660194174759,null,"Selenastrum capricornutum","Exponential Growth Phase","72 hours","Population: Abundance: Density","IC50","57.3 ug/L","Kamaya Y, Takada T and Suzuki K (2004). Effect of medium phosphate levels on the sensitivity of Selenastrum capricornutum to chemicals, Bulletin of Environmental Contamination and Toxicology 73(6), 995-1000.","893",null,"Purity of 97% or better","Purity of 97% or better"]
["Freshwater","893-1",76,0.73786407766990292,null,"Chlamydomonas geitleri","Exponential Growth Phase","3 days","Population: Growth Rate","EC50","5.12 uM","Francois,D.L., and G.G.C. Robinson, 1990. Indices of Triazine Toxicity in Chlamydomonas geitleri Ettl, Aquat. Toxicol.16(3): 205-228. ","893",null,"99.62% simazine","technical material - 99.62% simazine"]
["Freshwater","893-2",76,0.73786407766990292,null,"Chlamydomonas geitleri","Exponential Growth Phase","3 days","Population: Growth Rate","EC50","4.03 uM","Francois,D.L., and G.G.C. Robinson, 1990. Indices of Triazine Toxicity in Chlamydomonas geitleri Ettl, Aquat. Toxicol.16(3): 205-228. ","893",null,"99.62% simazine","technical material - 99.62% simazine"]
["Freshwater","893-3",76,0.73786407766990292,null,"Chlamydomonas geitleri","Exponential Growth Phase","3 days","Population: Growth Rate","EC50","3.70 uM","Francois,D.L., and G.G.C. Robinson, 1990. Indices of Triazine Toxicity in Chlamydomonas geitleri Ettl, Aquat. Toxicol.16(3): 205-228. ","893",null,"99.62% simazine","technical material - 99.62% simazine"]
["Freshwater","893-4",76,0.73786407766990292,null,"Chlamydomonas geitleri","Exponential Growth Phase","3 days","Population: Biomass: ChlA","EC50","4.47 uM","Francois,D.L., and G.G.C. Robinson, 1990. Indices of Triazine Toxicity in Chlamydomonas geitleri Ettl, Aquat. Toxicol.16(3): 205-228. ","893",null,"99.62% simazine","technical material - 99.62% simazine"]
["Freshwater","893-5",76,0.73786407766990292,null,"Chlamydomonas geitleri","Exponential Growth Phase","3 days","Population: Biomass: ChlA","EC50","6.52 uM","Francois,D.L., and G.G.C. Robinson, 1990. Indices of Triazine Toxicity in Chlamydomonas geitleri Ettl, Aquat. Toxicol.16(3): 205-228. ","893",null,"99.62% simazine","technical material - 99.62% simazine"]
["Freshwater","894-1",70,0.67961165048543692,null,"Rhamdia quelen","60-day old","96 hour","Mortality","LC50","10.5 mg/L","Kreutz,L.C., L.J.G. Barcellos, T.O. Silva, D. Anziliero, D. Martins, M. Lorenson, A. Marteninghe, and L.B. Da Silva, 2008. Acute Toxicity Test of Agricultural Pesticides on Silver Catfish (Rhamdia quelen) Fingerlings, Ciencia Rural38(4): 1050-1055. ","894",null,"Do Not Use - Mixture of atrazine and simazine","Formulation and is a mix of atrazine and simazine"]
["Freshwater","895-1",55,0.53398058252427105,null,"Selenastrum capricornutum","not stated","72 hours","Population: Growth Rate","EC50","220 ug/L","Okamura,H., I. Aoyama, D. Liu, R.J. Maguire, G.J. Pacepavicius, and Y.L. Lau, 2000. Fate and Ecotoxicity of the New Antifouling Compound Irgarol 1051 in the Aquatic Environment, Water Res.34(14): 3523-3530. ","895","Growth Rate","Simazine 99%","technical material - 99% simazine"]
["Freshwater","895-4",55,0.53398058252427105,null,"Selenastrum capricornutum","not stated","72 hours","Population: Density: Area under the curve","EC50","100 ug/L","Okamura,H., I. Aoyama, D. Liu, R.J. Maguire, G.J. Pacepavicius, and Y.L. Lau, 2000. Fate and Ecotoxicity of the New Antifouling Compound Irgarol 1051 in the Aquatic Environment, Water Res.34(14): 3523-3530. ","895","Area under the curve","Simazine 99%","technical material - 99% simazine"]
["Freshwater","896-1",61,0.59223300970873782,null,"Cyprinus carpio","Adult","90 days","Mortality","NOEC","45 ug/L","Oropesa,A.L., J.P. Garcia-Cambero, L. Gomez, V. Roncero, and F. Soler, 2009. Effect of Long-Term Exposure to Simazine on Histopathology, Hematological, and Biochemical Parameters in Cyprinus carpio, Environ. Toxicol.24(2): 187-199.","896",null,"Purity of 95%","Technical material - 95% simazine"]
["Freshwater","897-1",55,0.53398058252427105,null,"Aedes albopictus","Fourth instar larvae","48 hour","Mortality","NOEC","40 ppm","Suwanchaichinda,C., and L.B. Brattsten, 2001. Effects of Exposure to Pesticides on Carbaryl Toxicity and Cytochrome P450 Activities in Aedes albopictus Larvae (Diptera: Culicidae), Pestic. Biochem. Physiol.70(2): 63-73.  ","897",null,"Analytical grade","Analytical grade"]
["Freshwater","898-1",30,0.29126213592233008,null,"Heliodiaptomus viduus","not stated","24 hour","Mortality","LC50","1000 ug/L","George,J.P., H.G. Hingorani, and K.S. Rao, 1982. Herbicide Toxicity to Fish-Food Organisms, Environ. Pollut. A.28(3): 183-188.","898","Do Not Use - Failed QAQC"]
["Freshwater","898-2",30,0.29126213592233008,null,"Heliodiaptomus viduus","not stated","13 hour","Mortality","LC50","10000 ug/L","George,J.P., H.G. Hingorani, and K.S. Rao, 1982. Herbicide Toxicity to Fish-Food Organisms, Environ. Pollut. A.28(3): 183-188.","898","Do Not Use - Failed QAQC"]
["Freshwater","898-3",30,0.29126213592233008,null,"Heliodiaptomus viduus","not stated","11 hour","Mortality","LC50","50000 ug/L","George,J.P., H.G. Hingorani, and K.S. Rao, 1982. Herbicide Toxicity to Fish-Food Organisms, Environ. Pollut. A.28(3): 183-188.","898","Do Not Use - Failed QAQC"]
["Freshwater","898-4",30,0.29126213592233008,null,"Heliodiaptomus viduus","not stated","5 hour","Mortality","LC50","100000 ug/L","George,J.P., H.G. Hingorani, and K.S. Rao, 1982. Herbicide Toxicity to Fish-Food Organisms, Environ. Pollut. A.28(3): 183-188.","898","Do Not Use - Failed QAQC"]
["Marine ","899-1",43,0.53608247422680411,null,"Navicula perminuta","Exponential growth phase","5 days","Population: Growth Rate","LOEC","337 nM","Mason,C.F., G.J.C. Underwood, N.R. Baker, P.A. Davey, I. Davidson, A. Hanlon, S.P. Long, K. Oxborough, D.M. Paterson, an, 2003. The Role of Herbicides in the Erosion of Salt Marshes in Eastern England,  Environ. Pollut.122(1): 41-49.","899","Do Not Use - Failed QAQC"]
["Marine ","899-2",43,0.53608247422680411,null,"Navicula perminuta","Exponential growth phase","5 days","Population: Growth Rate","NOEC","169 nM","Mason,C.F., G.J.C. Underwood, N.R. Baker, P.A. Davey, I. Davidson, A. Hanlon, S.P. Long, K. Oxborough, D.M. Paterson, an, 2003. The Role of Herbicides in the Erosion of Salt Marshes in Eastern England,  Environ. Pollut.122(1): 41-49.","899","Do Not Use - Failed QAQC"]
["Marine ","899-3",43,0.53608247422680411,null,"Cylindrotheca closterium","Exponential growth phase","5 days","Population: Growth Rate","LOEC","337 nM","Mason,C.F., G.J.C. Underwood, N.R. Baker, P.A. Davey, I. Davidson, A. Hanlon, S.P. Long, K. Oxborough, D.M. Paterson, an, 2003. The Role of Herbicides in the Erosion of Salt Marshes in Eastern England,  Environ. Pollut.122(1): 41-49.","899","Do Not Use - Failed QAQC"]
["Marine ","899-4",43,0.53608247422680411,null,"Cylindrotheca closterium","Exponential growth phase","5 days","Population: Growth Rate","NOEC","169 nM","Mason,C.F., G.J.C. Underwood, N.R. Baker, P.A. Davey, I. Davidson, A. Hanlon, S.P. Long, K. Oxborough, D.M. Paterson, an, 2003. The Role of Herbicides in the Erosion of Salt Marshes in Eastern England,  Environ. Pollut.122(1): 41-49.","899","Do Not Use - Failed QAQC"]
["Marine ","899-5",43,0.53608247422680411,null,"Cylindrotheca closterium","Exponential growth phase","5 days","Population: ChlA","LOEC","337 nM","Mason,C.F., G.J.C. Underwood, N.R. Baker, P.A. Davey, I. Davidson, A. Hanlon, S.P. Long, K. Oxborough, D.M. Paterson, an, 2003. The Role of Herbicides in the Erosion of Salt Marshes in Eastern England,  Environ. Pollut.122(1): 41-49.","899","Do Not Use - Failed QAQC"]
["Marine ","899-6",43,0.45631067961165001,null,"Cylindrotheca closterium","Exponential growth phase","5 days","Population: ChlA","NOEC"," 169 nM","Mason,C.F., G.J.C. Underwood, N.R. Baker, P.A. Davey, I. Davidson, A. Hanlon, S.P. Long, K. Oxborough, D.M. Paterson, an, 2003. The Role of Herbicides in the Erosion of Salt Marshes in Eastern England,  Environ. Pollut.122(1): 41-49.","899","Do Not Use - Failed QAQC"]
["Marine ","899-7",43,0.53608247422680411,null,"Navicula perminuta","Exponential growth phase","5 days","Population: ChlA","LOEC","33.7 nM","Mason,C.F., G.J.C. Underwood, N.R. Baker, P.A. Davey, I. Davidson, A. Hanlon, S.P. Long, K. Oxborough, D.M. Paterson, an, 2003. The Role of Herbicides in the Erosion of Salt Marshes in Eastern England,  Environ. Pollut.122(1): 41-49.","899","Do Not Use - Failed QAQC"]
["Marine ","899-8",43,0.53608247422680411,null,"Navicula perminuta","Exponential growth phase","5 days","Population: ChlA","NOEC","16.9 nM","Mason,C.F., G.J.C. Underwood, N.R. Baker, P.A. Davey, I. Davidson, A. Hanlon, S.P. Long, K. Oxborough, D.M. Paterson, an, 2003. The Role of Herbicides in the Erosion of Salt Marshes in Eastern England,  Environ. Pollut.122(1): 41-49.","899","Do Not Use - Failed QAQC"]
["Freshwater","900-1",73,0.70873786407766992,null,"Cyprinus carpio","Adult","90 days","Mortality","NOEC","45 ug/L","Oropesa,A.L., J.P. Garcia-Cambero, and F. Soler, 2009. Effect of a Subchronic Exposure to Simazine on Energetic Metabolism of Common Carp (Cyprinus carpio), J. Environ. Sci. Health Part B Pestic. Food Contam. Agric. Wastes44(2): 144-156.","900",null,"Chemical purity 95%","Chemical purity 95%"]
["Freshwater","901-1",62,0.60194174757281549,null,"Myriophyllum aquaticum","2 weeks old","7 days","Population: Growth: Fresh weight","LOEC","0.05 mg/L","Knuteson,S.L., T. Whitwell, and S.J. Klaine, 2002. Influence of Plant Age and Size on Simazine Toxicity and Uptake, J. Environ. Qual.31(6): 2096-2103. ","901",null,"Technical grade, 99.6% purity","Technical grade, 99.6% purity"]
["Freshwater","902-3",60,0.58252427184466016,null,"Daphnia magna","<1 day old","24 hour","Mortality","LC50",">1000 mg/L","Wan,M.T., C. Buday, G. Schroeder, J. Kuo, and J. Pasternak, 2006. Toxicity to Daphnia magna, Hyalella azteca, Oncorhynchus kisutch, Oncorhynchus mykiss, Oncorhynchus tshawytscha, and Rana catesbeiana of Atrazine, Metolachlor, Simazine, and Their Formulated Products, Bull. Environ. Contam. Toxicol.76(1): 52-58. ","902","Do Not Use - LC50 not obtained","Simazine Princep (89% simazine plus 1% mostly propazine)","formulation plus is a mix of simazine and propazine"]
["Freshwater","902-6",60,0.58252427184466016,null,"Daphnia magna","<1 day old","48 hour","Mortality","LC50",">1000 mg/L","Wan,M.T., C. Buday, G. Schroeder, J. Kuo, and J. Pasternak, 2006. Toxicity to Daphnia magna, Hyalella azteca, Oncorhynchus kisutch, Oncorhynchus mykiss, Oncorhynchus tshawytscha, and Rana catesbeiana of Atrazine, Metolachlor, Simazine, and Their Formulated Products, Bull. Environ. Contam. Toxicol.76(1): 52-58. ","902","Do Not Use - LC50 not obtained","Simazine Princep (89% simazine plus 1% mostly propazine)","formulation plus is a mix of simazine and propazine"]
["Freshwater","902-9",64,0.62135922330097082,null,"Hyalella azteca","2 days old","96 hour","Mortality","LC50","270 mg/L","Wan,M.T., C. Buday, G. Schroeder, J. Kuo, and J. Pasternak, 2006. Toxicity to Daphnia magna, Hyalella azteca, Oncorhynchus kisutch, Oncorhynchus mykiss, Oncorhynchus tshawytscha, and Rana catesbeiana of Atrazine, Metolachlor, Simazine, and Their Formulated Products, Bull. Environ. Contam. Toxicol.76(1): 52-58. ","902",null,"Simazine Princep (89% simazine plus 1% mostly propazine)","formulation plus is a mix of simazine and propazine"]
["Freshwater","902-12",60,0.58252427184466016,null,"Oncorhynchus kisutch","1 month","24 hour","Mortality","LC50","390 mg/L","Wan,M.T., C. Buday, G. Schroeder, J. Kuo, and J. Pasternak, 2006. Toxicity to Daphnia magna, Hyalella azteca, Oncorhynchus kisutch, Oncorhynchus mykiss, Oncorhynchus tshawytscha, and Rana catesbeiana of Atrazine, Metolachlor, Simazine, and Their Formulated Products, Bull. Environ. Contam. Toxicol.76(1): 52-58. ","902",null,"Simazine Princep (89% simazine plus 1% mostly propazine)","formulation plus is a mix of simazine and propazine"]
["Freshwater","902-15",60,0.58252427184466016,null,"Oncorhynchus kisutch","1 month","48 hour","Mortality","LC50","330 mg/L","Wan,M.T., C. Buday, G. Schroeder, J. Kuo, and J. Pasternak, 2006. Toxicity to Daphnia magna, Hyalella azteca, Oncorhynchus kisutch, Oncorhynchus mykiss, Oncorhynchus tshawytscha, and Rana catesbeiana of Atrazine, Metolachlor, Simazine, and Their Formulated Products, Bull. Environ. Contam. Toxicol.76(1): 52-58. ","902",null,"Simazine Princep (89% simazine plus 1% mostly propazine)","formulation plus is a mix of simazine and propazine"]
["Freshwater","902-18",60,0.58252427184466016,null,"Oncorhynchus kisutch","1 month","72 hours","Mortality","LC50","330 mg/L","Wan,M.T., C. Buday, G. Schroeder, J. Kuo, and J. Pasternak, 2006. Toxicity to Daphnia magna, Hyalella azteca, Oncorhynchus kisutch, Oncorhynchus mykiss, Oncorhynchus tshawytscha, and Rana catesbeiana of Atrazine, Metolachlor, Simazine, and Their Formulated Products, Bull. Environ. Contam. Toxicol.76(1): 52-58. ","902",null,"Simazine Princep (89% simazine plus 1% mostly propazine)","formulation plus is a mix of simazine and propazine"]
["Freshwater","902-21",60,0.58252427184466016,null,"Oncorhynchus kisutch","1 month","96 hour","Mortality","LC50","330 mg/L","Wan,M.T., C. Buday, G. Schroeder, J. Kuo, and J. Pasternak, 2006. Toxicity to Daphnia magna, Hyalella azteca, Oncorhynchus kisutch, Oncorhynchus mykiss, Oncorhynchus tshawytscha, and Rana catesbeiana of Atrazine, Metolachlor, Simazine, and Their Formulated Products, Bull. Environ. Contam. Toxicol.76(1): 52-58. ","902",null,"Simazine Princep (89% simazine plus 1% mostly propazine)","formulation plus is a mix of simazine and propazine"]
["Freshwater","902-24",64,0.62135922330097082,null,"Oncorhynchus mykiss","1 month","24 hour","Mortality","LC50","360 mg/L","Wan,M.T., C. Buday, G. Schroeder, J. Kuo, and J. Pasternak, 2006. Toxicity to Daphnia magna, Hyalella azteca, Oncorhynchus kisutch, Oncorhynchus mykiss, Oncorhynchus tshawytscha, and Rana catesbeiana of Atrazine, Metolachlor, Simazine, and Their Formulated Products, Bull. Environ. Contam. Toxicol.76(1): 52-58. ","902",null,"Simazine Princep (89% simazine plus 1% mostly propazine)","formulation plus is a mix of simazine and propazine"]
["Freshwater","902-27",64,0.62135922330097082,null,"Oncorhynchus mykiss","1 month","48 hour","Mortality","LC50","350 mg/L","Wan,M.T., C. Buday, G. Schroeder, J. Kuo, and J. Pasternak, 2006. Toxicity to Daphnia magna, Hyalella azteca, Oncorhynchus kisutch, Oncorhynchus mykiss, Oncorhynchus tshawytscha, and Rana catesbeiana of Atrazine, Metolachlor, Simazine, and Their Formulated Products, Bull. Environ. Contam. Toxicol.76(1): 52-58. ","902",null,"Simazine Princep (89% simazine plus 1% mostly propazine)","formulation plus is a mix of simazine and propazine"]
["Freshwater","902-30",64,0.62135922330097082,null,"Oncorhynchus mykiss","1 month","72 hours","Mortality","LC50","330 mg/L","Wan,M.T., C. Buday, G. Schroeder, J. Kuo, and J. Pasternak, 2006. Toxicity to Daphnia magna, Hyalella azteca, Oncorhynchus kisutch, Oncorhynchus mykiss, Oncorhynchus tshawytscha, and Rana catesbeiana of Atrazine, Metolachlor, Simazine, and Their Formulated Products, Bull. Environ. Contam. Toxicol.76(1): 52-58. ","902",null,"Simazine Princep (89% simazine plus 1% mostly propazine)","formulation plus is a mix of simazine and propazine"]
["Freshwater","902-33",64,0.62135922330097082,null,"Oncorhynchus mykiss","1 month","96 hour","Mortality","LC50","330 mg/L","Wan,M.T., C. Buday, G. Schroeder, J. Kuo, and J. Pasternak, 2006. Toxicity to Daphnia magna, Hyalella azteca, Oncorhynchus kisutch, Oncorhynchus mykiss, Oncorhynchus tshawytscha, and Rana catesbeiana of Atrazine, Metolachlor, Simazine, and Their Formulated Products, Bull. Environ. Contam. Toxicol.76(1): 52-58. ","902",null,"Simazine Princep (89% simazine plus 1% mostly propazine)","formulation plus is a mix of simazine and propazine"]
["Freshwater","902-36",60,0.58252427184466016,null,"Oncorhynchus tshawytscha","4-5 months old","24 hour","Mortality","LC50","1180 mg/L","Wan,M.T., C. Buday, G. Schroeder, J. Kuo, and J. Pasternak, 2006. Toxicity to Daphnia magna, Hyalella azteca, Oncorhynchus kisutch, Oncorhynchus mykiss, Oncorhynchus tshawytscha, and Rana catesbeiana of Atrazine, Metolachlor, Simazine, and Their Formulated Products, Bull. Environ. Contam. Toxicol.76(1): 52-58. ","902",null,"Simazine Princep (89% simazine plus 1% mostly propazine)","formulation plus is a mix of simazine and propazine"]
["Freshwater","902-39",60,0.58252427184466016,null,"Oncorhynchus tshawytscha","4-5 months old","48 hour","Mortality","LC50","1020 mg/L","Wan,M.T., C. Buday, G. Schroeder, J. Kuo, and J. Pasternak, 2006. Toxicity to Daphnia magna, Hyalella azteca, Oncorhynchus kisutch, Oncorhynchus mykiss, Oncorhynchus tshawytscha, and Rana catesbeiana of Atrazine, Metolachlor, Simazine, and Their Formulated Products, Bull. Environ. Contam. Toxicol.76(1): 52-58. ","902",null,"Simazine Princep (89% simazine plus 1% mostly propazine)","formulation plus is a mix of simazine and propazine"]
["Freshwater","902-42",60,0.58252427184466016,null,"Oncorhynchus tshawytscha","4-5 months old","72 hours","Mortality","LC50","930 mg/L","Wan,M.T., C. Buday, G. Schroeder, J. Kuo, and J. Pasternak, 2006. Toxicity to Daphnia magna, Hyalella azteca, Oncorhynchus kisutch, Oncorhynchus mykiss, Oncorhynchus tshawytscha, and Rana catesbeiana of Atrazine, Metolachlor, Simazine, and Their Formulated Products, Bull. Environ. Contam. Toxicol.76(1): 52-58. ","902",null,"Simazine Princep (89% simazine plus 1% mostly propazine)","formulation plus is a mix of simazine and propazine"]
["Freshwater","902-45",60,0.58252427184466016,null,"Oncorhynchus tshawytscha","4-5 months old","96 hour","Mortality","LC50","910 mg/L","Wan,M.T., C. Buday, G. Schroeder, J. Kuo, and J. Pasternak, 2006. Toxicity to Daphnia magna, Hyalella azteca, Oncorhynchus kisutch, Oncorhynchus mykiss, Oncorhynchus tshawytscha, and Rana catesbeiana of Atrazine, Metolachlor, Simazine, and Their Formulated Products, Bull. Environ. Contam. Toxicol.76(1): 52-58. ","902",null,"Simazine Princep (89% simazine plus 1% mostly propazine)","formulation plus is a mix of simazine and propazine"]
["Freshwater","902-48",64,0.62135922330097004,null,"Rana catesbeiana","4-6 months old","24 hour","Mortality","LC50",">2000 mg/L","Wan,M.T., C. Buday, G. Schroeder, J. Kuo, and J. Pasternak, 2006. Toxicity to Daphnia magna, Hyalella azteca, Oncorhynchus kisutch, Oncorhynchus mykiss, Oncorhynchus tshawytscha, and Rana catesbeiana of Atrazine, Metolachlor, Simazine, and Their Formulated Products, Bull. Environ. Contam. Toxicol.76(1): 52-58. ","902","Do Not Use - LC50 not obtained","Simazine Princep (89% simazine plus 1% mostly propazine)","formulation plus is a mix of simazine and propazine"]
["Freshwater","902-51",64,0.62135922330097004,null,"Rana catesbeiana","4-6 months old","48 hour","Mortality","LC50",">2000 mg/L","Wan,M.T., C. Buday, G. Schroeder, J. Kuo, and J. Pasternak, 2006. Toxicity to Daphnia magna, Hyalella azteca, Oncorhynchus kisutch, Oncorhynchus mykiss, Oncorhynchus tshawytscha, and Rana catesbeiana of Atrazine, Metolachlor, Simazine, and Their Formulated Products, Bull. Environ. Contam. Toxicol.76(1): 52-58. ","902","Do Not Use - LC50 not obtained","Simazine Princep (89% simazine plus 1% mostly propazine)","formulation plus is a mix of simazine and propazine"]
["Freshwater","902-54",64,0.62135922330097004,null,"Rana catesbeiana","4-6 months old","72 hours","Mortality","LC50","2000 mg/L","Wan,M.T., C. Buday, G. Schroeder, J. Kuo, and J. Pasternak, 2006. Toxicity to Daphnia magna, Hyalella azteca, Oncorhynchus kisutch, Oncorhynchus mykiss, Oncorhynchus tshawytscha, and Rana catesbeiana of Atrazine, Metolachlor, Simazine, and Their Formulated Products, Bull. Environ. Contam. Toxicol.76(1): 52-58. ","902",null,"Simazine Princep (89% simazine plus 1% mostly propazine)","formulation plus is a mix of simazine and propazine"]
["Freshwater","902-57",64,0.62135922330097004,null,"Rana catesbeiana","4-6 months old","96 hour","Mortality","LC50","1780 mg/L","Wan,M.T., C. Buday, G. Schroeder, J. Kuo, and J. Pasternak, 2006. Toxicity to Daphnia magna, Hyalella azteca, Oncorhynchus kisutch, Oncorhynchus mykiss, Oncorhynchus tshawytscha, and Rana catesbeiana of Atrazine, Metolachlor, Simazine, and Their Formulated Products, Bull. Environ. Contam. Toxicol.76(1): 52-58. ","902",null,"Simazine Princep (89% simazine plus 1% mostly propazine)","formulation plus is a mix of simazine and propazine"]
["Freshwater","903-1",83,0.80582524271844658,null,"Vallisneria americana","not stated","13 days","Growth Rate: Gain (Fresh Weight)","NOAEC","<0.058 mg/L","Wilson,P.C., and S.B. Wilson, 2010. Toxicity of the Herbicides Bromacil and Simazine to the Aquatic Macrophyte, Vallisneria americana Michx,  Environ. Toxicol. Chem.29(1): 201-211.","903","Do Not Use - LOEC obtained below",null,"formulation plus is a mix of simazine and propazine"]
["Freshwater","903-2",83,0.80582524271844658,null,"Vallisneria americana","not stated","13 days","Growth Rate: Gain (Fresh Weight)","LOAEC","0.058 mg/L","Wilson,P.C., and S.B. Wilson, 2010. Toxicity of the Herbicides Bromacil and Simazine to the Aquatic Macrophyte, Vallisneria americana Michx,  Environ. Toxicol. Chem.29(1): 201-211.","903",null,"Technical grade simazine (99% purity) - author responded","Technical grade simazine (99% purity) - author responded"]
["Freshwater","903-3",83,0.80582524271844658,null,"Vallisneria americana","not stated","13 days","Growth Rate: Gain (Fresh Weight)","EC50","0.067 mg/L","Wilson,P.C., and S.B. Wilson, 2010. Toxicity of the Herbicides Bromacil and Simazine to the Aquatic Macrophyte, Vallisneria americana Michx,  Environ. Toxicol. Chem.29(1): 201-211.","903",null,"Technical grade simazine (99% purity) - author responded","Technical grade simazine (99% purity) - author responded"]
["Freshwater","903-7",83,0.80582524271844658,null,"Vallisneria americana","not stated","13 days","Growth Rate: New Leaves","NOAEC","0.229 mg/L","Wilson,P.C., and S.B. Wilson, 2010. Toxicity of the Herbicides Bromacil and Simazine to the Aquatic Macrophyte, Vallisneria americana Michx,  Environ. Toxicol. Chem.29(1): 201-211.","903",null,"Technical grade simazine (99% purity) - author responded","Technical grade simazine (99% purity) - author responded"]
["Freshwater","903-8",83,0.80582524271844658,null,"Vallisneria americana","not stated","13 days","Growth Rate: New Leaves","LOAEC","0.344 mg/L","Wilson,P.C., and S.B. Wilson, 2010. Toxicity of the Herbicides Bromacil and Simazine to the Aquatic Macrophyte, Vallisneria americana Michx,  Environ. Toxicol. Chem.29(1): 201-211.","903",null,"Technical grade simazine (99% purity) - author responded","Technical grade simazine (99% purity) - author responded"]
["Freshwater","903-9",83,0.80582524271844658,null,"Vallisneria americana","not stated","13 days","Growth Rate: New Leaves","EC50","0.154 mg/L","Wilson,P.C., and S.B. Wilson, 2010. Toxicity of the Herbicides Bromacil and Simazine to the Aquatic Macrophyte, Vallisneria americana Michx,  Environ. Toxicol. Chem.29(1): 201-211.","903",null,"Technical grade simazine (99% purity) - author responded","Technical grade simazine (99% purity) - author responded"]
["Freshwater","903-13",83,0.80582524271844658,null,"Vallisneria americana","not stated","13 days","Growth Rate: Length","NOAEC","0.058 mg/L","Wilson,P.C., and S.B. Wilson, 2010. Toxicity of the Herbicides Bromacil and Simazine to the Aquatic Macrophyte, Vallisneria americana Michx,  Environ. Toxicol. Chem.29(1): 201-211.","903",null,"Technical grade simazine (99% purity) - author responded","Technical grade simazine (99% purity) - author responded"]
["Freshwater","903-14",83,0.80582524271844658,null,"Vallisneria americana","not stated","13 days","Growth Rate: Length","LOAEC","0.116 mg/L","Wilson,P.C., and S.B. Wilson, 2010. Toxicity of the Herbicides Bromacil and Simazine to the Aquatic Macrophyte, Vallisneria americana Michx,  Environ. Toxicol. Chem.29(1): 201-211.","903",null,"Technical grade simazine (99% purity) - author responded","Technical grade simazine (99% purity) - author responded"]
["Freshwater","903-15",83,0.80582524271844658,null,"Vallisneria americana","not stated","13 days","Growth Rate: Length","EC50","0.081 mg/L","Wilson,P.C., and S.B. Wilson, 2010. Toxicity of the Herbicides Bromacil and Simazine to the Aquatic Macrophyte, Vallisneria americana Michx,  Environ. Toxicol. Chem.29(1): 201-211.","903",null,"Technical grade simazine (99% purity) - author responded","Technical grade simazine (99% purity) - author responded"]
["Freshwater","904-1",67,0.65048543689320393,null,"Typha latifolia","not stated","7 days","Growth Rate: Gain (Fresh Weight)","NOEC","0.3 mg/L","Wilson,P.C., T. Whitwell, and S.J. Klaine, 2000. Metalaxyl and Simazine Toxicity to and Uptake by Typha latifolia, Arch. Environ. Contam. Toxicol.39(3): 282-288.","904",null,"Technical grade simazine (purity 99.6%)","Technical grade simazine (purity 99.6%)"]
["Freshwater","904-2",67,0.65048543689320393,null,"Typha latifolia","not stated","7 days","Growth Rate: Gain (Fresh Weight)","LOEC","1 mg/L","Wilson,P.C., T. Whitwell, and S.J. Klaine, 2000. Metalaxyl and Simazine Toxicity to and Uptake by Typha latifolia, Arch. Environ. Contam. Toxicol.39(3): 282-288.","904",null,"Technical grade simazine (purity 99.6%)","Technical grade simazine (purity 99.6%)"]
["Freshwater","905-1",64,0.62135922330097082,null,"Cyprinus carpio","1 year old","90 days","Mortality","NOEC","4 ug/L","Velisek,J., A. Stara, J. Machova, and Z. Svobodova, 2012. Effects of Long-Term Exposure to Simazine in Real Concentrations on Common Carp (Cyprinus carpio L.)","905",null,"Chemical purity 99.5%","Chemical purity 99.5%"]
["Freshwater","905-2",72,0.69902912621359226,null,"Cyprinus carpio","1 year old","90 days","Growth: Length","NOEC","4 ug/L","Velisek,J., A. Stara, J. Machova, and Z. Svobodova, 2012. Effects of Long-Term Exposure to Simazine in Real Concentrations on Common Carp (Cyprinus carpio L.)","905",null,"Chemical purity 99.5%","Chemical purity 99.5%"]
["Freshwater","905-3",72,0.69902912621359226,null,"Cyprinus carpio","1 year old","90 days","Growth: Weight","NOEC","4 ug/L","Velisek,J., A. Stara, J. Machova, and Z. Svobodova, 2012. Effects of Long-Term Exposure to Simazine in Real Concentrations on Common Carp (Cyprinus carpio L.)","905",null,"Chemical purity 99.5%","Chemical purity 99.5%"]
["Freshwater","896-3",58,0.56310679611650483,null,"Cyprinus carpio","Adult","90 days","Growth: Weight","EC6.99","45 ug/L","Oropesa,A.L., J.P. Garcia-Cambero, L. Gomez, V. Roncero, and F. Soler, 2009. Effect of Long-Term Exposure to Simazine on Histopathology, Hematological, and Biochemical Parameters in Cyprinus carpio, Environ. Toxicol.","896",null,"Chemical purity of 95%","Chemical purity of 95%"]
["Freshwater","896-4",58,0.56310679611650483,null,"Cyprinus carpio","Adult","90 days","Growth: Length","EC2.52","45 ug/L","Oropesa,A.L., J.P. Garcia-Cambero, L. Gomez, V. Roncero, and F. Soler, 2009. Effect of Long-Term Exposure to Simazine on Histopathology, Hematological, and Biochemical Parameters in Cyprinus carpio, Environ. Toxicol.","896",null,"Chemical purity of 95%","Chemical purity of 95%"]
["Freshwater","896-5",58,0.56310679611650483,null,"Cyprinus carpio","Adult","90 days","Growth: Height","EC2.71","45 ug/L","Oropesa,A.L., J.P. Garcia-Cambero, L. Gomez, V. Roncero, and F. Soler, 2009. Effect of Long-Term Exposure to Simazine on Histopathology, Hematological, and Biochemical Parameters in Cyprinus carpio, Environ. Toxicol.","896",null,"Chemical purity of 95%","Chemical purity of 95%"]
["Freshwater","906-1",69,0.66990291262135904,null,"Elodea canadensis","not stated","14 days","Growth Rate: Length","NOEC","1.11 mg/L","Vervliet-Scheebaum,M., A. Straus, H. Tremp, M. Hamer, S.J. Maund, E. Wagner, and R. Schulz, 2010. A Microcosm System to Evaluate the Toxicity of the Triazine Herbicide Simazine on Aquatic Macrophytes, Environ. Pollut.158:615-623. ","906",null,"Commercial grade Gesatop 500 FW","formulation Gesatop 500FW"]
["Freshwater","906-2",69,0.66990291262135904,null,"Elodea canadensis","not stated","14 days","Growth Rate: Length","LOEC","8.47 mg/L","Vervliet-Scheebaum,M., A. Straus, H. Tremp, M. Hamer, S.J. Maund, E. Wagner, and R. Schulz, 2010. A Microcosm System to Evaluate the Toxicity of the Triazine Herbicide Simazine on Aquatic Macrophytes, Environ. Pollut.158:615-623. ","906",null,"Commercial grade Gesatop 500 FW","formulation Gesatop 500FW"]
["Freshwater","906-3",69,0.66990291262135904,null,"Elodea canadensis","not stated","28 days","Growth Rate: Length","NOEC","<0.083 mg/L","Vervliet-Scheebaum,M., A. Straus, H. Tremp, M. Hamer, S.J. Maund, E. Wagner, and R. Schulz, 2010. A Microcosm System to Evaluate the Toxicity of the Triazine Herbicide Simazine on Aquatic Macrophytes, Environ. Pollut.158:615-623. ","906","Do Not Use - LOEC obtained below","Commercial grade Gesatop 500 FW","formulation Gesatop 500FW"]
["Freshwater","906-4",69,0.66990291262135904,null,"Elodea canadensis","not stated","28 days","Growth Rate: Length","LOEC","0.083 mg/L","Vervliet-Scheebaum,M., A. Straus, H. Tremp, M. Hamer, S.J. Maund, E. Wagner, and R. Schulz, 2010. A Microcosm System to Evaluate the Toxicity of the Triazine Herbicide Simazine on Aquatic Macrophytes, Environ. Pollut.158:615-623. ","906",null,"Commercial grade Gesatop 500 FW","formulation Gesatop 500FW"]
["Freshwater","906-5",69,0.66990291262135904,null,"Elodea canadensis","not stated","56 days","Growth Rate: Length","NOEC","0.083 mg/L","Vervliet-Scheebaum,M., A. Straus, H. Tremp, M. Hamer, S.J. Maund, E. Wagner, and R. Schulz, 2010. A Microcosm System to Evaluate the Toxicity of the Triazine Herbicide Simazine on Aquatic Macrophytes, Environ. Pollut.158:615-623. ","906",null,"Commercial grade Gesatop 500 FW","formulation Gesatop 500FW"]
["Freshwater","906-6",69,0.66990291262135904,null,"Elodea canadensis","not stated","56 days","Growth Rate: Length","LOEC","1.11 mg/L","Vervliet-Scheebaum,M., A. Straus, H. Tremp, M. Hamer, S.J. Maund, E. Wagner, and R. Schulz, 2010. A Microcosm System to Evaluate the Toxicity of the Triazine Herbicide Simazine on Aquatic Macrophytes, Environ. Pollut.158:615-623. ","906",null,"Commercial grade Gesatop 500 FW","formulation Gesatop 500FW"]
["Freshwater","906-7",69,0.66990291262135904,null,"Elodea canadensis","not stated","84 days","Growth Rate: Length","NOEC","0.083 mg/L","Vervliet-Scheebaum,M., A. Straus, H. Tremp, M. Hamer, S.J. Maund, E. Wagner, and R. Schulz, 2010. A Microcosm System to Evaluate the Toxicity of the Triazine Herbicide Simazine on Aquatic Macrophytes, Environ. Pollut.158:615-623. ","906",null,"Commercial grade Gesatop 500 FW","formulation Gesatop 500FW"]
["Freshwater","906-8",69,0.66990291262135904,null,"Elodea canadensis","not stated","84 days","Growth Rate: Length","LOEC","1.11 mg/L","Vervliet-Scheebaum,M., A. Straus, H. Tremp, M. Hamer, S.J. Maund, E. Wagner, and R. Schulz, 2010. A Microcosm System to Evaluate the Toxicity of the Triazine Herbicide Simazine on Aquatic Macrophytes, Environ. Pollut.158:615-623. ","906",null,"Commercial grade Gesatop 500 FW","formulation Gesatop 500FW"]
["Freshwater","906-9",69,0.66990291262135904,null,"Myriophyllum spicatum","not stated","14 days","Growth Rate: Length","NOEC","1.11 mg/L","Vervliet-Scheebaum,M., A. Straus, H. Tremp, M. Hamer, S.J. Maund, E. Wagner, and R. Schulz, 2010. A Microcosm System to Evaluate the Toxicity of the Triazine Herbicide Simazine on Aquatic Macrophytes, Environ. Pollut.158:615-623. ","906",null,"Commercial grade Gesatop 500 FW","formulation Gesatop 500FW"]
["Freshwater","906-10",69,0.66990291262135904,null,"Myriophyllum spicatum","not stated","14 days","Growth Rate: Length","LOEC","8.47 mg/L","Vervliet-Scheebaum,M., A. Straus, H. Tremp, M. Hamer, S.J. Maund, E. Wagner, and R. Schulz, 2010. A Microcosm System to Evaluate the Toxicity of the Triazine Herbicide Simazine on Aquatic Macrophytes, Environ. Pollut.158:615-623. ","906",null,"Commercial grade Gesatop 500 FW","formulation Gesatop 500FW"]
["Freshwater","906-11",69,0.66990291262135904,null,"Myriophyllum spicatum","not stated","28 days","Growth Rate: Length","NOEC","0.083 mg/L","Vervliet-Scheebaum,M., A. Straus, H. Tremp, M. Hamer, S.J. Maund, E. Wagner, and R. Schulz, 2010. A Microcosm System to Evaluate the Toxicity of the Triazine Herbicide Simazine on Aquatic Macrophytes, Environ. Pollut.158:615-623. ","906",null,"Commercial grade Gesatop 500 FW","formulation Gesatop 500FW"]
["Freshwater","906-12",69,0.66990291262135904,null,"Myriophyllum spicatum","not stated","28 days","Growth Rate: Length","LOEC","1.11 mg/L","Vervliet-Scheebaum,M., A. Straus, H. Tremp, M. Hamer, S.J. Maund, E. Wagner, and R. Schulz, 2010. A Microcosm System to Evaluate the Toxicity of the Triazine Herbicide Simazine on Aquatic Macrophytes, Environ. Pollut.158:615-623. ","906",null,"Commercial grade Gesatop 500 FW","formulation Gesatop 500FW"]
["Freshwater","906-13",69,0.66990291262135904,null,"Myriophyllum spicatum","not stated","56 days","Growth Rate: Length","NOEC","1.11 mg/L","Vervliet-Scheebaum,M., A. Straus, H. Tremp, M. Hamer, S.J. Maund, E. Wagner, and R. Schulz, 2010. A Microcosm System to Evaluate the Toxicity of the Triazine Herbicide Simazine on Aquatic Macrophytes, Environ. Pollut.158:615-623. ","906",null,"Commercial grade Gesatop 500 FW","formulation Gesatop 500FW"]
["Freshwater","906-14",69,0.66990291262135904,null,"Myriophyllum spicatum","not stated","84 days","Growth Rate: Length","NOEC","8.47 mg/L","Vervliet-Scheebaum,M., A. Straus, H. Tremp, M. Hamer, S.J. Maund, E. Wagner, and R. Schulz, 2010. A Microcosm System to Evaluate the Toxicity of the Triazine Herbicide Simazine on Aquatic Macrophytes, Environ. Pollut.158:615-623. ","906",null,"Commercial grade Gesatop 500 FW","formulation Gesatop 500FW"]
["Freshwater","906-15",69,0.66990291262135904,null,"Glyceria maxima","not stated","14 days","Growth Rate: Length","NOEC","8.47 mg/L","Vervliet-Scheebaum,M., A. Straus, H. Tremp, M. Hamer, S.J. Maund, E. Wagner, and R. Schulz, 2010. A Microcosm System to Evaluate the Toxicity of the Triazine Herbicide Simazine on Aquatic Macrophytes, Environ. Pollut.158:615-623. ","906",null,"Commercial grade Gesatop 500 FW","formulation Gesatop 500FW"]
["Freshwater","906-16",69,0.66990291262135904,null,"Glyceria maxima","not stated","28 days","Growth Rate: Length","NOEC","1.11 mg/L","Vervliet-Scheebaum,M., A. Straus, H. Tremp, M. Hamer, S.J. Maund, E. Wagner, and R. Schulz, 2010. A Microcosm System to Evaluate the Toxicity of the Triazine Herbicide Simazine on Aquatic Macrophytes, Environ. Pollut.158:615-623. ","906",null,"Commercial grade Gesatop 500 FW","formulation Gesatop 500FW"]
["Freshwater","906-17",69,0.66990291262135904,null,"Glyceria maxima","not stated","28 days","Growth Rate: Length","LOEC","8.47 mg/L","Vervliet-Scheebaum,M., A. Straus, H. Tremp, M. Hamer, S.J. Maund, E. Wagner, and R. Schulz, 2010. A Microcosm System to Evaluate the Toxicity of the Triazine Herbicide Simazine on Aquatic Macrophytes, Environ. Pollut.158:615-623. ","906",null,"Commercial grade Gesatop 500 FW","formulation Gesatop 500FW"]
["Freshwater","906-18",69,0.66990291262135904,null,"Glyceria maxima","not stated","56 days","Growth Rate: Length","NOEC","0.083 mg/L","Vervliet-Scheebaum,M., A. Straus, H. Tremp, M. Hamer, S.J. Maund, E. Wagner, and R. Schulz, 2010. A Microcosm System to Evaluate the Toxicity of the Triazine Herbicide Simazine on Aquatic Macrophytes, Environ. Pollut.158:615-623. ","906",null,"Commercial grade Gesatop 500 FW","formulation Gesatop 500FW"]
["Freshwater","906-19",69,0.66990291262135904,null,"Glyceria maxima","not stated","56 days","Growth Rate: Length","LOEC","1.11 mg/L","Vervliet-Scheebaum,M., A. Straus, H. Tremp, M. Hamer, S.J. Maund, E. Wagner, and R. Schulz, 2010. A Microcosm System to Evaluate the Toxicity of the Triazine Herbicide Simazine on Aquatic Macrophytes, Environ. Pollut.158:615-623. ","906",null,"Commercial grade Gesatop 500 FW","formulation Gesatop 500FW"]
["Freshwater","906-20",69,0.66990291262135904,null,"Glyceria maxima","not stated","84 days","Growth Rate: Length","NOEC","0.083 mg/L","Vervliet-Scheebaum,M., A. Straus, H. Tremp, M. Hamer, S.J. Maund, E. Wagner, and R. Schulz, 2010. A Microcosm System to Evaluate the Toxicity of the Triazine Herbicide Simazine on Aquatic Macrophytes, Environ. Pollut.158:615-623. ","906",null,"Commercial grade Gesatop 500 FW","formulation Gesatop 500FW"]
["Freshwater","906-21",69,0.66990291262135904,null,"Glyceria maxima","not stated","84 days","Growth Rate: Length","LOEC","1.11 mg/L","Vervliet-Scheebaum,M., A. Straus, H. Tremp, M. Hamer, S.J. Maund, E. Wagner, and R. Schulz, 2010. A Microcosm System to Evaluate the Toxicity of the Triazine Herbicide Simazine on Aquatic Macrophytes, Environ. Pollut.158:615-623. ","906",null,"Commercial grade Gesatop 500 FW","formulation Gesatop 500FW"]
["Freshwater","906-22",69,0.66990291262135904,null,"Persicaria amphibia","not stated","14 days","Growth Rate: Length","NOEC","8.47 mg/L","Vervliet-Scheebaum,M., A. Straus, H. Tremp, M. Hamer, S.J. Maund, E. Wagner, and R. Schulz, 2010. A Microcosm System to Evaluate the Toxicity of the Triazine Herbicide Simazine on Aquatic Macrophytes, Environ. Pollut.158:615-623. ","906",null,"Commercial grade Gesatop 500 FW","formulation Gesatop 500FW"]
["Freshwater","906-23",69,0.66990291262135904,null,"Persicaria amphibia","not stated","28 days","Growth Rate: Length","NOEC","8.47 mg/L","Vervliet-Scheebaum,M., A. Straus, H. Tremp, M. Hamer, S.J. Maund, E. Wagner, and R. Schulz, 2010. A Microcosm System to Evaluate the Toxicity of the Triazine Herbicide Simazine on Aquatic Macrophytes, Environ. Pollut.158:615-623. ","906",null,"Commercial grade Gesatop 500 FW","formulation Gesatop 500FW"]
["Freshwater","906-24",69,0.66990291262135904,null,"Persicaria amphibia","not stated","56 days","Growth Rate: Length","NOEC","8.47 mg/L","Vervliet-Scheebaum,M., A. Straus, H. Tremp, M. Hamer, S.J. Maund, E. Wagner, and R. Schulz, 2010. A Microcosm System to Evaluate the Toxicity of the Triazine Herbicide Simazine on Aquatic Macrophytes, Environ. Pollut.158:615-623. ","906",null,"Commercial grade Gesatop 500 FW","formulation Gesatop 500FW"]
["Freshwater","906-25",69,0.66990291262135904,null,"Persicaria amphibia","not stated","84 days","Growth Rate: Length","NOEC","0.083 mg/L","Vervliet-Scheebaum,M., A. Straus, H. Tremp, M. Hamer, S.J. Maund, E. Wagner, and R. Schulz, 2010. A Microcosm System to Evaluate the Toxicity of the Triazine Herbicide Simazine on Aquatic Macrophytes, Environ. Pollut.158:615-623. ","906",null,"Commercial grade Gesatop 500 FW","formulation Gesatop 500FW"]
["Freshwater","906-26",69,0.66990291262135904,null,"Persicaria amphibia","not stated","84 days","Growth Rate: Length","LOEC","1.11 mg/L","Vervliet-Scheebaum,M., A. Straus, H. Tremp, M. Hamer, S.J. Maund, E. Wagner, and R. Schulz, 2010. A Microcosm System to Evaluate the Toxicity of the Triazine Herbicide Simazine on Aquatic Macrophytes, Environ. Pollut.158:615-623. ","906",null,"Commercial grade Gesatop 500 FW","formulation Gesatop 500FW"]
["Freshwater","906-27",66,0.64077669902912626,null,"Elodea canadensis","not stated","14 days","Growth Rate: Number of Shoots","NOEC","1.11 mg/L","Vervliet-Scheebaum,M., A. Straus, H. Tremp, M. Hamer, S.J. Maund, E. Wagner, and R. Schulz, 2010. A Microcosm System to Evaluate the Toxicity of the Triazine Herbicide Simazine on Aquatic Macrophytes, Environ. Pollut.158:615-623. ","906",null,"Commercial grade Gesatop 500 FW","formulation Gesatop 500FW"]
["Freshwater","906-28",66,0.64077669902912626,null,"Elodea canadensis","not stated","14 days","Growth Rate: Number of Shoots","LOEC","8.47 mg/L","Vervliet-Scheebaum,M., A. Straus, H. Tremp, M. Hamer, S.J. Maund, E. Wagner, and R. Schulz, 2010. A Microcosm System to Evaluate the Toxicity of the Triazine Herbicide Simazine on Aquatic Macrophytes, Environ. Pollut.158:615-623. ","906",null,"Commercial grade Gesatop 500 FW","formulation Gesatop 500FW"]
["Freshwater","906-29",66,0.64077669902912626,null,"Elodea canadensis","not stated","28 days","Growth Rate: Number of Shoots","NOEC","0.083 mg/L","Vervliet-Scheebaum,M., A. Straus, H. Tremp, M. Hamer, S.J. Maund, E. Wagner, and R. Schulz, 2010. A Microcosm System to Evaluate the Toxicity of the Triazine Herbicide Simazine on Aquatic Macrophytes, Environ. Pollut.158:615-623. ","906",null,"Commercial grade Gesatop 500 FW","formulation Gesatop 500FW"]
["Freshwater","906-30",66,0.64077669902912626,null,"Elodea canadensis","not stated","28 days","Growth Rate: Number of Shoots","LOEC","1.11 mg/L","Vervliet-Scheebaum,M., A. Straus, H. Tremp, M. Hamer, S.J. Maund, E. Wagner, and R. Schulz, 2010. A Microcosm System to Evaluate the Toxicity of the Triazine Herbicide Simazine on Aquatic Macrophytes, Environ. Pollut.158:615-623. ","906",null,"Commercial grade Gesatop 500 FW","formulation Gesatop 500FW"]
["Freshwater","906-31",66,0.64077669902912626,null,"Elodea canadensis","not stated","56 days","Growth Rate: Number of Shoots","NOEC","1.11 mg/L","Vervliet-Scheebaum,M., A. Straus, H. Tremp, M. Hamer, S.J. Maund, E. Wagner, and R. Schulz, 2010. A Microcosm System to Evaluate the Toxicity of the Triazine Herbicide Simazine on Aquatic Macrophytes, Environ. Pollut.158:615-623. ","906",null,"Commercial grade Gesatop 500 FW","formulation Gesatop 500FW"]
["Freshwater","906-32",66,0.64077669902912626,null,"Elodea canadensis","not stated","84 days","Growth Rate: Number of Shoots","NOEC","1.11 mg/L","Vervliet-Scheebaum,M., A. Straus, H. Tremp, M. Hamer, S.J. Maund, E. Wagner, and R. Schulz, 2010. A Microcosm System to Evaluate the Toxicity of the Triazine Herbicide Simazine on Aquatic Macrophytes, Environ. Pollut.158:615-623. ","906",null,"Commercial grade Gesatop 500 FW","formulation Gesatop 500FW"]
["Freshwater","906-33",66,0.64077669902912626,null,"Myriophyllum spicatum","not stated","14 days","Growth Rate: Number of Shoots","NOEC","8.47 mg/L","Vervliet-Scheebaum,M., A. Straus, H. Tremp, M. Hamer, S.J. Maund, E. Wagner, and R. Schulz, 2010. A Microcosm System to Evaluate the Toxicity of the Triazine Herbicide Simazine on Aquatic Macrophytes, Environ. Pollut.158:615-623. ","906",null,"Commercial grade Gesatop 500 FW","formulation Gesatop 500FW"]
["Freshwater","906-34",66,0.64077669902912626,null,"Myriophyllum spicatum","not stated","28 days","Growth Rate: Number of Shoots","NOEC","0.083 mg/L","Vervliet-Scheebaum,M., A. Straus, H. Tremp, M. Hamer, S.J. Maund, E. Wagner, and R. Schulz, 2010. A Microcosm System to Evaluate the Toxicity of the Triazine Herbicide Simazine on Aquatic Macrophytes, Environ. Pollut.158:615-623. ","906",null,"Commercial grade Gesatop 500 FW","formulation Gesatop 500FW"]
["Freshwater","906-35",66,0.64077669902912626,null,"Myriophyllum spicatum","not stated","28 days","Growth Rate: Number of Shoots","LOEC","1.11 mg/L","Vervliet-Scheebaum,M., A. Straus, H. Tremp, M. Hamer, S.J. Maund, E. Wagner, and R. Schulz, 2010. A Microcosm System to Evaluate the Toxicity of the Triazine Herbicide Simazine on Aquatic Macrophytes, Environ. Pollut.158:615-623. ","906",null,"Commercial grade Gesatop 500 FW","formulation Gesatop 500FW"]
["Freshwater","906-36",66,0.64077669902912626,null,"Myriophyllum spicatum","not stated","56 days","Growth Rate: Number of Shoots","NOEC","0.083 mg/L","Vervliet-Scheebaum,M., A. Straus, H. Tremp, M. Hamer, S.J. Maund, E. Wagner, and R. Schulz, 2010. A Microcosm System to Evaluate the Toxicity of the Triazine Herbicide Simazine on Aquatic Macrophytes, Environ. Pollut.158:615-623. ","906",null,"Commercial grade Gesatop 500 FW","formulation Gesatop 500FW"]
["Freshwater","906-37",66,0.64077669902912626,null,"Myriophyllum spicatum","not stated","84 days","Growth Rate: Number of Shoots","NOEC","1.11 mg/L","Vervliet-Scheebaum,M., A. Straus, H. Tremp, M. Hamer, S.J. Maund, E. Wagner, and R. Schulz, 2010. A Microcosm System to Evaluate the Toxicity of the Triazine Herbicide Simazine on Aquatic Macrophytes, Environ. Pollut.158:615-623. ","906",null,"Commercial grade Gesatop 500 FW","formulation Gesatop 500FW"]
["Freshwater","906-38",66,0.64077669902912626,null,"Glyceria maxima","not stated","14 days","Growth Rate: Number of Shoots","NOEC","8.47 mg/L","Vervliet-Scheebaum,M., A. Straus, H. Tremp, M. Hamer, S.J. Maund, E. Wagner, and R. Schulz, 2010. A Microcosm System to Evaluate the Toxicity of the Triazine Herbicide Simazine on Aquatic Macrophytes, Environ. Pollut.158:615-623. ","906",null,"Commercial grade Gesatop 500 FW","formulation Gesatop 500FW"]
["Freshwater","906-39",66,0.64077669902912626,null,"Glyceria maxima","not stated","28 days","Growth Rate: Number of Shoots","NOEC","0.083 mg/L","Vervliet-Scheebaum,M., A. Straus, H. Tremp, M. Hamer, S.J. Maund, E. Wagner, and R. Schulz, 2010. A Microcosm System to Evaluate the Toxicity of the Triazine Herbicide Simazine on Aquatic Macrophytes, Environ. Pollut.158:615-623. ","906",null,"Commercial grade Gesatop 500 FW","formulation Gesatop 500FW"]
["Freshwater","906-40",66,0.64077669902912626,null,"Glyceria maxima","not stated","28 days","Growth Rate: Number of Shoots","LOEC","1.11 mg/L","Vervliet-Scheebaum,M., A. Straus, H. Tremp, M. Hamer, S.J. Maund, E. Wagner, and R. Schulz, 2010. A Microcosm System to Evaluate the Toxicity of the Triazine Herbicide Simazine on Aquatic Macrophytes, Environ. Pollut.158:615-623. ","906",null,"Commercial grade Gesatop 500 FW","formulation Gesatop 500FW"]
["Freshwater","906-41",66,0.64077669902912626,null,"Glyceria maxima","not stated","56 days","Growth Rate: Number of Shoots","NOEC","0.083 mg/L","Vervliet-Scheebaum,M., A. Straus, H. Tremp, M. Hamer, S.J. Maund, E. Wagner, and R. Schulz, 2010. A Microcosm System to Evaluate the Toxicity of the Triazine Herbicide Simazine on Aquatic Macrophytes, Environ. Pollut.158:615-623. ","906",null,"Commercial grade Gesatop 500 FW","formulation Gesatop 500FW"]
["Freshwater","906-42",66,0.64077669902912626,null,"Glyceria maxima","not stated","56 days","Growth Rate: Number of Shoots","LOEC","1.11 mg/L","Vervliet-Scheebaum,M., A. Straus, H. Tremp, M. Hamer, S.J. Maund, E. Wagner, and R. Schulz, 2010. A Microcosm System to Evaluate the Toxicity of the Triazine Herbicide Simazine on Aquatic Macrophytes, Environ. Pollut.158:615-623. ","906",null,"Commercial grade Gesatop 500 FW","formulation Gesatop 500FW"]
["Freshwater","906-43",66,0.64077669902912626,null,"Glyceria maxima","not stated","84 days","Growth Rate: Number of Shoots","NOEC","0.083 mg/L","Vervliet-Scheebaum,M., A. Straus, H. Tremp, M. Hamer, S.J. Maund, E. Wagner, and R. Schulz, 2010. A Microcosm System to Evaluate the Toxicity of the Triazine Herbicide Simazine on Aquatic Macrophytes, Environ. Pollut.158:615-623. ","906",null,"Commercial grade Gesatop 500 FW","formulation Gesatop 500FW"]
["Freshwater","906-44",66,0.64077669902912626,null,"Glyceria maxima","not stated","84 days","Growth Rate: Number of Shoots","LOEC","1.11 mg/L","Vervliet-Scheebaum,M., A. Straus, H. Tremp, M. Hamer, S.J. Maund, E. Wagner, and R. Schulz, 2010. A Microcosm System to Evaluate the Toxicity of the Triazine Herbicide Simazine on Aquatic Macrophytes, Environ. Pollut.158:615-623. ","906",null,"Commercial grade Gesatop 500 FW","formulation Gesatop 500FW"]
["Freshwater","906-45",66,0.64077669902912626,null,"Persicaria amphibia","not stated","14 days","Growth Rate: Number of Shoots","NOEC","8.47 mg/L","Vervliet-Scheebaum,M., A. Straus, H. Tremp, M. Hamer, S.J. Maund, E. Wagner, and R. Schulz, 2010. A Microcosm System to Evaluate the Toxicity of the Triazine Herbicide Simazine on Aquatic Macrophytes, Environ. Pollut.158:615-623. ","906",null,"Commercial grade Gesatop 500 FW","formulation Gesatop 500FW"]
["Freshwater","906-46",66,0.64077669902912626,null,"Persicaria amphibia","not stated","28 days","Growth Rate: Number of Shoots","NOEC","8.47 mg/L","Vervliet-Scheebaum,M., A. Straus, H. Tremp, M. Hamer, S.J. Maund, E. Wagner, and R. Schulz, 2010. A Microcosm System to Evaluate the Toxicity of the Triazine Herbicide Simazine on Aquatic Macrophytes, Environ. Pollut.158:615-623. ","906",null,"Commercial grade Gesatop 500 FW","formulation Gesatop 500FW"]
["Freshwater","906-47",66,0.64077669902912626,null,"Persicaria amphibia","not stated","56 days","Growth Rate: Number of Shoots","NOEC","8.47 mg/L","Vervliet-Scheebaum,M., A. Straus, H. Tremp, M. Hamer, S.J. Maund, E. Wagner, and R. Schulz, 2010. A Microcosm System to Evaluate the Toxicity of the Triazine Herbicide Simazine on Aquatic Macrophytes, Environ. Pollut.158:615-623. ","906",null,"Commercial grade Gesatop 500 FW","formulation Gesatop 500FW"]
["Freshwater","906-48",66,0.64077669902912626,null,"Persicaria amphibia","not stated","84 days","Growth Rate: Number of Shoots","NOEC","0.083 mg/L","Vervliet-Scheebaum,M., A. Straus, H. Tremp, M. Hamer, S.J. Maund, E. Wagner, and R. Schulz, 2010. A Microcosm System to Evaluate the Toxicity of the Triazine Herbicide Simazine on Aquatic Macrophytes, Environ. Pollut.158:615-623. ","906",null,"Commercial grade Gesatop 500 FW","formulation Gesatop 500FW"]
["Freshwater","906-49",66,0.64077669902912604,null,"Persicaria amphibia","not stated","84 days","Growth Rate: Number of Shoots","LOEC","1.11 mg/L","Vervliet-Scheebaum,M., A. Straus, H. Tremp, M. Hamer, S.J. Maund, E. Wagner, and R. Schulz, 2010. A Microcosm System to Evaluate the Toxicity of the Triazine Herbicide Simazine on Aquatic Macrophytes, Environ. Pollut.158:615-623. ","906",null,"Commercial grade Gesatop 500 FW","formulation Gesatop 500FW"]
["Freshwater","906-50",66,0.64077669902912626,null,"Elodea canadensis","not stated","14 days","Growth Rate: Gain (Fresh Weight)","NOEC","8.47 mg/L","Vervliet-Scheebaum,M., A. Straus, H. Tremp, M. Hamer, S.J. Maund, E. Wagner, and R. Schulz, 2010. A Microcosm System to Evaluate the Toxicity of the Triazine Herbicide Simazine on Aquatic Macrophytes, Environ. Pollut.158:615-623. ","906",null,"Commercial grade Gesatop 500 FW","formulation Gesatop 500FW"]
["Freshwater","906-51",69,0.66990291262135904,null,"Elodea canadensis","not stated","28 days","Growth Rate: Gain (Fresh Weight)","NOEC","0.083 mg/L","Vervliet-Scheebaum,M., A. Straus, H. Tremp, M. Hamer, S.J. Maund, E. Wagner, and R. Schulz, 2010. A Microcosm System to Evaluate the Toxicity of the Triazine Herbicide Simazine on Aquatic Macrophytes, Environ. Pollut.158:615-623. ","906",null,"Commercial grade Gesatop 500 FW","formulation Gesatop 500FW"]
["Freshwater","906-52",69,0.66990291262135904,null,"Elodea canadensis","not stated","28 days","Growth Rate: Gain (Fresh Weight)","LOEC","1.11 mg/L","Vervliet-Scheebaum,M., A. Straus, H. Tremp, M. Hamer, S.J. Maund, E. Wagner, and R. Schulz, 2010. A Microcosm System to Evaluate the Toxicity of the Triazine Herbicide Simazine on Aquatic Macrophytes, Environ. Pollut.158:615-623. ","906",null,"Commercial grade Gesatop 500 FW","formulation Gesatop 500FW"]
["Freshwater","906-53",69,0.66990291262135904,null,"Elodea canadensis","not stated","56 days","Growth Rate: Gain (Fresh Weight)","NOEC","0.083 mg/L","Vervliet-Scheebaum,M., A. Straus, H. Tremp, M. Hamer, S.J. Maund, E. Wagner, and R. Schulz, 2010. A Microcosm System to Evaluate the Toxicity of the Triazine Herbicide Simazine on Aquatic Macrophytes, Environ. Pollut.158:615-623. ","906",null,"Commercial grade Gesatop 500 FW","formulation Gesatop 500FW"]
["Freshwater","906-54",69,0.66990291262135904,null,"Elodea canadensis","not stated","56 days","Growth Rate: Gain (Fresh Weight)","LOEC","1.11 mg/L","Vervliet-Scheebaum,M., A. Straus, H. Tremp, M. Hamer, S.J. Maund, E. Wagner, and R. Schulz, 2010. A Microcosm System to Evaluate the Toxicity of the Triazine Herbicide Simazine on Aquatic Macrophytes, Environ. Pollut.158:615-623. ","906",null,"Commercial grade Gesatop 500 FW","formulation Gesatop 500FW"]
["Freshwater","906-55",69,0.66990291262135904,null,"Elodea canadensis","not stated","84 days","Growth Rate: Gain (Fresh Weight)","NOEC","0.083 mg/L","Vervliet-Scheebaum,M., A. Straus, H. Tremp, M. Hamer, S.J. Maund, E. Wagner, and R. Schulz, 2010. A Microcosm System to Evaluate the Toxicity of the Triazine Herbicide Simazine on Aquatic Macrophytes, Environ. Pollut.158:615-623. ","906",null,"Commercial grade Gesatop 500 FW","formulation Gesatop 500FW"]
["Freshwater","906-56",69,0.66990291262135904,null,"Elodea canadensis","not stated","84 days","Growth Rate: Gain (Fresh Weight)","LOEC","1.11 mg/L","Vervliet-Scheebaum,M., A. Straus, H. Tremp, M. Hamer, S.J. Maund, E. Wagner, and R. Schulz, 2010. A Microcosm System to Evaluate the Toxicity of the Triazine Herbicide Simazine on Aquatic Macrophytes, Environ. Pollut.158:615-623. ","906",null,"Commercial grade Gesatop 500 FW","formulation Gesatop 500FW"]
["Freshwater","906-57",69,0.66990291262135904,null,"Myriophyllum spicatum","not stated","14 days","Growth Rate: Gain (Fresh Weight)","NOEC","8.47 mg/L","Vervliet-Scheebaum,M., A. Straus, H. Tremp, M. Hamer, S.J. Maund, E. Wagner, and R. Schulz, 2010. A Microcosm System to Evaluate the Toxicity of the Triazine Herbicide Simazine on Aquatic Macrophytes, Environ. Pollut.158:615-623. ","906",null,"Commercial grade Gesatop 500 FW","formulation Gesatop 500FW"]
["Freshwater","906-58",69,0.66990291262135904,null,"Myriophyllum spicatum","not stated","28 days","Growth Rate: Gain (Fresh Weight)","NOEC","0.083 mg/L","Vervliet-Scheebaum,M., A. Straus, H. Tremp, M. Hamer, S.J. Maund, E. Wagner, and R. Schulz, 2010. A Microcosm System to Evaluate the Toxicity of the Triazine Herbicide Simazine on Aquatic Macrophytes, Environ. Pollut.158:615-623. ","906",null,"Commercial grade Gesatop 500 FW","formulation Gesatop 500FW"]
["Freshwater","906-59",69,0.66990291262135904,null,"Myriophyllum spicatum","not stated","28 days","Growth Rate: Gain (Fresh Weight)","LOEC","1.11 mg/L","Vervliet-Scheebaum,M., A. Straus, H. Tremp, M. Hamer, S.J. Maund, E. Wagner, and R. Schulz, 2010. A Microcosm System to Evaluate the Toxicity of the Triazine Herbicide Simazine on Aquatic Macrophytes, Environ. Pollut.158:615-623. ","906",null,"Commercial grade Gesatop 500 FW","formulation Gesatop 500FW"]
["Freshwater","906-60",69,0.66990291262135904,null,"Myriophyllum spicatum","not stated","56 days","Growth Rate: Gain (Fresh Weight)","NOEC","0.083 mg/L","Vervliet-Scheebaum,M., A. Straus, H. Tremp, M. Hamer, S.J. Maund, E. Wagner, and R. Schulz, 2010. A Microcosm System to Evaluate the Toxicity of the Triazine Herbicide Simazine on Aquatic Macrophytes, Environ. Pollut.158:615-623. ","906",null,"Commercial grade Gesatop 500 FW","formulation Gesatop 500FW"]
["Freshwater","906-61",69,0.66990291262135904,null,"Myriophyllum spicatum","not stated","84 days","Growth Rate: Gain (Fresh Weight)","NOEC","1.11 mg/L","Vervliet-Scheebaum,M., A. Straus, H. Tremp, M. Hamer, S.J. Maund, E. Wagner, and R. Schulz, 2010. A Microcosm System to Evaluate the Toxicity of the Triazine Herbicide Simazine on Aquatic Macrophytes, Environ. Pollut.158:615-623. ","906",null,"Commercial grade Gesatop 500 FW","formulation Gesatop 500FW"]
["Freshwater","906-62",69,0.66990291262135904,null,"Glyceria maxima","not stated","14 days","Growth Rate: Gain (Fresh Weight)","NOEC","8.47 mg/L","Vervliet-Scheebaum,M., A. Straus, H. Tremp, M. Hamer, S.J. Maund, E. Wagner, and R. Schulz, 2010. A Microcosm System to Evaluate the Toxicity of the Triazine Herbicide Simazine on Aquatic Macrophytes, Environ. Pollut.158:615-623. ","906",null,"Commercial grade Gesatop 500 FW","formulation Gesatop 500FW"]
["Freshwater","906-63",69,0.66990291262135904,null,"Glyceria maxima","not stated","28 days","Growth Rate: Gain (Fresh Weight)","NOEC","8.47 mg/L","Vervliet-Scheebaum,M., A. Straus, H. Tremp, M. Hamer, S.J. Maund, E. Wagner, and R. Schulz, 2010. A Microcosm System to Evaluate the Toxicity of the Triazine Herbicide Simazine on Aquatic Macrophytes, Environ. Pollut.158:615-623. ","906",null,"Commercial grade Gesatop 500 FW","formulation Gesatop 500FW"]
["Freshwater","906-64",69,0.66990291262135904,null,"Glyceria maxima","not stated","56 days","Growth Rate: Gain (Fresh Weight)","NOEC","0.083 mg/L","Vervliet-Scheebaum,M., A. Straus, H. Tremp, M. Hamer, S.J. Maund, E. Wagner, and R. Schulz, 2010. A Microcosm System to Evaluate the Toxicity of the Triazine Herbicide Simazine on Aquatic Macrophytes, Environ. Pollut.158:615-623. ","906",null,"Commercial grade Gesatop 500 FW","formulation Gesatop 500FW"]
["Freshwater","906-65",69,0.66990291262135904,null,"Glyceria maxima","not stated","56 days","Growth Rate: Gain (Fresh Weight)","LOEC","1.11 mg/L","Vervliet-Scheebaum,M., A. Straus, H. Tremp, M. Hamer, S.J. Maund, E. Wagner, and R. Schulz, 2010. A Microcosm System to Evaluate the Toxicity of the Triazine Herbicide Simazine on Aquatic Macrophytes, Environ. Pollut.158:615-623. ","906",null,"Commercial grade Gesatop 500 FW","formulation Gesatop 500FW"]
["Freshwater","906-66",69,0.66990291262135904,null,"Glyceria maxima","not stated","84 days","Growth Rate: Gain (Fresh Weight)","NOEC","0.083 mg/L","Vervliet-Scheebaum,M., A. Straus, H. Tremp, M. Hamer, S.J. Maund, E. Wagner, and R. Schulz, 2010. A Microcosm System to Evaluate the Toxicity of the Triazine Herbicide Simazine on Aquatic Macrophytes, Environ. Pollut.158:615-623. ","906",null,"Commercial grade Gesatop 500 FW","formulation Gesatop 500FW"]
["Freshwater","906-67",69,0.66990291262135904,null,"Glyceria maxima","not stated","84 days","Growth Rate: Gain (Fresh Weight)","LOEC","1.11 mg/L","Vervliet-Scheebaum,M., A. Straus, H. Tremp, M. Hamer, S.J. Maund, E. Wagner, and R. Schulz, 2010. A Microcosm System to Evaluate the Toxicity of the Triazine Herbicide Simazine on Aquatic Macrophytes, Environ. Pollut.158:615-623. ","906",null,"Commercial grade Gesatop 500 FW","formulation Gesatop 500FW"]
["Freshwater","906-68",69,0.66990291262135904,null,"Persicaria amphibia","not stated","14 days","Growth Rate: Gain (Fresh Weight)","NOEC","8.47 mg/L","Vervliet-Scheebaum,M., A. Straus, H. Tremp, M. Hamer, S.J. Maund, E. Wagner, and R. Schulz, 2010. A Microcosm System to Evaluate the Toxicity of the Triazine Herbicide Simazine on Aquatic Macrophytes, Environ. Pollut.158:615-623. ","906",null,"Commercial grade Gesatop 500 FW","formulation Gesatop 500FW"]
["Freshwater","906-69",69,0.66990291262135904,null,"Persicaria amphibia","not stated","28 days","Growth Rate: Gain (Fresh Weight)","NOEC","8.47 mg/L","Vervliet-Scheebaum,M., A. Straus, H. Tremp, M. Hamer, S.J. Maund, E. Wagner, and R. Schulz, 2010. A Microcosm System to Evaluate the Toxicity of the Triazine Herbicide Simazine on Aquatic Macrophytes, Environ. Pollut.158:615-623. ","906",null,"Commercial grade Gesatop 500 FW","formulation Gesatop 500FW"]
["Freshwater","906-70",69,0.66990291262135904,null,"Persicaria amphibia","not stated","56 days","Growth Rate: Gain (Fresh Weight)","NOEC","8.47 mg/L","Vervliet-Scheebaum,M., A. Straus, H. Tremp, M. Hamer, S.J. Maund, E. Wagner, and R. Schulz, 2010. A Microcosm System to Evaluate the Toxicity of the Triazine Herbicide Simazine on Aquatic Macrophytes, Environ. Pollut.158:615-623. ","906",null,"Commercial grade Gesatop 500 FW","formulation Gesatop 500FW"]
["Freshwater","906-71",69,0.66990291262135904,null,"Persicaria amphibia","not stated","84 days","Growth Rate: Gain (Fresh Weight)","NOEC","8.47 mg/L","Vervliet-Scheebaum,M., A. Straus, H. Tremp, M. Hamer, S.J. Maund, E. Wagner, and R. Schulz, 2010. A Microcosm System to Evaluate the Toxicity of the Triazine Herbicide Simazine on Aquatic Macrophytes, Environ. Pollut.158:615-623. ","906",null,"Commercial grade Gesatop 500 FW","formulation Gesatop 500FW"]
["Freshwater","906-72",69,0.66990291262135904,null,"Elodea canadensis","not stated","14 days","Growth Rate: Gain (Dry Weight)","NOEC","8.47 mg/L","Vervliet-Scheebaum,M., A. Straus, H. Tremp, M. Hamer, S.J. Maund, E. Wagner, and R. Schulz, 2010. A Microcosm System to Evaluate the Toxicity of the Triazine Herbicide Simazine on Aquatic Macrophytes, Environ. Pollut.158:615-623. ","906",null,"Commercial grade Gesatop 500 FW","formulation Gesatop 500FW"]
["Freshwater","906-73",69,0.66990291262135904,null,"Elodea canadensis","not stated","28 days","Growth Rate: Gain (Dry Weight)","NOEC","0.083 mg/L","Vervliet-Scheebaum,M., A. Straus, H. Tremp, M. Hamer, S.J. Maund, E. Wagner, and R. Schulz, 2010. A Microcosm System to Evaluate the Toxicity of the Triazine Herbicide Simazine on Aquatic Macrophytes, Environ. Pollut.158:615-623. ","906",null,"Commercial grade Gesatop 500 FW","formulation Gesatop 500FW"]
["Freshwater","906-74",69,0.66990291262135904,null,"Elodea canadensis","not stated","28 days","Growth Rate: Gain (Dry Weight)","LOEC","1.11 mg/L","Vervliet-Scheebaum,M., A. Straus, H. Tremp, M. Hamer, S.J. Maund, E. Wagner, and R. Schulz, 2010. A Microcosm System to Evaluate the Toxicity of the Triazine Herbicide Simazine on Aquatic Macrophytes, Environ. Pollut.158:615-623. ","906",null,"Commercial grade Gesatop 500 FW","formulation Gesatop 500FW"]
["Freshwater","906-75",69,0.66990291262135904,null,"Elodea canadensis","not stated","56 days","Growth Rate: Gain (Dry Weight)","NOEC","0.083 mg/L","Vervliet-Scheebaum,M., A. Straus, H. Tremp, M. Hamer, S.J. Maund, E. Wagner, and R. Schulz, 2010. A Microcosm System to Evaluate the Toxicity of the Triazine Herbicide Simazine on Aquatic Macrophytes, Environ. Pollut.158:615-623. ","906",null,"Commercial grade Gesatop 500 FW","formulation Gesatop 500FW"]
["Freshwater","906-76",69,0.66990291262135904,null,"Elodea canadensis","not stated","56 days","Growth Rate: Gain (Dry Weight)","LOEC","1.11 mg/L","Vervliet-Scheebaum,M., A. Straus, H. Tremp, M. Hamer, S.J. Maund, E. Wagner, and R. Schulz, 2010. A Microcosm System to Evaluate the Toxicity of the Triazine Herbicide Simazine on Aquatic Macrophytes, Environ. Pollut.158:615-623. ","906",null,"Commercial grade Gesatop 500 FW","formulation Gesatop 500FW"]
["Freshwater","906-77",69,0.66990291262135904,null,"Elodea canadensis","not stated","84 days","Growth Rate: Gain (Dry Weight)","NOEC","1.11 mg/L","Vervliet-Scheebaum,M., A. Straus, H. Tremp, M. Hamer, S.J. Maund, E. Wagner, and R. Schulz, 2010. A Microcosm System to Evaluate the Toxicity of the Triazine Herbicide Simazine on Aquatic Macrophytes, Environ. Pollut.158:615-623. ","906",null,"Commercial grade Gesatop 500 FW","formulation Gesatop 500FW"]
["Freshwater","906-78",69,0.66990291262135904,null,"Myriophyllum spicatum","not stated","14 days","Growth Rate: Gain (Dry Weight)","NOEC","8.47 mg/L","Vervliet-Scheebaum,M., A. Straus, H. Tremp, M. Hamer, S.J. Maund, E. Wagner, and R. Schulz, 2010. A Microcosm System to Evaluate the Toxicity of the Triazine Herbicide Simazine on Aquatic Macrophytes, Environ. Pollut.158:615-623. ","906",null,"Commercial grade Gesatop 500 FW","formulation Gesatop 500FW"]
["Freshwater","906-79",69,0.66990291262135904,null,"Myriophyllum spicatum","not stated","28 days","Growth Rate: Gain (Dry Weight)","NOEC","0.083 mg/L","Vervliet-Scheebaum,M., A. Straus, H. Tremp, M. Hamer, S.J. Maund, E. Wagner, and R. Schulz, 2010. A Microcosm System to Evaluate the Toxicity of the Triazine Herbicide Simazine on Aquatic Macrophytes, Environ. Pollut.158:615-623. ","906",null,"Commercial grade Gesatop 500 FW","formulation Gesatop 500FW"]
["Freshwater","906-80",69,0.66990291262135904,null,"Myriophyllum spicatum","not stated","28 days","Growth Rate: Gain (Dry Weight)","LOEC","1.11 mg/L","Vervliet-Scheebaum,M., A. Straus, H. Tremp, M. Hamer, S.J. Maund, E. Wagner, and R. Schulz, 2010. A Microcosm System to Evaluate the Toxicity of the Triazine Herbicide Simazine on Aquatic Macrophytes, Environ. Pollut.158:615-623. ","906",null,"Commercial grade Gesatop 500 FW","formulation Gesatop 500FW"]
["Freshwater","906-81",69,0.66990291262135904,null,"Myriophyllum spicatum","not stated","56 days","Growth Rate: Gain (Dry Weight)","NOEC","0.083 mg/L","Vervliet-Scheebaum,M., A. Straus, H. Tremp, M. Hamer, S.J. Maund, E. Wagner, and R. Schulz, 2010. A Microcosm System to Evaluate the Toxicity of the Triazine Herbicide Simazine on Aquatic Macrophytes, Environ. Pollut.158:615-623. ","906",null,"Commercial grade Gesatop 500 FW","formulation Gesatop 500FW"]
["Freshwater","906-82",69,0.66990291262135904,null,"Myriophyllum spicatum","not stated","84 days","Growth Rate: Gain (Dry Weight)","NOEC","1.11 mg/L","Vervliet-Scheebaum,M., A. Straus, H. Tremp, M. Hamer, S.J. Maund, E. Wagner, and R. Schulz, 2010. A Microcosm System to Evaluate the Toxicity of the Triazine Herbicide Simazine on Aquatic Macrophytes, Environ. Pollut.158:615-623. ","906",null,"Commercial grade Gesatop 500 FW","formulation Gesatop 500FW"]
["Freshwater","906-83",69,0.66990291262135904,null,"Glyceria maxima","not stated","14 days","Growth Rate: Gain (Dry Weight)","NOEC","8.47 mg/L","Vervliet-Scheebaum,M., A. Straus, H. Tremp, M. Hamer, S.J. Maund, E. Wagner, and R. Schulz, 2010. A Microcosm System to Evaluate the Toxicity of the Triazine Herbicide Simazine on Aquatic Macrophytes, Environ. Pollut.158:615-623. ","906",null,"Commercial grade Gesatop 500 FW","formulation Gesatop 500FW"]
["Freshwater","906-84",69,0.66990291262135904,null,"Glyceria maxima","not stated","28 days","Growth Rate: Gain (Dry Weight)","NOEC","8.47 mg/L","Vervliet-Scheebaum,M., A. Straus, H. Tremp, M. Hamer, S.J. Maund, E. Wagner, and R. Schulz, 2010. A Microcosm System to Evaluate the Toxicity of the Triazine Herbicide Simazine on Aquatic Macrophytes, Environ. Pollut.158:615-623. ","906",null,"Commercial grade Gesatop 500 FW","formulation Gesatop 500FW"]
["Freshwater","906-85",69,0.66990291262135904,null,"Glyceria maxima","not stated","56 days","Growth Rate: Gain (Dry Weight)","NOEC","0.083 mg/L","Vervliet-Scheebaum,M., A. Straus, H. Tremp, M. Hamer, S.J. Maund, E. Wagner, and R. Schulz, 2010. A Microcosm System to Evaluate the Toxicity of the Triazine Herbicide Simazine on Aquatic Macrophytes, Environ. Pollut.158:615-623. ","906",null,"Commercial grade Gesatop 500 FW","formulation Gesatop 500FW"]
["Freshwater","906-86",69,0.66990291262135904,null,"Glyceria maxima","not stated","56 days","Growth Rate: Gain (Dry Weight)","LOEC","1.11 mg/L","Vervliet-Scheebaum,M., A. Straus, H. Tremp, M. Hamer, S.J. Maund, E. Wagner, and R. Schulz, 2010. A Microcosm System to Evaluate the Toxicity of the Triazine Herbicide Simazine on Aquatic Macrophytes, Environ. Pollut.158:615-623. ","906",null,"Commercial grade Gesatop 500 FW","formulation Gesatop 500FW"]
["Freshwater","906-87",69,0.66990291262135904,null,"Glyceria maxima","not stated","84 days","Growth Rate: Gain (Dry Weight)","NOEC","0.083 mg/L","Vervliet-Scheebaum,M., A. Straus, H. Tremp, M. Hamer, S.J. Maund, E. Wagner, and R. Schulz, 2010. A Microcosm System to Evaluate the Toxicity of the Triazine Herbicide Simazine on Aquatic Macrophytes, Environ. Pollut.158:615-623. ","906",null,"Commercial grade Gesatop 500 FW","formulation Gesatop 500FW"]
["Freshwater","906-88",69,0.66990291262135904,null,"Glyceria maxima","not stated","84 days","Growth Rate: Gain (Dry Weight)","LOEC","1.11 mg/L","Vervliet-Scheebaum,M., A. Straus, H. Tremp, M. Hamer, S.J. Maund, E. Wagner, and R. Schulz, 2010. A Microcosm System to Evaluate the Toxicity of the Triazine Herbicide Simazine on Aquatic Macrophytes, Environ. Pollut.158:615-623. ","906",null,"Commercial grade Gesatop 500 FW","formulation Gesatop 500FW"]
["Freshwater","906-89",69,0.66990291262135904,null,"Persicaria amphibia","not stated","14 days","Growth Rate: Gain (Dry Weight)","NOEC","8.47 mg/L","Vervliet-Scheebaum,M., A. Straus, H. Tremp, M. Hamer, S.J. Maund, E. Wagner, and R. Schulz, 2010. A Microcosm System to Evaluate the Toxicity of the Triazine Herbicide Simazine on Aquatic Macrophytes, Environ. Pollut.158:615-623. ","906",null,"Commercial grade Gesatop 500 FW","formulation Gesatop 500FW"]
["Freshwater","906-90",69,0.66990291262135904,null,"Persicaria amphibia","not stated","28 days","Growth Rate: Gain (Dry Weight)","NOEC","<0.083 mg/L","Vervliet-Scheebaum,M., A. Straus, H. Tremp, M. Hamer, S.J. Maund, E. Wagner, and R. Schulz, 2010. A Microcosm System to Evaluate the Toxicity of the Triazine Herbicide Simazine on Aquatic Macrophytes, Environ. Pollut.158:615-623. ","906","Do Not Use - LOEC obtained below","Commercial grade Gesatop 500 FW","formulation Gesatop 500FW"]
["Freshwater","906-91",69,0.66990291262135904,null,"Persicaria amphibia","not stated","28 days","Growth Rate: Gain (Dry Weight)","LOEC","0.083 mg/L","Vervliet-Scheebaum,M., A. Straus, H. Tremp, M. Hamer, S.J. Maund, E. Wagner, and R. Schulz, 2010. A Microcosm System to Evaluate the Toxicity of the Triazine Herbicide Simazine on Aquatic Macrophytes, Environ. Pollut.158:615-623. ","906",null,"Commercial grade Gesatop 500 FW","formulation Gesatop 500FW"]
["Freshwater","906-92",69,0.66990291262135904,null,"Persicaria amphibia","not stated","56 days","Growth Rate: Gain (Dry Weight)","NOEC","8.47 mg/L","Vervliet-Scheebaum,M., A. Straus, H. Tremp, M. Hamer, S.J. Maund, E. Wagner, and R. Schulz, 2010. A Microcosm System to Evaluate the Toxicity of the Triazine Herbicide Simazine on Aquatic Macrophytes, Environ. Pollut.158:615-623. ","906",null,"Commercial grade Gesatop 500 FW","formulation Gesatop 500FW"]
["Freshwater","906-93",69,0.66990291262135904,null,"Persicaria amphibia","not stated","84 days","Growth Rate: Gain (Dry Weight)","NOEC","8.47 mg/L","Vervliet-Scheebaum,M., A. Straus, H. Tremp, M. Hamer, S.J. Maund, E. Wagner, and R. Schulz, 2010. A Microcosm System to Evaluate the Toxicity of the Triazine Herbicide Simazine on Aquatic Macrophytes, Environ. Pollut.158:615-623. ","906",null,"Commercial grade Gesatop 500 FW","formulation Gesatop 500FW"]
["Marine ","907-1",63,0.64948453608247425,null,"Ceratoneis closterium","Exponential growth phase","72 hours","Population: Growth","IC10","310 ug/L","Hook,S.E., H.L. Osborn, F. Gissi, P. Moncuquet, N.A. Twine, M.R. Wilkins, and M.S. Adams, 2014. RNA-Seq Analysis of the Toxicant-Induced Transcriptome of the Marine Diatom, Ceratoneis closterium, Mar. Genomics:9.","907",null,"Technical material","Author confirmed it was technical material"]
["Marine ","907-2",63,0.64948453608247425,null,"Ceratoneis closterium","Exponential growth phase","72 hours","Population: Growth","IC50",">1000 ug/L","Hook,S.E., H.L. Osborn, F. Gissi, P. Moncuquet, N.A. Twine, M.R. Wilkins, and M.S. Adams, 2014. RNA-Seq Analysis of the Toxicant-Induced Transcriptome of the Marine Diatom, Ceratoneis closterium, Mar. Genomics:9.","907","Do Not Use - IC50 not obtained",null,"formulation 50% simazine"]
["Freshwater","908-1",62,0.60194174757281549,null,"Lemna gibba","not stated","14 days","Population: Growth Rate (Number of fronds)","EC50","0.57 mg/L","Mazzeo,N., B. Dardano, and A. Marticorena, 1998. Interclonal Variation in Response to Simazine Stress in Lemna gibba (Lemnaceae), Ecotoxicology7(3): 151-160. ","908",null,"Simazina 500% containing 50% active ingredient","formulation 50% simazine"]
["Freshwater","908-2",66,0.64077669902912626,null,"Lemna gibba","not stated","14 days","Population: Growth Rate (Number of fronds)","NOEC","0.1 mg/L","Mazzeo,N., B. Dardano, and A. Marticorena, 1998. Interclonal Variation in Response to Simazine Stress in Lemna gibba (Lemnaceae), Ecotoxicology7(3): 151-160. ","908",null,"Simazina 500% containing 50% active ingredient","formulation 50% simazine"]
["Freshwater","908-3",66,0.64077669902912626,null,"Lemna gibba","not stated","14 days","Population: Growth Rate (Number of fronds)","LOEC","0.25 mg/L","Mazzeo,N., B. Dardano, and A. Marticorena, 1998. Interclonal Variation in Response to Simazine Stress in Lemna gibba (Lemnaceae), Ecotoxicology7(3): 151-160. ","908",null,"Simazina 500% containing 50% active ingredient","formulation 50% simazine"]
["Freshwater","908-4",62,0.60194174757281549,null,"Lemna gibba","not stated","14 days","Relative Growth Rate (Biomass - Dry Weight)","EC50","0.42 mg/L","Mazzeo,N., B. Dardano, and A. Marticorena, 1998. Interclonal Variation in Response to Simazine Stress in Lemna gibba (Lemnaceae), Ecotoxicology7(3): 151-160. ","908",null,"Simazina 500% containing 50% active ingredient","formulation 50% simazine"]
["Freshwater","908-5",66,0.64077669902912626,null,"Lemna gibba","not stated","14 days","Relative Growth Rate (Biomass - Dry Weight)","NOEC","0.1 mg/L","Mazzeo,N., B. Dardano, and A. Marticorena, 1998. Interclonal Variation in Response to Simazine Stress in Lemna gibba (Lemnaceae), Ecotoxicology7(3): 151-160. ","908",null,"Simazina 500% containing 50% active ingredient","formulation 50% simazine"]
["Freshwater","908-6",66,0.64077669902912626,null,"Lemna gibba","not stated","14 days","Relative Growth Rate (Biomass - Dry Weight)","LOEC","0.25 mg/L","Mazzeo,N., B. Dardano, and A. Marticorena, 1998. Interclonal Variation in Response to Simazine Stress in Lemna gibba (Lemnaceae), Ecotoxicology7(3): 151-160. ","908",null,"Simazina 500% containing 50% active ingredient","formulation 50% simazine"]
["Marine ","909-1",62,0.63917525773195871,null,"Phaeodactylum tricornutum","Exponential growth phase","72 hours","Population: Growth Rate","IC10","100 ug/L","Osborn,H.L., and S.E. Hook, 2013. Using Transcriptomic Profiles in the Diatom Phaeodactylum tricornutum to Identify and Prioritize Stressors, Aquat. Toxicol.138/139:12-25.  ","909",null,"Technical material","Author confirmed it was technical material"]
["Marine ","909-2",62,0.63917525773195871,null,"Phaeodactylum tricornutum","Exponential growth phase","72 hours","Population: Growth Rate","IC50","580 ug/L","Osborn,H.L., and S.E. Hook, 2013. Using Transcriptomic Profiles in the Diatom Phaeodactylum tricornutum to Identify and Prioritize Stressors, Aquat. Toxicol.138/139:12-25.  ","909",null,"Technical material","Author confirmed it was technical material"]
["Freshwater","910-1",57,0.55339805825242705,null,"Cyprinus carpio","1 year old","60 days","Mortality","NOEC","4 mg/L","Stara,A., J. Machova, and J. Velisek, 2012. Effect of Chronic Exposure to Simazine on Oxidative Stress and Antioxidant Response in Common Carp (Cyprinus carpio L.), Environ. Toxicol. Pharmacol.33(2): 334-343. ","910",null,"Simazine chemical purity 99.5%","Simazine chemical purity 99.5%"]
["Freshwater","911-2",79,0.76699029126213591,null,"Pacifastacus leniusculus","Juveniles","48 hour","Mortality","LC50","206.3 mg/L","Velisek,J., A. Kouba, and A. Stara, 2013. Acute Toxicity of Triazine Pesticides to Juvenile Signal Crayfish (Pacifastacus leniusculus), Neuroendocrinol. Lett.34(2): 31-36.","911",null,"SimazineChemical purity 99.5%","SimazineChemical purity 99.5%"]
["Freshwater","911-4",79,0.76699029126213591,null,"Pacifastacus leniusculus","Juveniles","72 hours","Mortality","LC50","58.7 mg/L","Velisek,J., A. Kouba, and A. Stara, 2013. Acute Toxicity of Triazine Pesticides to Juvenile Signal Crayfish (Pacifastacus leniusculus), Neuroendocrinol. Lett.34(2): 31-36.","911",null,"Simazine Chemical purity 99.5%","SimazineChemical purity 99.5%"]
["Freshwater","911-6",79,0.76699029126213591,null,"Pacifastacus leniusculus","Juveniles","96 hour","Mortality","LC50","30.6 mg/L","Velisek,J., A. Kouba, and A. Stara, 2013. Acute Toxicity of Triazine Pesticides to Juvenile Signal Crayfish (Pacifastacus leniusculus), Neuroendocrinol. Lett.34(2): 31-36.","911",null,"Simazine Chemical purity 99.5%","SimazineChemical purity 99.5%"]
["Freshwater","912-1",57,0.55339805825242716,null,"Pontederia cordata","not stated","7 days","Growth Rate: Gain (Fresh Weight)","NOEC","0.1 mg/L","Wilson,P.C., T. Whitwell, and S.J. Klaine, 2000. Phytotoxicity, Uptake, and Distribution of 14C-Simazine in Acorus gramenius and Pontederia cordata, Weed Sci.48:701-709. ","912","After 7 day exposure","Technical grade (99.6%)","Technical grade (99.6%)"]
["Freshwater","912-2",57,0.55339805825242716,null,"Pontederia cordata","not stated","7 days","Growth Rate: Gain (Fresh Weight)","NOEC","0.3 mg/L","Wilson,P.C., T. Whitwell, and S.J. Klaine, 2000. Phytotoxicity, Uptake, and Distribution of 14C-Simazine in Acorus gramenius and Pontederia cordata, Weed Sci.48:701-709. ","912","7 day exposure plus 7 day post-exposure","Technical grade (99.6%)","Technical grade (99.6%)"]
["Freshwater","912-3",57,0.55339805825242716,null,"Pontederia cordata","not stated","7 days","Growth Rate: Gain (Fresh Weight)","LOEC","0.3 mg/L","Wilson,P.C., T. Whitwell, and S.J. Klaine, 2000. Phytotoxicity, Uptake, and Distribution of 14C-Simazine in Acorus gramenius and Pontederia cordata, Weed Sci.48:701-709. ","912","After 7 day exposure","Technical grade (99.6%)","Technical grade (99.6%)"]
["Freshwater","912-4",57,0.55339805825242716,null,"Pontederia cordata","not stated","7 days","Growth Rate: Gain (Fresh Weight)","LOEC","1 mg/L","Wilson,P.C., T. Whitwell, and S.J. Klaine, 2000. Phytotoxicity, Uptake, and Distribution of 14C-Simazine in Acorus gramenius and Pontederia cordata, Weed Sci.48:701-709. ","912","7 day exposure plus 7 day post-exposure","Technical grade (99.6%)","Technical grade (99.6%)"]
["Freshwater","912-5",57,0.55339805825242716,null,"Acorus gramenius","not stated","7 days","Growth Rate: Gain (Fresh Weight)","NOEC","0.1 mg/L","Wilson,P.C., T. Whitwell, and S.J. Klaine, 2000. Phytotoxicity, Uptake, and Distribution of 14C-Simazine in Acorus gramenius and Pontederia cordata, Weed Sci.48:701-709. ","912","After 7 day exposure","Technical grade (99.6%)","Technical grade (99.6%)"]
["Freshwater","912-6",57,0.55339805825242716,null,"Acorus gramenius","not stated","7 days","Growth Rate: Gain (Fresh Weight)","NOEC","0.3 mg/L","Wilson,P.C., T. Whitwell, and S.J. Klaine, 2000. Phytotoxicity, Uptake, and Distribution of 14C-Simazine in Acorus gramenius and Pontederia cordata, Weed Sci.48:701-709. ","912","7 day exposure plus 7 day post-exposure","Technical grade (99.6%)","Technical grade (99.6%)"]
["Freshwater","912-7",57,0.55339805825242716,null,"Acorus gramenius","not stated","7 days","Growth Rate: Gain (Fresh Weight)","LOEC","0.3 mg/L","Wilson,P.C., T. Whitwell, and S.J. Klaine, 2000. Phytotoxicity, Uptake, and Distribution of 14C-Simazine in Acorus gramenius and Pontederia cordata, Weed Sci.48:701-709. ","912","After 7 day exposure","Technical grade (99.6%)","Technical grade (99.6%)"]
["Freshwater","912-8",57,0.55339805825242716,null,"Acorus gramenius","not stated","7 days","Growth Rate: Gain (Fresh Weight)","LOEC","1 mg/L","Wilson,P.C., T. Whitwell, and S.J. Klaine, 2000. Phytotoxicity, Uptake, and Distribution of 14C-Simazine in Acorus gramenius and Pontederia cordata, Weed Sci.48:701-709. ","912","7 day exposure plus 7 day post-exposure","Technical grade (99.6%)","Technical grade (99.6%)"]
["Freshwater","913-1",65,0.6310679611650486,null,"Cirrhinus mrigala","Fry","96 hour","Mortality","LC50","840 mg/L","Sarkar,S.K., 1997. Toxicity of Simazine, Diammonium Phosphate and Rockphosphate to Fish, Snail and Worm at Various Water Temperatures, Geobios24(2-3): 142-145. ","913","21 degrees C","Commecial grade","Commercial grade (formulation)"]
["Freshwater","913-2",65,0.6310679611650486,null,"Cirrhinus mrigala","Fry","96 hour","Mortality","LC50","800 mg/L","Sarkar,S.K., 1997. Toxicity of Simazine, Diammonium Phosphate and Rockphosphate to Fish, Snail and Worm at Various Water Temperatures, Geobios24(2-3): 142-145. ","913","26 degrees C","Commecial grade","Commercial grade (formulation)"]
["Freshwater","913-3",65,0.6310679611650486,null,"Cirrhinus mrigala","Fry","96 hour","Mortality","LC50","765 mg/L","Sarkar,S.K., 1997. Toxicity of Simazine, Diammonium Phosphate and Rockphosphate to Fish, Snail and Worm at Various Water Temperatures, Geobios24(2-3): 142-145. ","913","31 degrees C","Commecial grade","Commercial grade (formulation)"]
["Freshwater","913-4",65,0.6310679611650486,null,"Cirrhinus mrigala","Fry","96 hour","Mortality","LC50","608 mg/L","Sarkar,S.K., 1997. Toxicity of Simazine, Diammonium Phosphate and Rockphosphate to Fish, Snail and Worm at Various Water Temperatures, Geobios24(2-3): 142-145. ","913","36 degrees C","Commecial grade","Commercial grade (formulation)"]
["Freshwater","913-5",65,0.6310679611650486,null,"Cirrhinus mrigala","Fingerlings","96 hour","Mortality","LC50","1100 mg/L","Sarkar,S.K., 1997. Toxicity of Simazine, Diammonium Phosphate and Rockphosphate to Fish, Snail and Worm at Various Water Temperatures, Geobios24(2-3): 142-145. ","913","21 degrees C","Commecial grade","Commercial grade (formulation)"]
["Freshwater","913-6",65,0.6310679611650486,null,"Cirrhinus mrigala","Fingerlings","96 hour","Mortality","LC50","1050 mg/L","Sarkar,S.K., 1997. Toxicity of Simazine, Diammonium Phosphate and Rockphosphate to Fish, Snail and Worm at Various Water Temperatures, Geobios24(2-3): 142-145. ","913","26 degrees C","Commecial grade","Commercial grade (formulation)"]
["Freshwater","913-7",65,0.6310679611650486,null,"Cirrhinus mrigala","Fingerlings","96 hour","Mortality","LC50","895 mg/L","Sarkar,S.K., 1997. Toxicity of Simazine, Diammonium Phosphate and Rockphosphate to Fish, Snail and Worm at Various Water Temperatures, Geobios24(2-3): 142-145. ","913","31 degrees C","Commecial grade","Commercial grade (formulation)"]
["Freshwater","913-8",65,0.6310679611650486,null,"Cirrhinus mrigala","Fingerlings","96 hour","Mortality","LC50","635 mg/L","Sarkar,S.K., 1997. Toxicity of Simazine, Diammonium Phosphate and Rockphosphate to Fish, Snail and Worm at Various Water Temperatures, Geobios24(2-3): 142-145. ","913","36 degrees C","Commecial grade","Commercial grade (formulation)"]
["Freshwater","913-9",60,0.58252427184466016,null,"Viviparus bengalensis","not stated","96 hour","Mortality","LC50","2280 mg/L","Sarkar,S.K., 1997. Toxicity of Simazine, Diammonium Phosphate and Rockphosphate to Fish, Snail and Worm at Various Water Temperatures, Geobios24(2-3): 142-145. ","913","21 degrees C","Commecial grade","Commercial grade (formulation)"]
["Freshwater","913-10",60,0.58252427184466016,null,"Viviparus bengalensis","not stated","96 hour","Mortality","LC50","2070 mg/L","Sarkar,S.K., 1997. Toxicity of Simazine, Diammonium Phosphate and Rockphosphate to Fish, Snail and Worm at Various Water Temperatures, Geobios24(2-3): 142-145. ","913","26 degrees C","Commecial grade","Commercial grade (formulation)"]
["Freshwater","913-11",60,0.58252427184466016,null,"Viviparus bengalensis","not stated","96 hour","Mortality","LC50","1676 mg/L","Sarkar,S.K., 1997. Toxicity of Simazine, Diammonium Phosphate and Rockphosphate to Fish, Snail and Worm at Various Water Temperatures, Geobios24(2-3): 142-145. ","913","31 degrees C","Commecial grade","Commercial grade (formulation)"]
["Freshwater","913-12",60,0.58252427184466016,null,"Viviparus bengalensis","not stated","96 hour","Mortality","LC50","986 mg/L","Sarkar,S.K., 1997. Toxicity of Simazine, Diammonium Phosphate and Rockphosphate to Fish, Snail and Worm at Various Water Temperatures, Geobios24(2-3): 142-145. ","913","36 degrees C","Commecial grade","Commercial grade (formulation)"]
["Freshwater","913-13",60,0.58252427184466016,null,"Branchiura sowerbyi","not stated","96 hour","Mortality","LC50","1897 mg/L","Sarkar,S.K., 1997. Toxicity of Simazine, Diammonium Phosphate and Rockphosphate to Fish, Snail and Worm at Various Water Temperatures, Geobios24(2-3): 142-145. ","913","21 degrees C","Commecial grade","Commercial grade (formulation)"]
["Freshwater","913-14",60,0.58252427184466016,null,"Branchiura sowerbyi","not stated","96 hour","Mortality","LC50","1810 mg/L","Sarkar,S.K., 1997. Toxicity of Simazine, Diammonium Phosphate and Rockphosphate to Fish, Snail and Worm at Various Water Temperatures, Geobios24(2-3): 142-145. ","913","26 degrees C","Commecial grade","Commercial grade (formulation)"]
["Freshwater","913-15",60,0.58252427184466016,null,"Branchiura sowerbyi","not stated","96 hour","Mortality","LC50","1700 mg/L","Sarkar,S.K., 1997. Toxicity of Simazine, Diammonium Phosphate and Rockphosphate to Fish, Snail and Worm at Various Water Temperatures, Geobios24(2-3): 142-145. ","913","31 degrees C","Commecial grade","Commercial grade (formulation)"]
["Freshwater","913-16",60,0.58252427184466016,null,"Branchiura sowerbyi","not stated","96 hour","Mortality","LC50","1090 mg/L","Sarkar,S.K., 1997. Toxicity of Simazine, Diammonium Phosphate and Rockphosphate to Fish, Snail and Worm at Various Water Temperatures, Geobios24(2-3): 142-145. ","913","36 degrees C","Commecial grade","Commercial grade (formulation)"]
["Freshwater","914-1",60,0.58252427184466016,null,"Selenastrum capricornutum","5 days old","96 hour","Growth: ChlA","IC50","0.39 uM","El Jay,A., J.M. Ducruet, J.C. Duval, and J.P. Pelletier, 1997. A High-Sensitivity Chlorophyll Fluorescence Assay for Monitoring Herbicide Inhibition of Photosystem II in the Chlorophyte Selenastrum capricornutum: Comparison with Effect on Cell Growth, Arch. Hydrobiol.140(2): 273-286. ","914",null,"Technical material - bought from Sigma Chemicals","Technical material - bought from Sigma Chemicals"]
["Freshwater",618,null,null,null,"Chlorella pyrenoidosa",null,"4 days","Population: Algal Inhibition","EC50","0.082 mg/L","Ma,J., W. Liang, L. Xu, S. Wang, Y. Wei, and J. Lu (2001). Acute Toxicity of 33 Herbicides to the Green Alga Chlorella pyrenoidosa, Bull. Environ. Contam. Toxicol.66(4): 536-541.",618,"From Glyphosate spreadsheet","technical material - 92%","technical material - 92%"]
["Freshwater",614,null,null,null,"Chlorella pyrenoidosa",null,"4 days","Population: Growth Rate (Cell Density)","EC50","0.082 mg/L","Ma,J. (2002). Differential Sensitivity to 30 Herbicides Among Populations of Two Green Algae Scenedesmus obliquus and Chlorella pyrenoidosa, Bull. Environ. Contam. Toxicol.68(2): 275-281.",614,"From Glyphosate spreadsheet","technical material - 92%","technical material - 92%"]
["Freshwater",614,null,null,null,"Scenedesmus obliquus",null,"4 days","Population: Growth Rate (Cell Density)","EC50","0.2570 mg/L","Ma,J. (2002). Differential Sensitivity to 30 Herbicides Among Populations of Two Green Algae Scenedesmus obliquus and Chlorella pyrenoidosa, Bull. Environ. Contam. Toxicol.68(2): 275-281.",614,"From Glyphosate spreadsheet","technical material - 92%","technical material - 92%"]
["Freshwater","834-7",72,0.69902912621359226,null,"Chlorella pyrenoidosa",null,"96 hours","Population Abundance","EC50","82 ug/L","Ma, J., Xu, L. and Wang, S., 2002. A Quick, Simple, and Accurate Method of Screening Herbicide Activity Using Green Algae Cell Suspension Cultures, Weed Sci.50(5): 555-559. ","834","From Metolachlor spreadsheet","technical material - 92%","technical material 92%"]
["Freshwater","853-5",68,0.66019417475728159,null,"Pseudokirchneriella subcapita",null,"72 hours","Population Abundance","EC50","297 ug/L","Sbrilli,G., B. Bimbi, F. Cioni, L. Pagliai, F. Luchi, and E. Lanciotti, 2005. Surface and Ground Waters Characterization in Tuscany (Italy) by Using Algal Bioassay and Pesticide Determinations: Comparative Evaluation of the Results and Hazard Assessment of the Pesticides Impact on Primary Product, Chemosphere58(5): 571-578. ","853","From Metolachlor spreadsheet","Analytical material","Analytical material"]
["Freshwater","853-6",68,0.66019417475728159,null,"Pseudokirchneriella subcapita",null,"72 hours","Population Abundance","NOEC","100 ug/L","Sbrilli,G., B. Bimbi, F. Cioni, L. Pagliai, F. Luchi, and E. Lanciotti, 2005. Surface and Ground Waters Characterization in Tuscany (Italy) by Using Algal Bioassay and Pesticide Determinations: Comparative Evaluation of the Results and Hazard Assessment of the Pesticides Impact on Primary Product, Chemosphere58(5): 571-578. ","853","From Metolachlor spreadsheet","Analytical material","Analytical material"]
["Freshwater","837-7",68,0.66019417475728159,null,"Raphidocelis subcapitata",null,"96 hours","Population Abundance","EC50","748.5 ug/L","Ma, J., Wang, S., Wang, P., Ma, L., Chen, X. and Xu, R., 2006. Toxicity Assessment of 40 Herbicides to the Green Alga Raphidocelis subcapitata, Ecotoxicol. Environ. Saf.63(3): 456-462. ","837","From Metolachlor spreadsheet","technical material - 92%","technical material - 92%"]
["Marine ","852-2",58,0.56310679611650483,null,"Proisotoma minuta",null,"7 days","Mortality","LC50",">1000000 ug/L","Park, E.K. and Lees, E.M., 2005. Application of an Artificial Sea Salt Solution to Determine Acute Toxicity of Herbicides to Proisotoma minuta (Collembola), J. Environ. Sci. Health Part B Pestic. Food Contam. Agric. Wastes40(4): 595-604. ","852","Do Not Use - LC50 not obtained","Purity not stated.","no information provided"]
["Freshwater","835-3",59,0.57281553398058249,null,"Scenedesmus quadricauda",null,"96 hours","Population Abundance","EC50","150 ug/L","Ma, J., Lin, F., Wang, S. and Xu, L., 2003. Toxicity of 21 Herbicides to the Green Alga Scenedesmus quadricauda, Bull. Environ. Contam. Toxicol.71(3): 594-601. ","835","From Metolachlor spreadsheet","technical material - 92%","technical material - 92%"]
["Freshwater","836-4",67,0.65048543689320393,null,"Chlorella vulgaris",null,"96 hours","Population Abundance","EC50","2173.8 ug/L","Ma, J., Xu, L., Wang, S., Zheng, R., Jin, S., Huang, S. and Huang, Y., 2002. Toxicity of 40 Herbicides to the Green Alga Chlorella vulgaris, Ecotoxicol. Environ. Saf.51(2): 128-132. ","836","From Metolachlor spreadsheet","technical material - 92%","technical material - 92%"]
["Freshwater","848-10",67,0.65048543689320393,null,"Pseudokirchneriella subcapitata",null,"72 hours","Population","EC50","252 ug/L","Perez,J., I. Domingues, A.M.V.M. Soares, and S. Loureiro, 2011. Growth Rate of Pseudokirchneriella subcapitata Exposed to Herbicides Found in Surface Waters in the Alqueva Reservoir (Portugal): A Bottom-up Approach Using Binary Mixtures, Ecotoxicology20(6): 1167-1175.","848","From Metolachlor spreadsheet","Simazine 99.9% purity","Simazine 99.9% purity"]
["Freshwater","848-11",67,0.65048543689320393,null,"Pseudokirchneriella subcapitata",null,"48 hours","Population","EC50","241 ug/L","Perez,J., I. Domingues, A.M.V.M. Soares, and S. Loureiro, 2011. Growth Rate of Pseudokirchneriella subcapitata Exposed to Herbicides Found in Surface Waters in the Alqueva Reservoir (Portugal): A Bottom-up Approach Using Binary Mixtures, Ecotoxicology20(6): 1167-1175.","848","From Metolachlor spreadsheet","Simazine 99.9% purity","Simazine 99.9% purity"]
["Freshwater","848-12",67,0.65048543689320393,null,"Pseudokirchneriella subcapitata",null,"24 hours","Population","EC50","392 ug/L","Perez,J., I. Domingues, A.M.V.M. Soares, and S. Loureiro, 2011. Growth Rate of Pseudokirchneriella subcapitata Exposed to Herbicides Found in Surface Waters in the Alqueva Reservoir (Portugal): A Bottom-up Approach Using Binary Mixtures, Ecotoxicology20(6): 1167-1175.","848","From Metolachlor spreadsheet","Simazine 99.9% purity","Simazine 99.9% purity"]
["Freshwater","848-13",67,0.65048543689320393,null,"Pseudokirchneriella subcapitata",null,"72 hours","Population","LOEC","100 ug/L","Perez,J., I. Domingues, A.M.V.M. Soares, and S. Loureiro, 2011. Growth Rate of Pseudokirchneriella subcapitata Exposed to Herbicides Found in Surface Waters in the Alqueva Reservoir (Portugal): A Bottom-up Approach Using Binary Mixtures, Ecotoxicology20(6): 1167-1175.","848","From Metolachlor spreadsheet","Simazine 99.9% purity","Simazine 99.9% purity"]
["Freshwater","848-14",67,0.65048543689320393,null,"Pseudokirchneriella subcapitata",null,"72 hours","Population","NOEC","32 ug/L","Perez,J., I. Domingues, A.M.V.M. Soares, and S. Loureiro, 2011. Growth Rate of Pseudokirchneriella subcapitata Exposed to Herbicides Found in Surface Waters in the Alqueva Reservoir (Portugal): A Bottom-up Approach Using Binary Mixtures, Ecotoxicology20(6): 1167-1175.","848","From Metolachlor spreadsheet","Simazine 99.9% purity","Simazine 99.9% purity"]
["Freshwater","856-7",63,0.61165048543689315,null,"Selenastrum capricornutum",null,"96 hours","Population Growth Rate","EC50","1240 ug/L","Fairchild,J.F., D.S. Ruessler, P.S. Haverland, and A.R. Carlson, 1997. Comparative Sensitivity of Selenastrum capricornutum and Lemna minor to Sixteen Herbicides, Arch. Environ. Contam. Toxicol.32(4): 353-357. ","856","From Metribuzin spreadsheet","Technical grade materials","Technical grade materials"]
["Freshwater","856-8",63,0.61165048543689315,null,"Selenastrum capricornutum",null,"96 hours","Population Growth Rate","NOEC","600 ug/L","Fairchild,J.F., D.S. Ruessler, P.S. Haverland, and A.R. Carlson, 1997. Comparative Sensitivity of Selenastrum capricornutum and Lemna minor to Sixteen Herbicides, Arch. Environ. Contam. Toxicol.32(4): 353-357. ","856","From Metribuzin spreadsheet","Technical grade materials","Technical grade materials"]
["Freshwater","856-9",63,0.61165048543689315,null,"Selenastrum capricornutum",null,"96 hours","Population Growth Rate","LOEC","1200 ug/L","Fairchild,J.F., D.S. Ruessler, P.S. Haverland, and A.R. Carlson, 1997. Comparative Sensitivity of Selenastrum capricornutum and Lemna minor to Sixteen Herbicides, Arch. Environ. Contam. Toxicol.32(4): 353-357. ","856","From Metribuzin spreadsheet","Technical grade materials","Technical grade materials"]
["Freshwater","856-16",63,0.61165048543689315,null,"Lemna minor",null,"96 hours","Population Abundance","EC50","166 ug/L","Fairchild,J.F., D.S. Ruessler, P.S. Haverland, and A.R. Carlson, 1997. Comparative Sensitivity of Selenastrum capricornutum and Lemna minor to Sixteen Herbicides, Arch. Environ. Contam. Toxicol.32(4): 353-357. ","856","From Metribuzin spreadsheet","Technical grade materials","Technical grade materials"]
["Freshwater","856-17",63,0.61165048543689315,null,"Lemna minor",null,"96 hours","Population Abundance","NOEC","75 ug/L","Fairchild,J.F., D.S. Ruessler, P.S. Haverland, and A.R. Carlson, 1997. Comparative Sensitivity of Selenastrum capricornutum and Lemna minor to Sixteen Herbicides, Arch. Environ. Contam. Toxicol.32(4): 353-357. ","856","From Metribuzin spreadsheet","Technical grade materials","Technical grade materials"]
["Freshwater","856-18",63,0.61165048543689315,null,"Lemna minor",null,"96 hours","Population Abundance","LOEC","150 ug/L","Fairchild,J.F., D.S. Ruessler, P.S. Haverland, and A.R. Carlson, 1997. Comparative Sensitivity of Selenastrum capricornutum and Lemna minor to Sixteen Herbicides, Arch. Environ. Contam. Toxicol.32(4): 353-357. ","856","From Metribuzin spreadsheet","Technical grade materials","Technical grade materials"]
["Marine ","852-1-GD",65,0.67010309278350511,null,"Proisotoma minuta","60-day old","7 days","Mortality","LC50",">100,000 ug/L","Park, E.K. and Lees, E.M., 2005. Application of an Artificial Sea Salt Solution to Determine Acute Toxicity of Herbicides to Proisotoma minuta (Collembola), J. Environ. Sci. Health Part B Pestic. Food Contam. Agric. Wastes40(4): 595-604. ","852","Do Not Use - LC50 not obtained","Purity not stated.","no information provided"]
["MEW_plant","NESP-1",91,1,"Buttons weren't working on spreadsheet - however all have been checked and are 100% (NESP REPORT)","Rhodomonas salina","Exponential growth phase","72 hour","Specific growth rate","NEC","48 ug/L","Microalgae","Cryptophyta","Cryptophyceae","Guillard’s f/2 medium","26.0 ± 0.6 °C","Chronic","8.5 ± 0.4","34.2 ± 0.6 psu","Negri, A.P., Templeman, S., Flores, F., van Dam, J., Thomas, M., McKenzie, M., Stapp, L., Kaserzon, S., Mann, R.M., Smith, R., Warne, M.St.J. and Mueller, J. (2020) Ecotoxicology of pesticides on the Great Barrier Reef for guideline development and risk assessments. Final report to the National Environmental Science Program. Reef and Rainforest Research Centre Limited, Cairns (120 pp.).",null,"Yes"]
["MEW_plant","NESP-2",91,1,"Buttons weren't working on spreadsheet - however all have been checked and are 100% (NESP REPORT)","Rhodomonas salina","Exponential growth phase","72 hour","Specific growth rate","EC10","38.4 ug/L","Microalgae","Cryptophyta","Cryptophyceae","Guillard’s f/2 medium","26.0 ± 0.6 °C","Chronic","8.5 ± 0.4","34.2 ± 0.6 psu","Negri, A.P., Templeman, S., Flores, F., van Dam, J., Thomas, M., McKenzie, M., Stapp, L., Kaserzon, S., Mann, R.M., Smith, R., Warne, M.St.J. and Mueller, J. (2020) Ecotoxicology of pesticides on the Great Barrier Reef for guideline development and risk assessments. Final report to the National Environmental Science Program. Reef and Rainforest Research Centre Limited, Cairns (120 pp.).",null,"Yes"]
["MEW_plant","NESP-3",91,1,"Buttons weren't working on spreadsheet - however all have been checked and are 100% (NESP REPORT)","Rhodomonas salina","Exponential growth phase","72 hour","Specific growth rate","EC50","184 ug/L","Microalgae","Cryptophyta","Cryptophyceae","Guillard’s f/2 medium","26.0 ± 0.6 °C","Chronic","8.5 ± 0.4","34.2 ± 0.6 psu","Negri, A.P., Templeman, S., Flores, F., van Dam, J., Thomas, M., McKenzie, M., Stapp, L., Kaserzon, S., Mann, R.M., Smith, R., Warne, M.St.J. and Mueller, J. (2020) Ecotoxicology of pesticides on the Great Barrier Reef for guideline development and risk assessments. Final report to the National Environmental Science Program. Reef and Rainforest Research Centre Limited, Cairns (120 pp.).",null,"Yes"]
["MEW_plant","NESP-4",91,1,"Buttons weren't working on spreadsheet - however all have been checked and are 100% (NESP REPORT)","Cladocopium goreaui","Exponential growth phase","14 day","Specific growth rate","NEC","320 ug/L","Microalgae","Dinoflagellata","Dinophyceae","IMK nutrient media","27 ± 0.6  °C","Chronic","7.8 ± 0.5","32.5 ± 0.7 psu","Negri, A.P., Templeman, S., Flores, F., van Dam, J., Thomas, M., McKenzie, M., Stapp, L., Kaserzon, S., Mann, R.M., Smith, R., Warne, M.St.J. and Mueller, J. (2020) Ecotoxicology of pesticides on the Great Barrier Reef for guideline development and risk assessments. Final report to the National Environmental Science Program. Reef and Rainforest Research Centre Limited, Cairns (120 pp.).",null,"Yes"]
["MEW_plant","NESP-5",91,1,"Buttons weren't working on spreadsheet - however all have been checked and are 100% (NESP REPORT)","Cladocopium goreaui","Exponential growth phase","14 day","Specific growth rate","EC10","257 ug/L","Microalgae","Dinoflagellata","Dinophyceae","IMK nutrient media","27 ± 0.6  °C","Chronic","7.8 ± 0.5","32.5 ± 0.7 psu","Negri, A.P., Templeman, S., Flores, F., van Dam, J., Thomas, M., McKenzie, M., Stapp, L., Kaserzon, S., Mann, R.M., Smith, R., Warne, M.St.J. and Mueller, J. (2020) Ecotoxicology of pesticides on the Great Barrier Reef for guideline development and risk assessments. Final report to the National Environmental Science Program. Reef and Rainforest Research Centre Limited, Cairns (120 pp.).",null,"Yes"]
["MEW_plant","NESP-6",91,1,"Buttons weren't working on spreadsheet - however all have been checked and are 100% (NESP REPORT)","Cladocopium goreaui","Exponential growth phase","14 day","Specific growth rate","EC50","387 ug/L","Microalgae","Dinoflagellata","Dinophyceae","IMK nutrient media","27 ± 0.6  °C","Chronic","7.8 ± 0.5","32.5 ± 0.7 psu","Negri, A.P., Templeman, S., Flores, F., van Dam, J., Thomas, M., McKenzie, M., Stapp, L., Kaserzon, S., Mann, R.M., Smith, R., Warne, M.St.J. and Mueller, J. (2020) Ecotoxicology of pesticides on the Great Barrier Reef for guideline development and risk assessments. Final report to the National Environmental Science Program. Reef and Rainforest Research Centre Limited, Cairns (120 pp.).",null,"Yes"]
["MEW_plant","NESP-7",91,1,"Buttons weren't working on spreadsheet - however all have been checked and are 100% (NESP REPORT)","Tetraselmis sp.","Exponential growth phase","72 hour","Specific growth rate","NEC","37.5 ug/L","Microalgae","Chlorophyta","n/a","EDTA-free Guillard’s f/2 medium","27 - 29 °C","Chronic","8.1 - 8.2","32 - 33 psu","Negri, A.P., Templeman, S., Flores, F., van Dam, J., Thomas, M., McKenzie, M., Stapp, L., Kaserzon, S., Mann, R.M., Smith, R., Warne, M.St.J. and Mueller, J. (2020) Ecotoxicology of pesticides on the Great Barrier Reef for guideline development and risk assessments. Final report to the National Environmental Science Program. Reef and Rainforest Research Centre Limited, Cairns (120 pp.).",null,"Yes"]
["MEW_plant","NESP-8",91,1,"Buttons weren't working on spreadsheet - however all have been checked and are 100% (NESP REPORT)","Tetraselmis sp.","Exponential growth phase","72 hour","Specific growth rate","EC10","37.6 ug/L","Microalgae","Chlorophyta","n/a","EDTA-free Guillard’s f/2 medium","27 - 29 °C","Chronic","8.1 - 8.2","32 - 33 psu","Negri, A.P., Templeman, S., Flores, F., van Dam, J., Thomas, M., McKenzie, M., Stapp, L., Kaserzon, S., Mann, R.M., Smith, R., Warne, M.St.J. and Mueller, J. (2020) Ecotoxicology of pesticides on the Great Barrier Reef for guideline development and risk assessments. Final report to the National Environmental Science Program. Reef and Rainforest Research Centre Limited, Cairns (120 pp.).",null,"Yes"]
["MEW_plant","NESP-9",91,1,"Buttons weren't working on spreadsheet - however all have been checked and are 100% (NESP REPORT)","Tetraselmis sp.","Exponential growth phase","72 hour","Specific growth rate","EC50","154 ug/L","Microalgae","Chlorophyta","n/a","EDTA-free Guillard’s f/2 medium","27 - 29 °C","Chronic","8.1 - 8.2","32 - 33 psu","Negri, A.P., Templeman, S., Flores, F., van Dam, J., Thomas, M., McKenzie, M., Stapp, L., Kaserzon, S., Mann, R.M., Smith, R., Warne, M.St.J. and Mueller, J. (2020) Ecotoxicology of pesticides on the Great Barrier Reef for guideline development and risk assessments. Final report to the National Environmental Science Program. Reef and Rainforest Research Centre Limited, Cairns (120 pp.).",null,"Yes"]
["MEW_plant","NESP-10",91,1,"Buttons weren't working on spreadsheet - however all have been checked and are 100% (NESP REPORT)","Tisochrysis lutea","Exponential growth phase","72 hour","Specific growth rate","NEC","70 ug/L","Microalgae","Haptophyta","Coccolithophyceae","EDTA-free Guillard’s f/2 medium","27 - 29 °C","Chronic","7.9 - 8.3","28 - 33 psu","Negri, A.P., Templeman, S., Flores, F., van Dam, J., Thomas, M., McKenzie, M., Stapp, L., Kaserzon, S., Mann, R.M., Smith, R., Warne, M.St.J. and Mueller, J. (2020) Ecotoxicology of pesticides on the Great Barrier Reef for guideline development and risk assessments. Final report to the National Environmental Science Program. Reef and Rainforest Research Centre Limited, Cairns (120 pp.).",null,"Yes"]
["MEW_plant","NESP-11",91,1,"Buttons weren't working on spreadsheet - however all have been checked and are 100% (NESP REPORT)","Tisochrysis lutea","Exponential growth phase","72 hour","Specific growth rate","EC10","60.2 ug/L","Microalgae","Haptophyta","Coccolithophyceae","EDTA-free Guillard’s f/2 medium","27 - 29 °C","Chronic","7.9 - 8.3","28 - 33 psu","Negri, A.P., Templeman, S., Flores, F., van Dam, J., Thomas, M., McKenzie, M., Stapp, L., Kaserzon, S., Mann, R.M., Smith, R., Warne, M.St.J. and Mueller, J. (2020) Ecotoxicology of pesticides on the Great Barrier Reef for guideline development and risk assessments. Final report to the National Environmental Science Program. Reef and Rainforest Research Centre Limited, Cairns (120 pp.).",null,"Yes"]
["MEW_plant","NESP-12",91,1,"Buttons weren't working on spreadsheet - however all have been checked and are 100% (NESP REPORT)","Tisochrysis lutea","Exponential growth phase","72 hour","Specific growth rate","EC50","206 ug/L","Microalgae","Haptophyta","Coccolithophyceae","EDTA-free Guillard’s f/2 medium","27 - 29 °C","Chronic","7.9 - 8.3","28 - 33 psu","Negri, A.P., Templeman, S., Flores, F., van Dam, J., Thomas, M., McKenzie, M., Stapp, L., Kaserzon, S., Mann, R.M., Smith, R., Warne, M.St.J. and Mueller, J. (2020) Ecotoxicology of pesticides on the Great Barrier Reef for guideline development and risk assessments. Final report to the National Environmental Science Program. Reef and Rainforest Research Centre Limited, Cairns (120 pp.).",null,"Yes"]
[]
[]
[]
["Data from OPP Pesticides Database"]
["Media","RecordID","EPAIDENT","DOC_NUMBER","TAXA","COMMONNAME","SCIENTIFIC NAME","AGE+G301:S301F30G301:T351","GUIDELINE","TYPE","AI","STUDYTIME","DOSETYPE","TGL","TOXICITY","TOXLEVEL","CL","NGL","NOEL","STUDYDATE","CATEGORY"]
["Freshwater",6193,"00023999","2008078","Fishes","Channel catfish","Ictalurus punctatus","5-10 g","72-1","S","50WP","96 hr","LC50","","85","PPM","N.R.","","N.R.","1964","S",0.5]
["Freshwater",6194,"00023999","2008078","Fishes","Yellow bullhead","Ictalurus natalis","5-10 g","72-1","S","50WP","96 hr","LC50","","110","PPM","N.R.","","N.R.","1964","S",0.5]
["Freshwater",3584,"42503707","2008092","Aquatic Plant","Freshwater diatom","Navicula pelliculosa","N.R.","123-2","S","96.9","5 D","EC50","","0.09","PPM","0.08-0.10","","0.03","1992","C",0.96899999999999997]
["Marine",3585,"42503705","2008090","Aquatic Plant","Marine diatom","Skeletonema costatum","N.R.","123-2","S","96.9","5 D","EC50","","0.60","PPM","0.56-0.65","","0.25","1992","C",0.96899999999999997]
["Freshwater",3586,"42503706","2008091","Aquatic Plant","Green algae","Selenastrum capricornutum","N.R.","123-2","S","96.9","5 D","EC50","","0.10","PPM","0.09-0.11","","0.03","1992","C",0.96899999999999997]
["Marine",3588,"42503703","2008088","Mollusca","Eastern oyster","Crassostrea virginica","SPAT","72-3","F","96.9","96 hr","EC50",">","3.7","PPM","N.R.","","3.7","1992","C",0.96899999999999997]
["Marine",2108,"40228401","2049116","Aquatic Plant","Green algae","Chlorococcum sp.","N.R.","122-2","S","98","10 D","EC50","","2.0","PPM","N.R.","","N.R.","1986","S",0.98]
["Freshwater",6185,"00163136","2008084","Fishes","Rainbow trout","Oncorhynchus mykiss","0.9 g","72-1","S","80 W","96 hr","LC50","","60","PPM","49.8-72.3","","34.3","1976","S",0.8]
["Freshwater",6186,"00163138","2008082","Fishes","Rainbow trout","Oncorhynchus mykiss","0.6 g","72-1","S","80 W","96 hr","LC50","","44.6","PPM","37.6-52.9","","28.6","1976","S",0.8]
["Freshwater",6187,"45088221","2008065","Crustacea","Scud","Gammarus lacustris","2 MOS","72-2","S","?WP","96 hr","LC50","","13","PPM","11.4-15","","N.R.","1969","S","No purity mentioned","Is an Acute LC50 value (preference 4) which would not be preferentially chosen for derivations anyway."]
["Freshwater",6188,"00023999","2008078","Fishes","Pumpkinseed sunfish","Lepomis gibbosus","5-10 g","72-1","S","50WP","96 hr","LC50","","27","PPM","N.R.","","N.R.","1964","S",0.5]
["Freshwater",6189,"00023999","2008078","Fishes","Bluegill sunfish","Lepomis macrochirus","5-10 g","72-1","S","50WP","96 hr","LC50","","35","PPM","N.R.","","N.R.","1964","S",0.5]
["Freshwater",6190,"00023999","2008078","Fishes","Largemouth bass","Micropterus salmoides","5-10 g","72-1","S","50WP","96 hr","LC50","","46","PPM","N.R.","","N.R.","1964","S",0.5]
["Freshwater",6191,"00023999","2008078","Fishes","Redear sunfish","Lepomis microlophus","5-10 g","72-1","S","50WP","96 hr","LC50","","54","PPM","N.R.","","N.R.","1964","S",0.5]
["Freshwater",3587,"42503704","2008089","Aquatic Plant","Duckweed","Lemna gibba","N.R.","123-2","S","96.9","14 D","EC50","","0.14","PPM","0.12-0.15","","0.05","1992","C",0.96899999999999997]
["Freshwater",2123,"00031150","2008072","Fishes","Fathead minnow","Pimephales promelas","1.5 g","72-1","S","Tech","96 hr","LC50",null,"6.4","PPM","4.8-8.7","","2.5","1971","C","Technical"]
["Freshwater",2124,"00026299","2008070","Fishes","Goldfish","Carassius auratus","0.7 g","72-1","S","99.1","96 hr","LC50",">","32","PPM","N.R.","","N.R.","1965","S",0.99099999999999999]
["Freshwater",2125,"00163137","2008083","Fishes","Rainbow trout","Oncorhynchus mykiss","0.6 g","72-1","S","80WP","96 hr","LC50","","40.5","PPM","34-48.4","<","6.0","1976","S",0.8]
["Freshwater",2126,"00034214","2008069","Fishes","Emerald shiner","Notropis atherinoides","N.R.","72-1","S","50","96 hr","LC50",">","18","PPM","N.R.","","N.R.","1963","S",0.5]
["Freshwater",2127,"00043666","2008059","Fishes","Rainbow trout","Oncorhynchus mykiss","Juv","72-1","S","Tech","96 hr","LC50","","70.5","PPM","60.6-82.0","","N.R.","1976","C","Technical"]
["Freshwater",2128,"05001497","2008066","Fishes","Bluegill sunfish","Lepomis macrochirus","1.0 g","72-1","S","80WP","96 hr","LC50","","100","PPM","90-110","","N.R.","1980","S",0.8]
["Freshwater",2129,"40098001","2024920","Fishes","Fathead minnow","Pimephales promelas","0.7 g","72-1","S","80WP","96 hr","LC50","","510","PPM","373-698","","N.R.","1986","S",0.8]
["Freshwater",2130,"40098001","2024920","Fishes","Fathead minnow","Pimephales promelas","0.7 g","72-1","S","4 GR","96 hr","LC50","","5","PPM","3.5-7.15","","N.R.","1986","S","No purity mentioned","Does not get used in derivations anyway, because it's not the lowest value for the species."]
["Marine",2131,"00043667","2008074","Fishes","Striped bass","Morone saxatilis","63 mm","72-3","S","80WP","96 hr","LC50",">","3","PPM","N.R.","<","1.0","1967","S",0.8]
["Marine",2106,"40228401","2049116","Aquatic Plant","Marine diatom","Phaeodactylum tricornutum","N.R.","122-2","S","98","10 D","EC50","","0.50","PPM","N.R.","","N.R.","1986","S",0.98]
["Freshwater",2120,"40094602","2079104","Fishes","Fathead minnow","Pimephales promelas","0.7 g","72-1","S","98.1","96 hr","LC50",">","100","PPM","N.R.","","N.R.","1980","C",0.98099999999999998]
["Freshwater",2133,"40245701","2008086","Fishes","Rainbow trout","Oncorhynchus mykiss","0.87 g","72-1","SR","88.6","96 hr","LC50",">","82","PPM","N.R.","","22","1987","C",0.88600000000000001]
["Marine",2110,"05001497","2008066","Crustacea","Seed shrimp","Cypridopsis vidua","Adult","72-2","S","98.1","48 hr","LC50","","3.7","PPM","2.6-5.3","","N.R.","1979","S",0.98099999999999998]
["Marine",3589,"42503702","2008087","Fishes","Sheepshead minnow","Cyprinodon variegatus","0.36 g","72-3","F","96.9","96 hr","LC50",">","4.3","PPM","N.R.","","4.3","1992","C",0.96899999999999997]
["Marine",2105,"40228401","2049116","Aquatic Plant","Marine algae","Isochrysis galbana","N.R.","122-2","S","98","10 D","EC50","","0.50","PPM","N.R.","","N.R.","1986","S",0.98]
["Freshwater",6192,"00023999","2008078","Fishes","Bluntnose minnow","Pimephales notatus","N.R.","72-1","S","50WP","96 hr","LC50","","66","PPM","N.R.","","N.R.","1964","S",0.5]
["Marine",2107,"40228401","2049116","Aquatic Plant","Green algae","Dunaliella tertiolecta","N.R.","122-2","S","98","10 D","EC50","","5.0","PPM","N.R.","","N.R.","1986","S",0.98]
["Freshwater",2122,"00163135","2008081","Fishes","Rainbow trout","Oncorhynchus mykiss","1.0 g","72-1","S","97.6","96 hr","LC50",">","10","PPM","N.R.","","10","1983","S",0.97599999999999998]
["Freshwater",2109,"05001497","2008066","Crustacea","Water flea","Daphnia magna","1st-I","72-2","S","98.1","48 hr","EC50","","1.1","PPM","0.56-2.2","","N.R.","1980","C",0.98099999999999998]
["Freshwater",2121,"00025438","2008075","Fishes","Bluegill sunfish","Lepomis macrochirus","Juv","72-1","S","99.1","96 hr","LC50","","16.0","PPM","9.9-26","","5.6","1965","C",0.98099999999999998]
["Freshwater",4146,"42662401","2008095","Aquatic Plant","Bluegreen algae","Anabaena flos-aquae","N.R.","123-2","S","96.9","5 D","EC50","","0.036","PPM","0.03-.042","","N.R.","1992","S",0.98899999999999999]
["Freshwater",2111,"40098001","2024920","Crustacea","Scud","Gammarus fasciatus","Adult","72-2","S","98.1","96 hr","LC50",">","100","PPM","N.R.","","N.R.","1980","C",0.98099999999999998]
["Freshwater",2112,"40094602","2079104","Insecta","Stonefly","Pteronarcys californica","yr","72-2","S","98.1","96 hr","EC50","","1.9","PPM","0.9-4.0","","N.R.","1980","C",0.98099999999999998]
["Marine",2113,"00023331","2008073","Crustacea","Pink shrimp","Penaeus duorarum","55 mm","72-3","S","98.9","96 hr","LC50","","113","PPM","56-226","","75","1973","C",0.98899999999999999]
["Marine",2114,"00023331","2008073","Crustacea","Mud crab","Neopanope texana","15 mm","72-3","S","98.9","96 hr","LC50",">","1000","PPM","N.R.","","N.R.","1973","S",0.98899999999999999]
["Freshwater",2116,"05001497","2008066","Crustacea","Crayfish","Procambarus sp.","N.R.","72-2","S","Tech","48 hr","LC50",">","100","PPM","N.R.","","N.R.","1970","S","Technical"]
["Marine",2117,"05001497","2008066","Crustacea","Glass shrimp","Palaemonetes kadiakensis","N.R.","72-2","S","Tech","48 hr","LC50",">","100","PPM","N.R.","","N.R.","1970","S","Technical"]
["Marine",2118,"00043677","2008076","Mollusca","Eastern oyster","Crassostrea virginica","16-29g","72-3","F","99.1","7 D","EC50",">","1.0","PPM","N.R.","","1.0","1966","S",0.98099999999999998]
["Freshwater",2119,"40094602","2079104","Fishes","Rainbow trout","Oncorhynchus mykiss","1.2 g","72-1","S","98.1","96 hr","LC50",">","100","PPM","N.R.","","N.R.","1980","C",0.98099999999999998]
["Freshwater",5974,"00043668","2008061","Fishes","Rainbow trout","Oncorhynchus mykiss","25-40g","72-1","S","Tech","28 D","LC50",">","2.5","PPM","N.R.","","N.R.","1973","S","Technical"]
["Freshwater",12642,"00025433","2008077","Fishes","Bluegill sunfish","Lepomis macrochirus","LifCyc","72-5","F","80WP","1year","LOEL",">","2.5","PPM","N.R.","","2.5","1967","C",0.8]
["Freshwater",12432,"00043676","2008071","Fishes","Fathead minnow","Pimephales promelas","ErlyLf","72-4","F","80WP","120 D","LOEC","","2.5","PPM","N.R.","","1.2","1975","C",0.8]
["Freshwater",12431,"00025433","2008077","Fishes","Goldfish","Carassius auratus","LifCyc","72-5","F","80WP","1year","LOEL",">","2.5","PPM","N.R.","","2.5","1967","S",0.8]
["Freshwater",12430,"00043676","2008071","Crustacea","Water flea","Daphnia magna","LifCyc","72-4","F","80WP","21 D","LOEC",">","2.5","PPM","N.R.","","2.5","1975","S",0.8]